Workbook

Sheet PESSOA FÍSICA
A1: CATEGORIA | B1: INSCRIÇÃO | C1: CIDADE | D1: UF | E1: REGIÃO | F1: AVALIADOR | G1: CRITÉRIOS DE AVALIAÇÃO E SELEÇÃO 1 | H1: CRITÉRIOS DE AVALIAÇÃO E SELEÇÃO 2 | I1: CRITÉRIOS DE AVALIAÇÃO E SELEÇÃO 3 | J1: CRITÉRIOS DE AVALIAÇÃO E SELEÇÃO 4 | K1: CRITÉRIOS DE AVALIAÇÃO E SELEÇÃO 5 | L1: CRITÉRIOS DE AVALIAÇÃO E SELEÇÃO 6 | M1: CRITÉRIOS DE AVALIAÇÃO E SELEÇÃO 7 | N1: CRITÉRIOS DE AVALIAÇÃO E SELEÇÃO 8 | O1: PONTUAÇÃO EXTRA - Pessoa com deficiência | P1: PONTUAÇÃO EXTRA - Mulher | Q1: PONTUAÇÃO EXTRA - Pessoa negra | R1: PONTUAÇÃO EXTRA -Indígena, matriz africana, de terreiro ou de povos ou de comunidades tradicionais | S1: PONTUAÇÃO EXTRA LGBTQIA+ | T1: PONTUAÇÃO EXTRA Idosa com 60 anos ou mais? | U1: NOTA POR AVALIADOR | V1: OBSERVAÇÃO | W1: NOTA PRELIMINAR | X1: STATUS
A2: PESSOA FÍSICA | B2: =HYPERLINK("https://mapas.cultura.gov.br/inscricao/1980208951","on-1980208951") -> on-1980208951 | C2: Goiânia | D2: GO | E2: CENTRO OESTE | F2: Avaliador 1 | G2: 20 | H2: 15 | I2: 12 | J2: 10 | K2: 10 | L2: 10 | M2: 8 | N2: 10 | O2: 0 | P2: 0 | Q2: 3 | R2: 3 | S2: 3 | T2: 0 | U2: =SUM(G2:T2) -> 104 | W2: =AVERAGE(U2,U3) -> 106.5 | X2: PRÉ-SELECIONADO
A3: PESSOA FÍSICA | B3: =HYPERLINK("https://mapas.cultura.gov.br/inscricao/1980208951","on-1980208951") -> on-1980208951 | C3: Goiânia | D3: GO | E3: CENTRO OESTE | F3: Avaliador 2 | G3: 20 | H3: 15 | I3: 15 | J3: 10 | K3: 10 | L3: 10 | M3: 10 | N3: 10 | O3: 0 | P3: 0 | Q3: 3 | R3: 3 | S3: 3 | T3: 0 | U3: 109 | W3: =W2 -> 106.5
A4: PESSOA FÍSICA | B4: =HYPERLINK("https://mapas.cultura.gov.br/inscricao/819889525","on-819889525") -> on-819889525 | C4: Campo Grande | D4: MS | E4: CENTRO OESTE | F4: Avaliador 1 | G4: 20 | H4: 15 | I4: 15 | J4: 10 | K4: 10 | L4: 10 | M4: 10 | N4: 10 | O4: 0 | P4: 3 | Q4: 3 | R4: 0 | S4: 0 | T4: 0 | U4: 106 | W4: =AVERAGE(U4,U5) -> 106 | X4: PRÉ-SELECIONADO
A5: PESSOA FÍSICA | B5: =HYPERLINK("https://mapas.cultura.gov.br/inscricao/819889525","on-819889525") -> on-819889525 | C5: Campo Grande | D5: MS | E5: CENTRO OESTE | F5: Avaliador 2 | G5: 20 | H5: 15 | I5: 15 | J5: 10 | K5: 10 | L5: 10 | M5: 10 | N5: 10 | O5: 0 | P5: 3 | Q5: 3 | R5: 0 | S5: 0 | T5: 0 | U5: 106 | W5: =W4 -> 106
A6: PESSOA FÍSICA | B6: =HYPERLINK("https://mapas.cultura.gov.br/inscricao/915842250","on-915842250") -> on-915842250 | C6: Campo Grande | D6: MS | E6: CENTRO OESTE | F6: Avaliador 1 | G6: 20 | H6: 15 | I6: 15 | J6: 10 | K6: 10 | L6: 10 | M6: 10 | N6: 10 | O6: 0 | P6: 3 | Q6: 3 | R6: 0 | S6: 0 | T6: 0 | U6: 106 | W6: =AVERAGE(U6,U7) -> 106 | X6: PRÉ-SELECIONADO
A7: PESSOA FÍSICA | B7: =HYPERLINK("https://mapas.cultura.gov.br/inscricao/915842250","on-915842250") -> on-915842250 | C7: Campo Grande | D7: MS | E7: CENTRO OESTE | F7: Avaliador 2 | G7: 20 | H7: 15 | I7: 15 | J7: 10 | K7: 10 | L7: 10 | M7: 10 | N7: 10 | O7: 0 | P7: 3 | Q7: 3 | R7: 0 | S7: 0 | T7: 0 | U7: 106 | W7: =W6 -> 106
A8: PESSOA FÍSICA | B8: =HYPERLINK("https://mapas.cultura.gov.br/inscricao/504544843","on-504544843") -> on-504544843 | C8: Águas Lindas de Goiás | D8: GO | E8: CENTRO OESTE | F8: Avaliador 1 | G8: 20 | H8: 12 | I8: 15 | J8: 10 | K8: 8 | L8: 10 | M8: 10 | N8: 8 | O8: 0 | P8: 3 | Q8: 3 | R8: 0 | S8: 3 | T8: 0 | U8: 102 | W8: =AVERAGE(U8,U9) -> 105.5 | X8: PRÉ-SELECIONADO
A9: PESSOA FÍSICA | B9: =HYPERLINK("https://mapas.cultura.gov.br/inscricao/504544843","on-504544843") -> on-504544843 | C9: Águas Lindas de Goiás | D9: GO | E9: CENTRO OESTE | F9: Avaliador 2 | G9: 20 | H9: 15 | I9: 15 | J9: 10 | K9: 10 | L9: 10 | M9: 10 | N9: 10 | O9: 0 | P9: 3 | Q9: 3 | R9: 0 | S9: 3 | T9: 0 | U9: 109 | W9: =W8 -> 105.5
A10: PESSOA FÍSICA | B10: =HYPERLINK("https://mapas.cultura.gov.br/inscricao/1629652484","on-1629652484") -> on-1629652484 | C10: Campo Grande | D10: MS | E10: CENTRO OESTE | F10: Avaliador 1 | G10: 20 | H10: 15 | I10: 15 | J10: 10 | K10: 8 | L10: 10 | M10: 10 | N10: 10 | O10: 0 | P10: 3 | Q10: 0 | R10: 3 | S10: 0 | T10: 0 | U10: 104 | W10: =AVERAGE(U10,U11) -> 104 | X10: PRÉ-SELECIONADO
A11: PESSOA FÍSICA | B11: =HYPERLINK("https://mapas.cultura.gov.br/inscricao/1629652484","on-1629652484") -> on-1629652484 | C11: Campo Grande | D11: MS | E11: CENTRO OESTE | F11: Avaliador 2 | G11: 20 | H11: 15 | I11: 15 | J11: 10 | K11: 8 | L11: 10 | M11: 10 | N11: 10 | O11: 0 | P11: 3 | Q11: 0 | R11: 3 | S11: 0 | T11: 0 | U11: 104 | W11: =W10 -> 104
A12: PESSOA FÍSICA | B12: =HYPERLINK("https://mapas.cultura.gov.br/inscricao/1576978550","on-1576978550") -> on-1576978550 | C12: RECANTO DAS EMAS | D12: DF | E12: CENTRO OESTE | F12: Avaliador 1 | G12: 20 | H12: 15 | I12: 15 | J12: 10 | K12: 10 | L12: 10 | M12: 10 | N12: 10 | O12: 0 | P12: 3 | Q12: 0 | R12: 0 | S12: 0 | T12: 0 | U12: 103 | W12: =AVERAGE(U12,U13) -> 103 | X12: PRÉ-SELECIONADO
A13: PESSOA FÍSICA | B13: on-1576978550 | C13: Recanto das Emas | D13: DF | E13: CENTRO OESTE | F13: Avaliador 2 | G13: 20 | H13: 15 | I13: 15 | J13: 10 | K13: 10 | L13: 10 | M13: 10 | N13: 10 | O13: 0 | P13: 3 | Q13: 0 | R13: 0 | S13: 0 | T13: 0 | U13: 103 | W13: =W12 -> 103
A14: PESSOA FÍSICA | B14: =HYPERLINK("https://mapas.cultura.gov.br/inscricao/1554037431","on-1554037431") -> on-1554037431 | C14: Campo Grande | D14: MS | E14: CENTRO OESTE | F14: Avaliador 1 | G14: 20 | H14: 15 | I14: 15 | J14: 10 | K14: 10 | L14: 10 | M14: 10 | N14: 10 | O14: 0 | P14: 0 | Q14: 3 | R14: 0 | S14: 0 | T14: 0 | U14: 103 | W14: =AVERAGE(U14,U15) -> 103 | X14: PRÉ-SELECIONADO
A15: PESSOA FÍSICA | B15: =HYPERLINK("https://mapas.cultura.gov.br/inscricao/1554037431","on-1554037431") -> on-1554037431 | C15: Campo Grande | E15: CENTRO OESTE | F15: Avaliador 2 | G15: 20 | H15: 15 | I15: 15 | J15: 10 | K15: 10 | L15: 10 | M15: 10 | N15: 10 | O15: 0 | P15: 0 | Q15: 3 | R15: 0 | S15: 0 | T15: 0 | U15: 103 | W15: =W14 -> 103
A16: PESSOA FÍSICA | B16: =HYPERLINK("https://mapas.cultura.gov.br/inscricao/1418505508","on-1418505508") -> on-1418505508 | C16: Cuiabá | D16: MT | E16: CENTRO OESTE | F16: Avaliador 1 | G16: 20 | H16: 15 | I16: 15 | J16: 10 | K16: 10 | L16: 10 | M16: 10 | N16: 10 | O16: 0 | P16: 0 | Q16: 3 | R16: 0 | S16: 0 | T16: 0 | U16: 103 | W16: =AVERAGE(U16,U17) -> 103 | X16: PRÉ-SELECIONADO
A17: PESSOA FÍSICA | B17: =HYPERLINK("https://mapas.cultura.gov.br/inscricao/1418505508","on-1418505508") -> on-1418505508 | C17: Cuiabá | D17: MT | E17: CENTRO OESTE | F17: Avaliador 2 | G17: 20 | H17: 15 | I17: 15 | J17: 10 | K17: 10 | L17: 10 | M17: 10 | N17: 10 | O17: 0 | P17: 0 | Q17: 3 | R17: 0 | S17: 0 | T17: 0 | U17: 103 | W17: =W16 -> 103
A18: PESSOA FÍSICA | B18: =HYPERLINK("https://mapas.cultura.gov.br/inscricao/938786470","on-938786470") -> on-938786470 | C18: Sol Nascente/Pôr do Sol | D18: DF | E18: CENTRO OESTE | F18: Avaliador 1 | G18: 20 | H18: 15 | I18: 15 | J18: 10 | K18: 10 | L18: 10 | M18: 10 | N18: 10 | O18: 0 | P18: 0 | Q18: 3 | R18: 0 | S18: 0 | T18: 0 | U18: 103 | W18: =AVERAGE(U18,U19) -> 103 | X18: PRÉ-SELECIONADO
A19: PESSOA FÍSICA | B19: on-938786470 | C19: Sol Nascente/Pôr do Sol | D19: DF | E19: CENTRO OESTE | F19: Avaliador 2 | G19: 20 | H19: 15 | I19: 15 | J19: 10 | K19: 10 | L19: 10 | M19: 10 | N19: 10 | O19: 0 | P19: 0 | Q19: 3 | R19: 0 | S19: 0 | T19: 0 | U19: 103 | W19: =W18 -> 103
A20: PESSOA FÍSICA | B20: =HYPERLINK("https://mapas.cultura.gov.br/inscricao/650417437","on-650417437") -> on-650417437 | C20: Sobradinho II | D20: DF | E20: CENTRO OESTE | F20: Avaliador 1 | G20: 20 | H20: 15 | I20: 15 | J20: 10 | K20: 10 | L20: 10 | M20: 8 | N20: 5 | O20: 0 | P20: 3 | Q20: 3 | R20: 0 | S20: 3 | T20: 0 | U20: 102 | W20: =AVERAGE(U20,U21) -> 102 | X20: PRÉ-SELECIONADO
A21: PESSOA FÍSICA | B21: on-650417437 | C21: Sobradinho II | D21: DF | E21: CENTRO OESTE | F21: Avaliador 2 | G21: 20 | H21: 15 | I21: 15 | J21: 10 | K21: 10 | L21: 10 | M21: 8 | N21: 5 | O21: 0 | P21: 3 | Q21: 3 | R21: 0 | S21: 3 | T21: 0 | U21: 102 | W21: =W20 -> 102
A22: PESSOA FÍSICA | B22: =HYPERLINK("https://mapas.cultura.gov.br/inscricao/'MT - PESSOA FÍSICA '!E6","on-1336593539") -> on-1336593539 | C22: Cuiabá | D22: MT | E22: CENTRO OESTE | F22: Avaliador 1 | G22: 20 | H22: 15 | I22: 15 | J22: 10 | K22: 10 | L22: 10 | M22: 10 | N22: 10 | O22: 0 | P22: 0 | Q22: 3 | R22: 0 | S22: 0 | T22: 0 | U22: 103 | W22: =AVERAGE(U22,U23) -> 102 | X22: PRÉ-SELECIONADO
A23: PESSOA FÍSICA | B23: =HYPERLINK("https://mapas.cultura.gov.br/inscricao/1336593539","on-1336593539") -> on-1336593539 | C23: Cuiabá | D23: MT | E23: CENTRO OESTE | F23: Avaliador 2 | G23: 20 | H23: 15 | I23: 15 | J23: 10 | K23: 10 | L23: 10 | M23: 8 | N23: 10 | O23: 0 | P23: 0 | Q23: 3 | R23: 0 | S23: 0 | T23: 0 | U23: 101 | W23: =W22 -> 102
A24: PESSOA FÍSICA | B24: =HYPERLINK("https://mapas.cultura.gov.br/inscricao/213948288","on-213948288") -> on-213948288 | C24: Goiânia | D24: GO | E24: CENTRO OESTE | F24: Avaliador 1 | G24: 20 | H24: 15 | I24: 15 | J24: 10 | K24: 5 | L24: 8 | M24: 10 | N24: 10 | O24: 0 | P24: 3 | Q24: 3 | R24: 0 | S24: 0 | T24: 0 | U24: 99 | W24: =AVERAGE(U24,U25) -> 101.5 | X24: PRÉ-SELECIONADO
A25: PESSOA FÍSICA | B25: =HYPERLINK("https://mapas.cultura.gov.br/inscricao/213948288","on-213948288") -> on-213948288 | C25: Goiânia | D25: GO | E25: CENTRO OESTE | F25: Avaliador 2 | G25: 20 | H25: 15 | I25: 15 | J25: 10 | K25: 8 | L25: 10 | M25: 10 | N25: 10 | O25: 0 | P25: 3 | Q25: 3 | R25: 0 | S25: 0 | T25: 0 | U25: 104 | W25: =W24 -> 101.5
A26: PESSOA FÍSICA | B26: =HYPERLINK("https://mapas.cultura.gov.br/inscricao/435016902","on-435016902") -> on-435016902 | C26: BRASÍLIA | D26: DF | E26: CENTRO OESTE | F26: Avaliador 1 | G26: 20 | H26: 15 | I26: 15 | J26: 10 | K26: 8 | L26: 10 | M26: 10 | N26: 8 | O26: 0 | P26: 3 | Q26: 3 | R26: 0 | S26: 0 | T26: 0 | U26: 102 | W26: =AVERAGE(U26,U27) -> 101.5 | X26: PRÉ-SELECIONADO
A27: PESSOA FÍSICA | B27: on-435016902 | C27: Brasília | D27: DF | E27: CENTRO OESTE | F27: Avaliador 2 | G27: 20 | H27: 15 | I27: 12 | J27: 10 | K27: 10 | L27: 8 | M27: 10 | N27: 10 | O27: 0 | P27: 3 | Q27: 3 | R27: 0 | S27: 0 | T27: 0 | U27: 101 | W27: =W26 -> 101.5
A28: PESSOA FÍSICA | B28: =HYPERLINK("https://mapas.cultura.gov.br/inscricao/967108703","on-967108703") -> on-967108703 | C28: Sinop | D28: MT | E28: CENTRO OESTE | F28: Avaliador 1 | G28: 20 | H28: 15 | I28: 15 | J28: 10 | K28: 10 | L28: 10 | M28: 10 | N28: 10 | O28: 0 | P28: 0 | Q28: 3 | R28: 0 | S28: 0 | T28: 0 | U28: 103 | W28: =AVERAGE(U28,U29) -> 101.5 | X28: PRÉ-SELECIONADO
A29: PESSOA FÍSICA | B29: =HYPERLINK("https://mapas.cultura.gov.br/inscricao/967108703","on-967108703") -> on-967108703 | C29: Sinop | D29: MT | E29: CENTRO OESTE | F29: Avaliador 2 | G29: 20 | H29: 12 | I29: 15 | J29: 10 | K29: 10 | L29: 10 | M29: 10 | N29: 10 | O29: 0 | P29: 0 | Q29: 3 | R29: 0 | S29: 0 | T29: 0 | U29: 100 | W29: =W28 -> 101.5
A30: PESSOA FÍSICA | B30: =HYPERLINK("https://mapas.cultura.gov.br/inscricao/1732092918","on-1732092918") -> on-1732092918 | C30: Goiânia | D30: GO | E30: CENTRO OESTE | F30: Avaliador 1 | G30: 20 | H30: 8 | I30: 12 | J30: 8 | K30: 10 | L30: 8 | M30: 8 | N30: 10 | O30: 0 | P30: 0 | Q30: 3 | R30: 3 | S30: 3 | T30: 0 | U30: 93 | W30: =AVERAGE(U30,U31) -> 101 | X30: PRÉ-SELECIONADO
A31: PESSOA FÍSICA | B31: =HYPERLINK("https://mapas.cultura.gov.br/inscricao/1732092918","on-1732092918") -> on-1732092918 | C31: Goiânia | D31: GO | E31: CENTRO OESTE | F31: Avaliador 2 | G31: 20 | H31: 15 | I31: 15 | J31: 10 | K31: 10 | L31: 10 | M31: 10 | N31: 10 | O31: 0 | P31: 0 | Q31: 3 | R31: 3 | S31: 3 | T31: 0 | U31: 109 | W31: =W30 -> 101
A32: PESSOA FÍSICA | B32: =HYPERLINK("https://mapas.cultura.gov.br/inscricao/16111931","on-16111931") -> on-16111931 | C32: Ceilândia Sul | D32: DF | E32: CENTRO OESTE | F32: Avaliador 1 | G32: 20 | H32: 15 | I32: 15 | J32: 8 | K32: 10 | L32: 10 | M32: 10 | N32: 10 | O32: 0 | P32: 0 | Q32: 3 | R32: 0 | S32: 0 | T32: 0 | U32: 101 | W32: =AVERAGE(U32,U33) -> 101 | X32: PRÉ-SELECIONADO
A33: PESSOA FÍSICA | B33: on-16111931 | C33: Ceilândia Sul | D33: DF | E33: CENTRO OESTE | F33: Avaliador 2 | G33: 20 | H33: 15 | I33: 15 | J33: 8 | K33: 10 | L33: 10 | M33: 10 | N33: 10 | O33: 0 | P33: 0 | Q33: 3 | R33: 0 | S33: 0 | T33: 0 | U33: 101 | W33: =W32 -> 101
A34: PESSOA FÍSICA | B34: =HYPERLINK("https://mapas.cultura.gov.br/inscricao/981793679","on-981793679") -> on-981793679 | C34: Alto Paraíso de Goiás | D34: GO | E34: CENTRO OESTE | F34: Avaliador 1 | G34: 20 | H34: 12 | I34: 15 | J34: 8 | K34: 10 | L34: 10 | M34: 10 | N34: 10 | O34: 0 | P34: 0 | Q34: 3 | R34: 3 | S34: 0 | T34: 0 | U34: 101 | W34: =AVERAGE(U34,U35) -> 100.5 | X34: PRÉ-SELECIONADO
A35: PESSOA FÍSICA | B35: =HYPERLINK("https://mapas.cultura.gov.br/inscricao/981793679","on-981793679") -> on-981793679 | C35: Alto Paraíso de Goiás | D35: GO | E35: CENTRO OESTE | F35: Avaliador 2 | G35: 20 | H35: 15 | I35: 15 | J35: 8 | K35: 10 | L35: 8 | M35: 8 | N35: 10 | O35: 0 | P35: 0 | Q35: 3 | R35: 3 | S35: 0 | T35: 0 | U35: 100 | W35: =W34 -> 100.5
A36: PESSOA FÍSICA | B36: =HYPERLINK("https://mapas.cultura.gov.br/inscricao/557620781","on-557620781") -> on-557620781 | C36: Campo Grande | D36: MS | E36: CENTRO OESTE | F36: Avaliador 1 | G36: 20 | H36: 15 | I36: 15 | J36: 10 | K36: 8 | L36: 10 | M36: 10 | N36: 10 | O36: 0 | P36: 3 | Q36: 0 | R36: 0 | S36: 0 | T36: 0 | U36: 101 | W36: =AVERAGE(U36,U37) -> 100 | X36: CLASSIFICADO
A37: PESSOA FÍSICA | B37: =HYPERLINK("https://mapas.cultura.gov.br/inscricao/E23557620781","on-557620781") -> on-557620781 | C37: Campo Grande | D37: MS | E37: CENTRO OESTE | F37: Avaliador 2 | G37: 20 | H37: 15 | I37: 15 | J37: 10 | K37: 8 | L37: 10 | M37: 8 | N37: 10 | O37: 0 | P37: 3 | Q37: 0 | R37: 0 | S37: 0 | T37: 0 | U37: 99 | W37: =W36 -> 100
A38: PESSOA FÍSICA | B38: =HYPERLINK("https://mapas.cultura.gov.br/inscricao/795145307","on-795145307") -> on-795145307 | C38: Campo Grande | D38: MS | E38: CENTRO OESTE | F38: Avaliador 1 | G38: 20 | H38: 15 | I38: 15 | J38: 10 | K38: 8 | L38: 10 | M38: 10 | N38: 10 | O38: 0 | P38: 0 | Q38: 3 | R38: 0 | S38: 0 | T38: 0 | U38: 101 | W38: =AVERAGE(U38,U39) -> 100 | X38: CLASSIFICADO
A39: PESSOA FÍSICA | B39: =HYPERLINK("https://mapas.cultura.gov.br/inscricao/795145307","on-795145307") -> on-795145307 | C39: Campo Grande | D39: MS | E39: CENTRO OESTE | F39: Avaliador 2 | G39: 20 | H39: 15 | I39: 15 | J39: 8 | K39: 8 | L39: 10 | M39: 10 | N39: 10 | O39: 0 | P39: 0 | Q39: 3 | R39: 0 | S39: 0 | T39: 0 | U39: 99 | W39: =W38 -> 100
A40: PESSOA FÍSICA | B40: =HYPERLINK("https://mapas.cultura.gov.br/inscricao/1556586921","on-1556586921") -> on-1556586921 | C40: Pirenópolis | D40: GO | E40: CENTRO OESTE | F40: Avaliador 1 | G40: 20 | H40: 15 | I40: 15 | J40: 8 | K40: 8 | L40: 10 | M40: 10 | N40: 8 | O40: 0 | P40: 0 | Q40: 3 | R40: 0 | S40: 0 | T40: 0 | U40: 97 | W40: =AVERAGE(U40,U41) -> 100 | X40: CLASSIFICADO
A41: PESSOA FÍSICA | B41: =HYPERLINK("https://mapas.cultura.gov.br/inscricao/1556586921","on-1556586921") -> on-1556586921 | C41: Pirenópolis | D41: GO | E41: CENTRO OESTE | F41: Avaliador 2 | G41: 20 | H41: 15 | I41: 15 | J41: 10 | K41: 10 | L41: 10 | M41: 10 | N41: 10 | O41: 0 | P41: 0 | Q41: 3 | R41: 0 | S41: 0 | T41: 0 | U41: 103 | W41: =W40 -> 100
A42: PESSOA FÍSICA | B42: =HYPERLINK("https://mapas.cultura.gov.br/inscricao/186423618","on-186423618") -> on-186423618 | C42: Rosário Oeste | D42: MT | E42: CENTRO OESTE | F42: Avaliador 1 | G42: 20 | H42: 15 | I42: 15 | J42: 10 | K42: 10 | L42: 10 | M42: 10 | N42: 10 | O42: 0 | P42: 0 | Q42: 3 | R42: 0 | S42: 0 | T42: 0 | U42: 103 | W42: =AVERAGE(U42,U43) -> 100 | X42: CLASSIFICADO
A43: PESSOA FÍSICA | B43: =HYPERLINK("https://mapas.cultura.gov.br/inscricao/186423618","on-186423618") -> on-186423618 | C43: Rosário Oeste | D43: MT | E43: CENTRO OESTE | F43: Avaliador 2 | G43: 20 | H43: 15 | I43: 15 | J43: 8 | K43: 8 | L43: 10 | M43: 10 | N43: 8 | O43: 0 | P43: 0 | Q43: 3 | R43: 0 | S43: 0 | T43: 0 | U43: 97 | W43: =W42 -> 100
A44: PESSOA FÍSICA | B44: =HYPERLINK("https://mapas.cultura.gov.br/inscricao/1526570816","on-1526570816") -> on-1526570816 | C44: Dourados | D44: MS | E44: CENTRO OESTE | F44: Avaliador 1 | G44: 20 | H44: 15 | I44: 15 | J44: 10 | K44: 10 | L44: 10 | M44: 10 | N44: 10 | O44: 0 | P44: 0 | Q44: 0 | R44: 0 | S44: 0 | T44: 0 | U44: 100 | W44: =AVERAGE(U44,U45) -> 100 | X44: CLASSIFICADO
A45: PESSOA FÍSICA | B45: =HYPERLINK("https://mapas.cultura.gov.br/inscricao/1526570816","on-1526570816") -> on-1526570816 | C45: Dourados | D45: MS | E45: CENTRO OESTE | F45: Avaliador 2 | G45: 20 | H45: 15 | I45: 15 | J45: 10 | K45: 10 | L45: 10 | M45: 10 | N45: 10 | O45: 0 | P45: 0 | Q45: 0 | R45: 0 | S45: 0 | T45: 0 | U45: 100 | W45: =W44 -> 100
A46: PESSOA FÍSICA | B46: =HYPERLINK("https://mapas.cultura.gov.br/inscricao/162973513","on-162973513") -> on-162973513 | C46: Goiânia | D46: GO | E46: CENTRO OESTE | F46: Avaliador 1 | G46: 20 | H46: 12 | I46: 15 | J46: 5 | K46: 10 | L46: 10 | M46: 10 | N46: 5 | O46: 0 | P46: 0 | Q46: 3 | R46: 0 | S46: 3 | T46: 0 | U46: 93 | W46: =AVERAGE(U46,U47) -> 99.5 | X46: CLASSIFICADO
A47: PESSOA FÍSICA | B47: =HYPERLINK("https://mapas.cultura.gov.br/inscricao/162973513","on-162973513") -> on-162973513 | C47: Goiânia | D47: GO | E47: CENTRO OESTE | F47: Avaliador 2 | G47: 20 | H47: 15 | I47: 15 | J47: 10 | K47: 10 | L47: 10 | M47: 10 | N47: 10 | O47: 0 | P47: 0 | Q47: 3 | R47: 0 | S47: 3 | T47: 0 | U47: 106 | W47: =W46 -> 99.5
A48: PESSOA FÍSICA | B48: =HYPERLINK("https://mapas.cultura.gov.br/inscricao/736149259","on-736149259") -> on-736149259 | C48: Rio Verde | D48: GO | E48: CENTRO OESTE | F48: Avaliador 1 | G48: 20 | H48: 15 | I48: 15 | J48: 8 | K48: 8 | L48: 10 | M48: 8 | N48: 8 | O48: 0 | P48: 0 | Q48: 3 | R48: 0 | S48: 0 | T48: 0 | U48: 95 | W48: =AVERAGE(U48,U49) -> 99 | X48: CLASSIFICADO
A49: PESSOA FÍSICA | B49: =HYPERLINK("https://mapas.cultura.gov.br/inscricao/736149259","on-736149259") -> on-736149259 | C49: Rio Verde | D49: GO | E49: CENTRO OESTE | F49: Avaliador 2 | G49: 20 | H49: 15 | I49: 15 | J49: 10 | K49: 10 | L49: 10 | M49: 10 | N49: 10 | O49: 0 | P49: 0 | Q49: 3 | R49: 0 | S49: 0 | T49: 0 | U49: 103 | W49: =W48 -> 99
A50: PESSOA FÍSICA | B50: =HYPERLINK("https://mapas.cultura.gov.br/inscricao/1216136740","on-1216136740") -> on-1216136740 | C50: Campo Grande | D50: MS | E50: CENTRO OESTE | F50: Avaliador 1 | G50: 20 | H50: 15 | I50: 15 | J50: 8 | K50: 10 | L50: 10 | M50: 10 | N50: 8 | O50: 0 | P50: 0 | Q50: 3 | R50: 0 | S50: 0 | T50: 0 | U50: 99 | W50: =AVERAGE(U50,U51) -> 99 | X50: CLASSIFICADO
A51: PESSOA FÍSICA | B51: =HYPERLINK("https://mapas.cultura.gov.br/inscricao/1216136740","on-1216136740") -> on-1216136740 | C51: Campo Grande | D51: MS | E51: CENTRO OESTE | F51: Avaliador 2 | G51: 20 | H51: 15 | I51: 15 | J51: 8 | K51: 10 | L51: 10 | M51: 10 | N51: 8 | O51: 0 | P51: 0 | Q51: 3 | R51: 0 | S51: 0 | T51: 0 | U51: 99 | W51: =W50 -> 99
A52: PESSOA FÍSICA | B52: =HYPERLINK("https://mapas.cultura.gov.br/inscricao/2071108731","on-2071108731") -> on-2071108731 | C52: Campo Grande | D52: MS | E52: CENTRO OESTE | F52: Avaliador 1 | G52: 20 | H52: 15 | I52: 15 | J52: 5 | K52: 10 | L52: 10 | M52: 10 | N52: 10 | O52: 0 | P52: 0 | Q52: 3 | R52: 0 | S52: 0 | T52: 0 | U52: 98 | W52: =AVERAGE(U52,U53) -> 98 | X52: CLASSIFICADO
A53: PESSOA FÍSICA | B53: =HYPERLINK("https://mapas.cultura.gov.br/inscricao/2071108731","on-2071108731") -> on-2071108731 | C53: Campo Grande | D53: MS | E53: CENTRO OESTE | F53: Avaliador 2 | G53: 20 | H53: 15 | I53: 15 | J53: 5 | K53: 10 | L53: 10 | M53: 10 | N53: 10 | O53: 0 | P53: 0 | Q53: 3 | R53: 0 | S53: 0 | T53: 0 | U53: 98 | W53: =W52 -> 98
A54: PESSOA FÍSICA | B54: =HYPERLINK("https://mapas.cultura.gov.br/inscricao/644320938","on-644320938") -> on-644320938 | C54: Cuiabá | D54: MT | E54: CENTRO OESTE | F54: Avaliador 1 | G54: 20 | H54: 15 | I54: 15 | J54: 10 | K54: 10 | L54: 10 | M54: 10 | N54: 10 | O54: 0 | P54: 0 | Q54: 3 | R54: 0 | S54: 0 | T54: 0 | U54: 103 | W54: =AVERAGE(U54,U55) -> 98 | X54: CLASSIFICADO
A55: PESSOA FÍSICA | B55: =HYPERLINK("https://mapas.cultura.gov.br/inscricao/644320938","on-644320938") -> on-644320938 | C55: Cuiabá | D55: MT | E55: CENTRO OESTE | F55: Avaliador 2 | G55: 20 | H55: 15 | I55: 15 | J55: 10 | K55: 10 | L55: 10 | M55: 10 | N55: 0 | O55: 0 | P55: 0 | Q55: 3 | R55: 0 | S55: 0 | T55: 0 | U55: 93 | W55: =W54 -> 98
A56: PESSOA FÍSICA | B56: =HYPERLINK("https://mapas.cultura.gov.br/inscricao/291819066","on-291819066") -> on-291819066 | C56: Sol Nascente | D56: DF | E56: CENTRO OESTE | F56: Avaliador 1 | G56: 10 | H56: 15 | I56: 15 | J56: 10 | K56: 8 | L56: 8 | M56: 10 | N56: 10 | O56: 0 | P56: 3 | Q56: 3 | R56: 3 | S56: 3 | T56: 0 | U56: 98 | W56: =AVERAGE(U56,U57) -> 97.5 | X56: CLASSIFICADO
A57: PESSOA FÍSICA | B57: on-291819066 | C57: Sol Nascente | D57: DF | E57: CENTRO OESTE | F57: Avaliador 2 | G57: 15 | H57: 12 | I57: 15 | J57: 10 | K57: 10 | L57: 10 | M57: 8 | N57: 5 | O57: 0 | P57: 3 | Q57: 3 | R57: 3 | S57: 3 | T57: 0 | U57: 97 | W57: =W56 -> 97.5
A58: PESSOA FÍSICA | B58: =HYPERLINK("https://mapas.cultura.gov.br/inscricao/803851951","on-803851951") -> on-803851951 | C58: Campo Grande | D58: MS | E58: CENTRO OESTE | F58: Avaliador 1 | G58: 10 | H58: 12 | I58: 12 | J58: 10 | K58: 10 | L58: 8 | M58: 10 | N58: 10 | O58: 0 | P58: 3 | Q58: 3 | R58: 0 | S58: 0 | T58: 0 | U58: 88 | W58: =AVERAGE(U58,U59) -> 97 | X58: CLASSIFICADO
A59: PESSOA FÍSICA | B59: =HYPERLINK("https://mapas.cultura.gov.br/inscricao/803851951","on-803851951") -> on-803851951 | C59: Campo Grande | D59: MS | E59: CENTRO OESTE | F59: Avaliador 2 | G59: 20 | H59: 15 | I59: 15 | J59: 10 | K59: 10 | L59: 10 | M59: 10 | N59: 10 | O59: 0 | P59: 3 | Q59: 3 | R59: 0 | S59: 0 | T59: 0 | U59: 106 | W59: =W58 -> 97
A60: PESSOA FÍSICA | B60: =HYPERLINK("https://mapas.cultura.gov.br/inscricao/434344429","on-434344429") -> on-434344429 | C60: Ceilândia- Distrito Federal | D60: DF | E60: CENTRO OESTE | F60: Avaliador 1 | G60: 15 | H60: 15 | I60: 12 | J60: 8 | K60: 8 | L60: 10 | M60: 10 | N60: 8 | O60: 3 | P60: 3 | Q60: 3 | R60: 0 | S60: 3 | T60: 0 | U60: 98 | W60: =AVERAGE(U60,U61) -> 96.5 | X60: CLASSIFICADO
A61: PESSOA FÍSICA | B61: on-434344429 | C61: Ceilândia- Distrito Federal | D61: DF | E61: CENTRO OESTE | F61: Avaliador 2 | G61: 15 | H61: 12 | I61: 12 | J61: 10 | K61: 8 | L61: 8 | M61: 10 | N61: 8 | O61: 3 | P61: 3 | Q61: 3 | R61: 0 | S61: 3 | T61: 0 | U61: 95 | W61: =W60 -> 96.5
A62: PESSOA FÍSICA | B62: =HYPERLINK("https://mapas.cultura.gov.br/inscricao/1570176045","on-1570176045") -> on-1570176045 | C62: Goiânia | D62: GO | E62: CENTRO OESTE | F62: Avaliador 1 | G62: 20 | H62: 15 | I62: 15 | J62: 8 | K62: 8 | L62: 10 | M62: 10 | N62: 8 | O62: 0 | P62: 3 | Q62: 3 | R62: 0 | S62: 0 | T62: 0 | U62: 100 | W62: =AVERAGE(U62,U63) -> 96 | X62: CLASSIFICADO
A63: PESSOA FÍSICA | B63: =HYPERLINK("https://mapas.cultura.gov.br/inscricao/1570176045","on-1570176045") -> on-1570176045 | C63: Goiânia | D63: GO | E63: CENTRO OESTE | F63: Avaliador 2 | G63: 20 | H63: 12 | I63: 12 | J63: 10 | K63: 8 | L63: 8 | M63: 8 | N63: 8 | O63: 0 | P63: 3 | Q63: 3 | R63: 0 | S63: 0 | T63: 0 | U63: 92 | W63: =W62 -> 96
A64: PESSOA FÍSICA | B64: =HYPERLINK("https://mapas.cultura.gov.br/inscricao/1788857021","on-1788857021") -> on-1788857021 | C64: Campo Grande | D64: MS | E64: CENTRO OESTE | F64: Avaliador 1 | G64: 20 | H64: 15 | I64: 15 | J64: 8 | K64: 10 | L64: 10 | M64: 8 | N64: 10 | O64: 0 | P64: 0 | Q64: 0 | R64: 0 | S64: 0 | T64: 0 | U64: 96 | W64: =AVERAGE(U64,U65) -> 96 | X64: CLASSIFICADO
A65: PESSOA FÍSICA | B65: =HYPERLINK("https://mapas.cultura.gov.br/inscricao/1788857021","on-1788857021") -> on-1788857021 | C65: Campo Grande | D65: MS | E65: CENTRO OESTE | F65: Avaliador 2 | G65: 20 | H65: 15 | I65: 15 | J65: 8 | K65: 10 | L65: 10 | M65: 8 | N65: 10 | O65: 0 | P65: 0 | Q65: 0 | R65: 0 | S65: 0 | T65: 0 | U65: 96 | W65: =W64 -> 96
A66: PESSOA FÍSICA | B66: =HYPERLINK("https://mapas.cultura.gov.br/inscricao/98231722","on-98231722") -> on-98231722 | C66: Campo Grande | D66: MS | E66: CENTRO OESTE | F66: Avaliador 1 | G66: 20 | H66: 15 | I66: 12 | J66: 8 | K66: 10 | L66: 10 | M66: 10 | N66: 8 | O66: 0 | P66: 0 | Q66: 3 | R66: 0 | S66: 0 | T66: 0 | U66: =SUM(G66:T66) -> 96 | W66: =AVERAGE(U66,U67) -> 96 | X66: CLASSIFICADO
A67: PESSOA FÍSICA | B67: =HYPERLINK("https://mapas.cultura.gov.br/inscricao/98231722","on-98231722") -> on-98231722 | C67: Campo Grande | D67: MS | E67: CENTRO OESTE | F67: Avaliador 2 | G67: 20 | H67: 15 | I67: 12 | J67: 8 | K67: 10 | L67: 10 | M67: 10 | N67: 8 | O67: 0 | P67: 0 | Q67: 3 | R67: 0 | S67: 0 | T67: 0 | U67: 96 | W67: =W66 -> 96
A68: PESSOA FÍSICA | B68: =HYPERLINK("https://mapas.cultura.gov.br/inscricao/1814167488","on-1814167488") -> on-1814167488 | C68: Campo Grande | D68: MS | E68: CENTRO OESTE | F68: Avaliador 1 | G68: 20 | H68: 15 | I68: 15 | J68: 8 | K68: 10 | L68: 10 | M68: 10 | N68: 8 | O68: 0 | P68: 0 | Q68: 0 | R68: 0 | S68: 0 | T68: 0 | U68: 96 | W68: =AVERAGE(U68,U69) -> 96 | X68: CLASSIFICADO
A69: PESSOA FÍSICA | B69: =HYPERLINK("https://mapas.cultura.gov.br/inscricao/E301814167488","on-1814167488") -> on-1814167488 | C69: Campo Grande | D69: MS | E69: CENTRO OESTE | F69: Avaliador 2 | G69: 20 | H69: 15 | I69: 15 | J69: 8 | K69: 10 | L69: 10 | M69: 10 | N69: 8 | O69: 0 | P69: 0 | Q69: 0 | R69: 0 | S69: 0 | T69: 0 | U69: 96 | W69: =W68 -> 96
A70: PESSOA FÍSICA | B70: =HYPERLINK("https://mapas.cultura.gov.br/inscricao/2062524963","on-2062524963") -> on-2062524963 | C70: Cuiabá | D70: MT | E70: CENTRO OESTE | F70: Avaliador 1 | G70: 20 | H70: 15 | I70: 15 | J70: 10 | K70: 10 | L70: 10 | M70: 10 | N70: 10 | O70: 0 | P70: 0 | Q70: 3 | R70: 0 | S70: 0 | T70: 0 | U70: 103 | W70: =AVERAGE(U70,U71) -> 95.5 | X70: CLASSIFICADO
A71: PESSOA FÍSICA | B71: =HYPERLINK("https://mapas.cultura.gov.br/inscricao/2062524963","on-2062524963") -> on-2062524963 | C71: Cuiabá | D71: MT | E71: CENTRO OESTE | F71: Avaliador 2 | G71: 20 | H71: 12 | I71: 12 | J71: 8 | K71: 10 | L71: 8 | M71: 5 | N71: 10 | O71: 0 | P71: 0 | Q71: 3 | R71: 0 | S71: 0 | T71: 0 | U71: 88 | W71: =W70 -> 95.5
A72: PESSOA FÍSICA | B72: =HYPERLINK("https://mapas.cultura.gov.br/inscricao/855305357","on-855305357") -> on-855305357 | C72: SAMAMBAIA NORTE | D72: DF | E72: CENTRO OESTE | F72: Avaliador 1 | G72: 15 | H72: 15 | I72: 12 | J72: 10 | K72: 8 | L72: 10 | M72: 10 | N72: 8 | O72: 0 | P72: 3 | Q72: 3 | R72: 0 | S72: 3 | T72: 0 | U72: 97 | W72: =AVERAGE(U72,U73) -> 95.5 | X72: CLASSIFICADO
A73: PESSOA FÍSICA | B73: on-855305357 | C73: Samambaia Norte | D73: DF | E73: CENTRO OESTE | F73: Avaliador 2 | G73: 20 | H73: 12 | I73: 15 | J73: 10 | K73: 8 | L73: 10 | M73: 10 | N73: 0 | O73: 0 | P73: 3 | Q73: 3 | R73: 0 | S73: 3 | T73: 0 | U73: 94 | W73: =W72 -> 95.5
A74: PESSOA FÍSICA | B74: POSTAL 7 | C74: Riacho Fundo 2 | D74: DF | E74: CENTRO OESTE | F74: Avaliador 1 | G74: 15 | H74: 15 | I74: 12 | J74: 10 | K74: 10 | L74: 10 | M74: 10 | N74: 8 | O74: 0 | P74: 0 | Q74: 3 | R74: 0 | S74: 0 | T74: 0 | U74: 93 | W74: =AVERAGE(U74,U75) -> 95.5 | X74: CLASSIFICADO
A75: PESSOA FÍSICA | B75: POSTAL 7 | C75: Riacho Fundo 2 | D75: DF | E75: CENTRO OESTE | F75: Avaliador 2 | G75: 20 | H75: 12 | I75: 15 | J75: 8 | K75: 10 | L75: 10 | M75: 10 | N75: 10 | O75: 0 | P75: 0 | Q75: 3 | R75: 0 | S75: 0 | T75: 0 | U75: 98 | W75: =W74 -> 95.5
A76: PESSOA FÍSICA | B76: =HYPERLINK("https://mapas.cultura.gov.br/inscricao/2048981504","on-2048981504") -> on-2048981504 | C76: Luziânia | D76: GO | E76: CENTRO OESTE | F76: Avaliador 1 | G76: 20 | H76: 12 | I76: 12 | J76: 5 | K76: 10 | L76: 10 | M76: 10 | N76: 5 | O76: 0 | P76: 0 | Q76: 3 | R76: 0 | S76: 0 | T76: 0 | U76: 87 | W76: =AVERAGE(U76,U77) -> 95 | X76: CLASSIFICADO
A77: PESSOA FÍSICA | B77: =HYPERLINK("https://mapas.cultura.gov.br/inscricao/2048981504","on-2048981504") -> on-2048981504 | C77: Luziânia | D77: GO | E77: CENTRO OESTE | F77: Avaliador 2 | G77: 20 | H77: 15 | I77: 15 | J77: 10 | K77: 10 | L77: 10 | M77: 10 | N77: 10 | O77: 0 | P77: 0 | Q77: 3 | R77: 0 | S77: 0 | T77: 0 | U77: 103 | W77: =W76 -> 95
A78: PESSOA FÍSICA | B78: =HYPERLINK("https://mapas.cultura.gov.br/inscricao/291084938","on-291084938") -> on-291084938 | C78: Campo Grande | D78: MS | E78: CENTRO OESTE | F78: Avaliador 1 | G78: 20 | H78: 15 | I78: 15 | J78: 5 | K78: 10 | L78: 10 | M78: 10 | N78: 10 | O78: 0 | P78: 0 | Q78: 0 | R78: 0 | S78: 0 | T78: 0 | U78: 95 | W78: =AVERAGE(U78,U79) -> 95 | X78: CLASSIFICADO
A79: PESSOA FÍSICA | B79: =HYPERLINK("https://mapas.cultura.gov.br/inscricao/291084938","on-291084938") -> on-291084938 | C79: Campo Grande | D79: MS | E79: CENTRO OESTE | F79: Avaliador 2 | G79: 20 | H79: 15 | I79: 15 | J79: 5 | K79: 10 | L79: 10 | M79: 10 | N79: 10 | O79: 0 | P79: 0 | Q79: 0 | R79: 0 | S79: 0 | T79: 0 | U79: 95 | W79: =W78 -> 95
A80: PESSOA FÍSICA | B80: =HYPERLINK("https://mapas.cultura.gov.br/inscricao/1545194887","on-1545194887") -> on-1545194887 | C80: Valparaíso do Goiás | D80: GO | E80: CENTRO OESTE | F80: Avaliador 1 | G80: 20 | H80: 15 | I80: 12 | J80: 10 | K80: 10 | L80: 10 | M80: 8 | N80: 8 | O80: 0 | P80: 3 | Q80: 0 | R80: 0 | S80: 3 | T80: 0 | U80: 99 | W80: =AVERAGE(U80,U81) -> 94.5 | X80: CLASSIFICADO
A81: PESSOA FÍSICA | B81: =HYPERLINK("https://mapas.cultura.gov.br/inscricao/1545194887","on-1545194887") -> on-1545194887 | C81: Valparaíso do Goiás | D81: GO | E81: CENTRO OESTE | F81: Avaliador 2 | G81: 20 | H81: 15 | I81: 12 | J81: 8 | K81: 8 | L81: 8 | M81: 8 | N81: 5 | O81: 0 | P81: 3 | Q81: 0 | R81: 0 | S81: 3 | T81: 0 | U81: 90 | W81: =W80 -> 94.5
A82: PESSOA FÍSICA | B82: =HYPERLINK("https://mapas.cultura.gov.br/inscricao/3128791","on-3128791") -> on-3128791 | C82: Riacho Fundo II | D82: DF | E82: CENTRO OESTE | F82: Avaliador 1 | G82: 20 | H82: 15 | I82: 15 | J82: 8 | K82: 10 | L82: 10 | M82: 10 | N82: 8 | O82: 0 | P82: 0 | Q82: 0 | R82: 0 | S82: 0 | T82: 0 | U82: 96 | W82: =AVERAGE(U82,U83) -> 94.5 | X82: CLASSIFICADO
A83: PESSOA FÍSICA | B83: on-3128791 | C83: Riacho Fundo II | D83: DF | E83: CENTRO OESTE | F83: Avaliador 2 | G83: 20 | H83: 15 | I83: 15 | J83: 8 | K83: 10 | L83: 10 | M83: 10 | N83: 5 | O83: 0 | P83: 0 | Q83: 0 | R83: 0 | S83: 0 | T83: 0 | U83: 93 | W83: =W82 -> 94.5
A84: PESSOA FÍSICA | B84: =HYPERLINK("https://mapas.cultura.gov.br/inscricao/9305149","on-9305149") -> on-9305149 | C84: Cuiabá | D84: MT | E84: CENTRO OESTE | F84: Avaliador 1 | G84: 20 | H84: 15 | I84: 12 | J84: 8 | K84: 8 | L84: 8 | M84: 8 | N84: 8 | O84: 0 | P84: 0 | Q84: 3 | R84: 0 | S84: 0 | T84: 0 | U84: 90 | W84: =AVERAGE(U84,U85) -> 93 | X84: CLASSIFICADO
A85: PESSOA FÍSICA | B85: =HYPERLINK("https://mapas.cultura.gov.br/inscricao/9305149","on-9305149") -> on-9305149 | C85: Cuiabá | D85: MT | E85: CENTRO OESTE | F85: Avaliador 2 | G85: 20 | H85: 15 | I85: 15 | J85: 5 | K85: 8 | L85: 10 | M85: 10 | N85: 10 | O85: 0 | P85: 0 | Q85: 3 | R85: 0 | S85: 0 | T85: 0 | U85: 96 | W85: =W84 -> 93
A86: PESSOA FÍSICA | B86: =HYPERLINK("https://mapas.cultura.gov.br/inscricao/1827139912","on-1827139912") -> on-1827139912 | C86: Aparecida de Goiânia | D86: GO | E86: CENTRO OESTE | F86: Avaliador 1 | G86: 20 | H86: 8 | I86: 12 | J86: 8 | K86: 10 | L86: 10 | M86: 10 | N86: 5 | O86: 0 | P86: 3 | Q86: 3 | R86: 0 | S86: 0 | T86: 0 | U86: 89 | W86: =AVERAGE(U86,U87) -> 92.5 | X86: CLASSIFICADO
A87: PESSOA FÍSICA | B87: =HYPERLINK("https://mapas.cultura.gov.br/inscricao/1827139912","on-1827139912") -> on-1827139912 | C87: Aparecida de Goiânia | D87: GO | E87: CENTRO OESTE | F87: Avaliador 2 | G87: 20 | H87: 15 | I87: 15 | J87: 8 | K87: 8 | L87: 8 | M87: 8 | N87: 8 | O87: 0 | P87: 3 | Q87: 3 | R87: 0 | S87: 0 | T87: 0 | U87: 96 | W87: =W86 -> 92.5
A88: PESSOA FÍSICA | B88: =HYPERLINK("https://mapas.cultura.gov.br/inscricao/1602992743","on-1602992743") -> on-1602992743 | C88: Valparaíso de Goiás | D88: GO | E88: CENTRO OESTE | F88: Avaliador 1 | G88: 20 | H88: 15 | I88: 15 | J88: 0 | K88: 8 | L88: 10 | M88: 10 | N88: 8 | O88: 0 | P88: 0 | Q88: 3 | R88: 0 | S88: 0 | T88: 0 | U88: 89 | W88: =AVERAGE(U88,U89) -> 92.5 | X88: CLASSIFICADO
A89: PESSOA FÍSICA | B89: =HYPERLINK("https://mapas.cultura.gov.br/inscricao/1602992743","on-1602992743") -> on-1602992743 | C89: Valparaíso de Goiás | D89: GO | E89: CENTRO OESTE | F89: Avaliador 2 | G89: 20 | H89: 15 | I89: 15 | J89: 3 | K89: 10 | L89: 10 | M89: 10 | N89: 10 | O89: 0 | P89: 0 | Q89: 3 | R89: 0 | S89: 0 | T89: 0 | U89: 96 | W89: =W88 -> 92.5
A90: PESSOA FÍSICA | B90: =HYPERLINK("https://mapas.cultura.gov.br/inscricao/1879174349","on-1879174349") -> on-1879174349 | C90: Cuiabá | D90: MT | E90: CENTRO OESTE | F90: Avaliador 1 | G90: 15 | H90: 12 | I90: 12 | J90: 10 | K90: 10 | L90: 8 | M90: 8 | N90: 8 | O90: 0 | P90: 3 | Q90: 3 | R90: 0 | S90: 0 | T90: 0 | U90: 89 | W90: =AVERAGE(U90,U91) -> 92.5 | X90: CLASSIFICADO
A91: PESSOA FÍSICA | B91: =HYPERLINK("https://mapas.cultura.gov.br/inscricao/1879174349","on-1879174349") -> on-1879174349 | C91: Cuiabá | D91: MT | E91: CENTRO OESTE | F91: Avaliador 2 | G91: 20 | H91: 15 | I91: 15 | J91: 10 | K91: 0 | L91: 10 | M91: 10 | N91: 10 | O91: 0 | P91: 3 | Q91: 3 | R91: 0 | S91: 0 | T91: 0 | U91: 96 | W91: =W90 -> 92.5
A92: PESSOA FÍSICA | B92: =HYPERLINK("https://mapas.cultura.gov.br/inscricao/886961608","on-886961608") -> on-886961608 | C92: Goiânia | D92: GO | E92: CENTRO OESTE | F92: Avaliador 1 | G92: 20 | H92: 15 | I92: 15 | J92: 8 | K92: 10 | L92: 10 | M92: 10 | N92: 8 | O92: 0 | P92: 3 | Q92: 3 | R92: 0 | S92: 0 | T92: 0 | U92: 102 | W92: =AVERAGE(U92,U93) -> 92 | X92: CLASSIFICADO
A93: PESSOA FÍSICA | B93: =HYPERLINK("https://mapas.cultura.gov.br/inscricao/886961608","on-886961608") -> on-886961608 | C93: Goiânia | D93: GO | E93: CENTRO OESTE | F93: Avaliador 2 | G93: 15 | H93: 12 | I93: 8 | J93: 10 | K93: 5 | L93: 10 | M93: 8 | N93: 8 | O93: 0 | P93: 3 | Q93: 3 | R93: 0 | S93: 0 | T93: 0 | U93: 82 | W93: =W92 -> 92
A94: PESSOA FÍSICA | B94: =HYPERLINK("https://mapas.cultura.gov.br/inscricao/923453413","on-923453413") -> on-923453413 | C94: Valparaíso de Goiás | D94: GO | E94: CENTRO OESTE | F94: Avaliador 1 | G94: 20 | H94: 12 | I94: 15 | J94: 0 | K94: 10 | L94: 10 | M94: 10 | N94: 8 | O94: 0 | P94: 0 | Q94: 3 | R94: 0 | S94: 0 | T94: 0 | U94: 88 | W94: =AVERAGE(U94,U95) -> 91.5 | X94: CLASSIFICADO
A95: PESSOA FÍSICA | B95: =HYPERLINK("https://mapas.cultura.gov.br/inscricao/923453413","on-923453413") -> on-923453413 | C95: Valparaíso de Goiás | D95: GO | E95: CENTRO OESTE | F95: Avaliador 2 | G95: 20 | H95: 15 | I95: 15 | J95: 8 | K95: 10 | L95: 8 | M95: 8 | N95: 8 | O95: 0 | P95: 0 | Q95: 3 | R95: 0 | S95: 0 | T95: 0 | U95: 95 | W95: =W94 -> 91.5
A96: PESSOA FÍSICA | B96: =HYPERLINK("https://mapas.cultura.gov.br/inscricao/764907107","on-764907107") -> on-764907107 | C96: Trindade | D96: GO | E96: CENTRO OESTE | F96: Avaliador 1 | G96: 20 | H96: 12 | I96: 15 | J96: 8 | K96: 10 | L96: 10 | M96: 10 | N96: 8 | O96: 0 | P96: 0 | Q96: 3 | R96: 0 | S96: 0 | T96: 0 | U96: 96 | W96: =AVERAGE(U96,U97) -> 91 | X96: CLASSIFICADO
A97: PESSOA FÍSICA | B97: =HYPERLINK("https://mapas.cultura.gov.br/inscricao/764907107","on-764907107") -> on-764907107 | C97: Trindade | D97: GO | E97: CENTRO OESTE | F97: Avaliador 2 | G97: 20 | H97: 12 | I97: 12 | J97: 8 | K97: 10 | L97: 8 | M97: 8 | N97: 5 | O97: 0 | P97: 0 | Q97: 3 | R97: 0 | S97: 0 | T97: 0 | U97: 86 | W97: =W96 -> 91
A98: PESSOA FÍSICA | B98: =HYPERLINK("https://mapas.cultura.gov.br/inscricao/1480907","on-1480907") -> on-1480907 | C98: Cuiabá | D98: MT | E98: CENTRO OESTE | F98: Avaliador 1 | G98: 20 | H98: 15 | I98: 12 | J98: 8 | K98: 10 | L98: 10 | M98: 10 | N98: 10 | O98: 0 | P98: 0 | Q98: 3 | R98: 0 | S98: 0 | T98: 0 | U98: 98 | W98: =AVERAGE(U98,U99) -> 91 | X98: CLASSIFICADO
A99: PESSOA FÍSICA | B99: =HYPERLINK("https://mapas.cultura.gov.br/inscricao/1480907","on-1480907") -> on-1480907 | C99: Cuiabá | D99: MT | E99: CENTRO OESTE | F99: Avaliador 2 | G99: 15 | H99: 12 | I99: 12 | J99: 8 | K99: 8 | L99: 8 | M99: 8 | N99: 10 | O99: 0 | P99: 0 | Q99: 3 | R99: 0 | S99: 0 | T99: 0 | U99: 84 | W99: =W98 -> 91
A100: PESSOA FÍSICA | B100: =HYPERLINK("https://mapas.cultura.gov.br/inscricao/1115869505","on-1115869505") -> on-1115869505 | C100: Goiânia | D100: GO | E100: CENTRO OESTE | F100: Avaliador 1 | G100: 20 | H100: 12 | I100: 12 | J100: 8 | K100: 8 | L100: 8 | M100: 8 | N100: 3 | O100: 0 | P100: 3 | Q100: 3 | R100: 0 | S100: 0 | T100: 0 | U100: 85 | W100: =AVERAGE(U100,U101) -> 91 | X100: CLASSIFICADO
A101: PESSOA FÍSICA | B101: =HYPERLINK("https://mapas.cultura.gov.br/inscricao/1115869505","on-1115869505") -> on-1115869505 | C101: Goiânia | D101: GO | E101: CENTRO OESTE | F101: Avaliador 2 | G101: 20 | H101: 15 | I101: 15 | J101: 8 | K101: 10 | L101: 8 | M101: 10 | N101: 5 | O101: 0 | P101: 3 | Q101: 3 | R101: 0 | S101: 0 | T101: 0 | U101: 97 | W101: =W100 -> 91
A102: PESSOA FÍSICA | B102: =HYPERLINK("https://mapas.cultura.gov.br/inscricao/410777029","on-410777029") -> on-410777029 | C102: Uruaçu | D102: GO | E102: CENTRO OESTE | F102: Avaliador 1 | G102: 20 | H102: 15 | I102: 15 | J102: 10 | K102: 8 | L102: 10 | M102: 10 | N102: 0 | O102: 0 | P102: 3 | Q102: 3 | R102: 0 | S102: 3 | T102: 0 | U102: 97 | W102: =AVERAGE(U102,U103) -> 90.5 | X102: CLASSIFICADO
A103: PESSOA FÍSICA | B103: =HYPERLINK("https://mapas.cultura.gov.br/inscricao/410777029","on-410777029") -> on-410777029 | C103: Uruaçu | D103: GO | E103: CENTRO OESTE | F103: Avaliador 2 | G103: 20 | H103: 12 | I103: 12 | J103: 10 | K103: 8 | L103: 8 | M103: 5 | N103: 0 | O103: 0 | P103: 3 | Q103: 3 | R103: 0 | S103: 3 | T103: 0 | U103: 84 | W103: =W102 -> 90.5
A104: PESSOA FÍSICA | B104: =HYPERLINK("https://mapas.cultura.gov.br/inscricao/430099433","on-430099433") -> on-430099433 | C104: Goiânia | D104: GO | E104: CENTRO OESTE | F104: Avaliador 1 | G104: 15 | H104: 12 | I104: 12 | J104: 10 | K104: 8 | L104: 10 | M104: 8 | N104: 3 | O104: 0 | P104: 3 | Q104: 0 | R104: 0 | S104: 3 | T104: 0 | U104: 84 | W104: =AVERAGE(U104,U105) -> 90.5 | X104: CLASSIFICADO
A105: PESSOA FÍSICA | B105: =HYPERLINK("https://mapas.cultura.gov.br/inscricao/430099433","on-430099433") -> on-430099433 | C105: Goiânia | D105: GO | E105: CENTRO OESTE | F105: Avaliador 2 | G105: 20 | H105: 15 | I105: 12 | J105: 8 | K105: 10 | L105: 10 | M105: 8 | N105: 8 | O105: 0 | P105: 3 | Q105: 0 | R105: 0 | S105: 3 | T105: 0 | U105: 97 | W105: =W104 -> 90.5
A106: PESSOA FÍSICA | B106: =HYPERLINK("https://mapas.cultura.gov.br/inscricao/764522283","on-764522283") -> on-764522283 | C106: Ceilândia | D106: DF | E106: CENTRO OESTE | F106: Avaliador 1 | G106: 15 | H106: 12 | I106: 12 | J106: 8 | K106: 5 | L106: 8 | M106: 8 | N106: 5 | O106: 0 | P106: 3 | Q106: 3 | R106: 0 | S106: 3 | T106: 0 | U106: 82 | W106: =AVERAGE(U106,U107) -> 89.5 | X106: CLASSIFICADO
A107: PESSOA FÍSICA | B107: on-764522283 | C107: Ceilândia | D107: DF | E107: CENTRO OESTE | F107: Avaliador 2 | G107: 20 | H107: 15 | I107: 15 | J107: 10 | K107: 8 | L107: 10 | M107: 10 | N107: 0 | O107: 0 | P107: 3 | Q107: 3 | R107: 0 | S107: 3 | T107: 0 | U107: 97 | W107: =W106 -> 89.5
A108: PESSOA FÍSICA | B108: =HYPERLINK("https://mapas.cultura.gov.br/inscricao/1315230898","on-1315230898") -> on-1315230898 | C108: Goiânia | D108: GO | E108: CENTRO OESTE | F108: Avaliador 1 | G108: 15 | H108: 12 | I108: 12 | J108: 5 | K108: 8 | L108: 8 | M108: 8 | N108: 10 | O108: 0 | P108: 0 | Q108: 0 | R108: 0 | S108: 0 | T108: 0 | U108: 78 | W108: =AVERAGE(U108,U109) -> 89 | X108: CLASSIFICADO
A109: PESSOA FÍSICA | B109: =HYPERLINK("https://mapas.cultura.gov.br/inscricao/1315230898","on-1315230898") -> on-1315230898 | C109: Goiânia | D109: GO | E109: CENTRO OESTE | F109: Avaliador 2 | G109: 20 | H109: 15 | I109: 15 | J109: 10 | K109: 10 | L109: 10 | M109: 10 | N109: 10 | O109: 0 | P109: 0 | Q109: 0 | R109: 0 | S109: 0 | T109: 0 | U109: 100 | W109: =W108 -> 89
A110: PESSOA FÍSICA | B110: =HYPERLINK("https://mapas.cultura.gov.br/inscricao/620606990","on-620606990") -> on-620606990 | C110: Nova Andradina | D110: MS | E110: CENTRO OESTE | F110: Avaliador 1 | G110: 20 | H110: 15 | I110: 12 | J110: 8 | K110: 8 | L110: 10 | M110: 8 | N110: 8 | O110: 0 | P110: 0 | Q110: 0 | R110: 0 | S110: 0 | T110: 0 | U110: 89 | W110: =AVERAGE(U110,U111) -> 89 | X110: CLASSIFICADO
A111: PESSOA FÍSICA | B111: =HYPERLINK("https://mapas.cultura.gov.br/inscricao/E32620606990","on-620606990") -> on-620606990 | C111: Nova Andradina | D111: MS | E111: CENTRO OESTE | F111: Avaliador 2 | G111: 20 | H111: 15 | I111: 12 | J111: 8 | K111: 8 | L111: 10 | M111: 8 | N111: 8 | O111: 0 | P111: 0 | Q111: 0 | R111: 0 | S111: 0 | T111: 0 | U111: 89 | W111: =W110 -> 89
A112: PESSOA FÍSICA | B112: =HYPERLINK("https://mapas.cultura.gov.br/inscricao/528542534","on-528542534") -> on-528542534 | C112: VARJÃO DO TORTO | D112: DF | E112: CENTRO OESTE | F112: Avaliador 1 | G112: 20 | H112: 12 | I112: 12 | J112: 5 | K112: 10 | L112: 8 | M112: 0 | N112: 8 | O112: 0 | P112: 3 | Q112: 3 | R112: 3 | S112: 0 | T112: 0 | U112: 84 | W112: =AVERAGE(U112,U113) -> 89 | X112: CLASSIFICADO
A113: PESSOA FÍSICA | B113: on-528542534 | C113: Varjão do Torto | D113: DF | E113: CENTRO OESTE | F113: Avaliador 2 | G113: 20 | H113: 15 | I113: 12 | J113: 10 | K113: 10 | L113: 8 | M113: 10 | N113: 0 | O113: 0 | P113: 3 | Q113: 3 | R113: 3 | S113: 0 | T113: 0 | U113: 94 | W113: =W112 -> 89
A114: PESSOA FÍSICA | B114: =HYPERLINK("https://mapas.cultura.gov.br/inscricao/9028495","on-9028495") -> on-9028495 | C114: Anápolis | D114: GO | E114: CENTRO OESTE | F114: Avaliador 1 | G114: 20 | H114: 12 | I114: 12 | J114: 5 | K114: 10 | L114: 10 | M114: 8 | N114: 0 | O114: 0 | P114: 0 | Q114: 0 | R114: 0 | S114: 0 | T114: 0 | U114: 77 | W114: =AVERAGE(U114,U115) -> 88.5 | X114: CLASSIFICADO
A115: PESSOA FÍSICA | B115: =HYPERLINK("https://mapas.cultura.gov.br/inscricao/9028495","on-9028495") -> on-9028495 | C115: Anápolis | D115: GO | E115: CENTRO OESTE | F115: Avaliador 2 | G115: 20 | H115: 15 | I115: 15 | J115: 10 | K115: 10 | L115: 10 | M115: 10 | N115: 10 | O115: 0 | P115: 0 | Q115: 0 | R115: 0 | S115: 0 | T115: 0 | U115: 100 | W115: =W114 -> 88.5
A116: PESSOA FÍSICA | B116: =HYPERLINK("https://mapas.cultura.gov.br/inscricao/630905595","on-630905595") -> on-630905595 | C116: Goiânia | D116: GO | E116: CENTRO OESTE | F116: Avaliador 1 | G116: 20 | H116: 15 | I116: 15 | J116: 8 | K116: 10 | L116: 10 | M116: 10 | N116: 3 | O116: 0 | P116: 0 | Q116: 3 | R116: 0 | S116: 0 | T116: 0 | U116: 94 | W116: =AVERAGE(U116,U117) -> 88.5 | X116: CLASSIFICADO
A117: PESSOA FÍSICA | B117: =HYPERLINK("https://mapas.cultura.gov.br/inscricao/630905595","on-630905595") -> on-630905595 | C117: Goiânia | D117: GO | E117: CENTRO OESTE | F117: Avaliador 2 | G117: 15 | H117: 8 | I117: 15 | J117: 8 | K117: 8 | L117: 8 | M117: 8 | N117: 10 | O117: 0 | P117: 0 | Q117: 3 | R117: 0 | S117: 0 | T117: 0 | U117: 83 | W117: =W116 -> 88.5
A118: PESSOA FÍSICA | B118: =HYPERLINK("https://mapas.cultura.gov.br/inscricao/230135388","on-230135388") -> on-230135388 | C118: Brasília | D118: DF | E118: CENTRO OESTE | F118: Avaliador 1 | G118: 10 | H118: 12 | I118: 15 | J118: 8 | K118: 8 | L118: 8 | M118: 10 | N118: 5 | O118: 0 | P118: 3 | Q118: 3 | R118: 0 | S118: 3 | T118: 0 | U118: 85 | W118: =AVERAGE(U118,U119) -> 88.5 | X118: CLASSIFICADO
A119: PESSOA FÍSICA | B119: on-230135388 | C119: Brasília | D119: DF | E119: CENTRO OESTE | F119: Avaliador 2 | G119: 20 | H119: 15 | I119: 15 | J119: 10 | K119: 5 | L119: 8 | M119: 10 | N119: 0 | O119: 0 | P119: 3 | Q119: 3 | R119: 0 | S119: 3 | T119: 0 | U119: 92 | W119: =W118 -> 88.5
A120: PESSOA FÍSICA | B120: =HYPERLINK("https://mapas.cultura.gov.br/inscricao/103659680","on-103659680") -> on-103659680 | C120: Goiânia | D120: GO | E120: CENTRO OESTE | F120: Avaliador 1 | G120: 15 | H120: 15 | I120: 15 | J120: 3 | K120: 10 | L120: 10 | M120: 10 | N120: 3 | O120: 0 | P120: 0 | Q120: 0 | R120: 0 | S120: 0 | T120: 0 | U120: 81 | W120: =AVERAGE(U120,U121) -> 87 | X120: CLASSIFICADO
A121: PESSOA FÍSICA | B121: =HYPERLINK("https://mapas.cultura.gov.br/inscricao/103659680","on-103659680") -> on-103659680 | C121: Goiânia | D121: GO | E121: CENTRO OESTE | F121: Avaliador 2 | G121: 20 | H121: 15 | I121: 15 | J121: 10 | K121: 10 | L121: 5 | M121: 8 | N121: 10 | O121: 0 | P121: 0 | Q121: 0 | R121: 0 | S121: 0 | T121: 0 | U121: 93 | W121: =W120 -> 87
A122: PESSOA FÍSICA | B122: =HYPERLINK("https://mapas.cultura.gov.br/inscricao/713871460","on-713871460") -> on-713871460 | C122: Alto Paraíso de Goias | D122: GO | E122: CENTRO OESTE | F122: Avaliador 1 | G122: 15 | H122: 12 | I122: 12 | J122: 8 | K122: 8 | L122: 8 | M122: 8 | N122: 5 | O122: 0 | P122: 0 | Q122: 0 | R122: 0 | S122: 3 | T122: 0 | U122: 79 | W122: =AVERAGE(U122,U123) -> 87 | X122: CLASSIFICADO
A123: PESSOA FÍSICA | B123: =HYPERLINK("https://mapas.cultura.gov.br/inscricao/713871460","on-713871460") -> on-713871460 | C123: Alto Paraíso de Goias | D123: GO | E123: CENTRO OESTE | F123: Avaliador 2 | G123: 20 | H123: 15 | I123: 15 | J123: 8 | K123: 8 | L123: 10 | M123: 8 | N123: 8 | O123: 0 | P123: 0 | Q123: 0 | R123: 0 | S123: 3 | T123: 0 | U123: 95 | W123: =W122 -> 87
A124: PESSOA FÍSICA | B124: =HYPERLINK("https://mapas.cultura.gov.br/inscricao/827890158","on-827890158") -> on-827890158 | C124: Santo Antônio de Goiás | D124: GO | E124: CENTRO OESTE | F124: Avaliador 1 | G124: 20 | H124: 15 | I124: 15 | J124: 8 | K124: 8 | L124: 10 | M124: 8 | N124: 5 | O124: 0 | P124: 0 | Q124: 3 | R124: 3 | S124: 0 | T124: 0 | U124: 95 | W124: =AVERAGE(U124,U125) -> 87 | X124: CLASSIFICADO
A125: PESSOA FÍSICA | B125: =HYPERLINK("https://mapas.cultura.gov.br/inscricao/827890158","on-827890158") -> on-827890158 | C125: Santo Antônio de Goiás | D125: GO | E125: CENTRO OESTE | F125: Avaliador 2 | G125: 15 | H125: 15 | I125: 12 | J125: 8 | K125: 5 | L125: 5 | M125: 5 | N125: 8 | O125: 0 | P125: 0 | Q125: 3 | R125: 3 | S125: 0 | T125: 0 | U125: 79 | W125: =W124 -> 87
A126: PESSOA FÍSICA | B126: =HYPERLINK("https://mapas.cultura.gov.br/inscricao/49717292","on-49717292") -> on-49717292 | C126: Campo Grande | D126: MS | E126: CENTRO OESTE | F126: Avaliador 1 | G126: 20 | H126: 12 | I126: 12 | J126: 8 | K126: 8 | L126: 8 | M126: 8 | N126: 8 | O126: 0 | P126: 0 | Q126: 3 | R126: 0 | S126: 0 | T126: 0 | U126: 87 | W126: =AVERAGE(U126,U127) -> 87 | X126: CLASSIFICADO
A127: PESSOA FÍSICA | B127: =HYPERLINK("https://mapas.cultura.gov.br/inscricao/49717292","on-49717292") -> on-49717292 | C127: Campo Grande | D127: MS | E127: CENTRO OESTE | F127: Avaliador 2 | G127: 20 | H127: 12 | I127: 12 | J127: 8 | K127: 8 | L127: 8 | M127: 8 | N127: 8 | O127: 0 | P127: 0 | Q127: 3 | R127: 0 | S127: 0 | T127: 0 | U127: 87 | W127: =W126 -> 87
A128: PESSOA FÍSICA | B128: =HYPERLINK("https://mapas.cultura.gov.br/inscricao/960413747","on-960413747") -> on-960413747 | C128: Campo Grande | D128: MS | E128: CENTRO OESTE | F128: Avaliador 1 | G128: 15 | H128: 12 | I128: 12 | J128: 8 | K128: 8 | L128: 8 | M128: 8 | N128: 10 | O128: 0 | P128: 3 | Q128: 3 | R128: 0 | S128: 0 | T128: 0 | U128: 87 | W128: =AVERAGE(U128,U129) -> 87 | X128: CLASSIFICADO
A129: PESSOA FÍSICA | B129: =HYPERLINK("https://mapas.cultura.gov.br/inscricao/E31960413747","on-960413747") -> on-960413747 | C129: Campo Grande | D129: MS | E129: CENTRO OESTE | F129: Avaliador 2 | G129: 15 | H129: 12 | I129: 12 | J129: 8 | K129: 8 | L129: 8 | M129: 8 | N129: 10 | O129: 0 | P129: 3 | Q129: 3 | R129: 0 | S129: 0 | T129: 0 | U129: 87 | W129: =W128 -> 87
A130: PESSOA FÍSICA | B130: =HYPERLINK("https://mapas.cultura.gov.br/inscricao/954524879","on-954524879") -> on-954524879 | C130: Aparecida de Goiânia | D130: GO | E130: CENTRO OESTE | F130: Avaliador 1 | G130: 15 | H130: 12 | I130: 15 | J130: 5 | K130: 5 | L130: 8 | M130: 8 | N130: 5 | O130: 0 | P130: 0 | Q130: 3 | R130: 0 | S130: 0 | T130: 0 | U130: =SUM(G130:T130) -> 76 | W130: =AVERAGE(U130,U131) -> 86.5 | X130: CLASSIFICADO
A131: PESSOA FÍSICA | B131: =HYPERLINK("https://mapas.cultura.gov.br/inscricao/954524879","on-954524879") -> on-954524879 | C131: Aparecida de Goiânia | D131: GO | E131: CENTRO OESTE | F131: Avaliador 2 | G131: 20 | H131: 12 | I131: 12 | J131: 10 | K131: 10 | L131: 10 | M131: 10 | N131: 10 | O131: 0 | P131: 0 | Q131: 3 | R131: 0 | S131: 0 | T131: 0 | U131: 97 | W131: =W130 -> 86.5
A132: PESSOA FÍSICA | B132: =HYPERLINK("https://mapas.cultura.gov.br/inscricao/789172685","on-789172685") -> on-789172685 | C132: Brasilia | D132: DF | E132: CENTRO OESTE | F132: Avaliador 1 | G132: 20 | H132: 15 | I132: 12 | J132: 5 | K132: 8 | L132: 8 | M132: 8 | N132: 8 | O132: 3 | P132: 0 | Q132: 3 | R132: 0 | S132: 0 | T132: 0 | U132: 90 | W132: =AVERAGE(U132,U133) -> 85.5 | X132: CLASSIFICADO
A133: PESSOA FÍSICA | B133: on-789172685 | C133: Brasilia | D133: DF | E133: CENTRO OESTE | F133: Avaliador 2 | G133: 20 | H133: 15 | I133: 12 | J133: 0 | K133: 8 | L133: 10 | M133: 10 | N133: 0 | O133: 3 | P133: 0 | Q133: 3 | R133: 0 | S133: 0 | T133: 0 | U133: 81 | W133: =W132 -> 85.5
A134: PESSOA FÍSICA | B134: =HYPERLINK("https://mapas.cultura.gov.br/inscricao/375574084","on-375574084") -> on-375574084 | C134: Brasília | D134: DF | E134: CENTRO OESTE | F134: Avaliador 1 | G134: 20 | H134: 15 | I134: 15 | J134: 3 | K134: 10 | L134: 10 | M134: 10 | N134: 8 | O134: 0 | P134: 0 | Q134: 0 | R134: 0 | S134: 0 | T134: 0 | U134: 91 | W134: =AVERAGE(U134,U135) -> 85.5 | X134: CLASSIFICADO
A135: PESSOA FÍSICA | B135: on-375574084 | C135: Brasília | D135: DF | E135: CENTRO OESTE | F135: Avaliador 2 | G135: 20 | H135: 15 | I135: 15 | J135: 0 | K135: 10 | L135: 10 | M135: 10 | N135: 0 | O135: 0 | P135: 0 | Q135: 0 | R135: 0 | S135: 0 | T135: 0 | U135: 80 | W135: =W134 -> 85.5
A136: PESSOA FÍSICA | B136: =HYPERLINK("https://mapas.cultura.gov.br/inscricao/1040023744","on-1040023744") -> on-1040023744 | C136: Luziânia | D136: GO | E136: CENTRO OESTE | F136: Avaliador 1 | G136: 15 | H136: 12 | I136: 12 | J136: 5 | K136: 10 | L136: 8 | M136: 8 | N136: 3 | O136: 0 | P136: 0 | Q136: 3 | R136: 0 | S136: 0 | T136: 0 | U136: 76 | W136: =AVERAGE(U136,U137) -> 85.5 | X136: CLASSIFICADO
A137: PESSOA FÍSICA | B137: =HYPERLINK("https://mapas.cultura.gov.br/inscricao/1040023744","on-1040023744") -> on-1040023744 | C137: Luziânia | D137: GO | E137: CENTRO OESTE | F137: Avaliador 2 | G137: 20 | H137: 15 | I137: 15 | J137: 10 | K137: 8 | L137: 8 | M137: 8 | N137: 8 | O137: 0 | P137: 0 | Q137: 3 | R137: 0 | S137: 0 | T137: 0 | U137: 95 | W137: =W136 -> 85.5
A138: PESSOA FÍSICA | B138: =HYPERLINK("https://mapas.cultura.gov.br/inscricao/244428013","on-244428013") -> on-244428013 | C138: Taguatinga | D138: DF | E138: CENTRO OESTE | F138: Avaliador 1 | G138: 20 | H138: 15 | I138: 15 | J138: 5 | K138: 10 | L138: 10 | M138: 10 | N138: 5 | O138: 0 | P138: 0 | Q138: 3 | R138: 0 | S138: 0 | T138: 0 | U138: 93 | W138: =AVERAGE(U138,U139) -> 85.5 | X138: CLASSIFICADO
A139: PESSOA FÍSICA | B139: on-244428013 | C139: Taguatinga | D139: DF | E139: CENTRO OESTE | F139: Avaliador 2 | G139: 20 | H139: 15 | I139: 12 | J139: 0 | K139: 8 | L139: 10 | M139: 10 | N139: 0 | O139: 0 | P139: 0 | Q139: 3 | R139: 0 | S139: 0 | T139: 0 | U139: 78 | W139: =W138 -> 85.5
A140: PESSOA FÍSICA | B140: =HYPERLINK("https://mapas.cultura.gov.br/inscricao/1204336363","on-1204336363") -> on-1204336363 | C140: Goianira | D140: GO | E140: CENTRO OESTE | F140: Avaliador 1 | G140: 20 | H140: 12 | I140: 12 | J140: 8 | K140: 10 | L140: 10 | M140: 10 | N140: 3 | O140: 0 | P140: 0 | Q140: 3 | R140: 0 | S140: 0 | T140: 0 | U140: 88 | W140: =AVERAGE(U140,U141) -> 85 | X140: CLASSIFICADO
A141: PESSOA FÍSICA | B141: =HYPERLINK("https://mapas.cultura.gov.br/inscricao/1204336363","on-1204336363") -> on-1204336363 | C141: Goianira | D141: GO | E141: CENTRO OESTE | F141: Avaliador 2 | G141: 15 | H141: 12 | I141: 8 | J141: 10 | K141: 10 | L141: 8 | M141: 8 | N141: 8 | O141: 0 | P141: 0 | Q141: 3 | R141: 0 | S141: 0 | T141: 0 | U141: 82 | W141: =W140 -> 85
A142: PESSOA FÍSICA | B142: =HYPERLINK("https://mapas.cultura.gov.br/inscricao/972223320","on-972223320") -> on-972223320 | C142: Anápolis | D142: GO | E142: CENTRO OESTE | F142: Avaliador 1 | G142: 20 | H142: 12 | I142: 12 | J142: 5 | K142: 8 | L142: 8 | M142: 8 | N142: 5 | O142: 0 | P142: 0 | Q142: 0 | R142: 0 | S142: 0 | T142: 0 | U142: 78 | W142: =AVERAGE(U142,U143) -> 84 | X142: CLASSIFICADO
A143: PESSOA FÍSICA | B143: =HYPERLINK("https://mapas.cultura.gov.br/inscricao/972223320","on-972223320") -> on-972223320 | C143: Anápolis | D143: GO | E143: CENTRO OESTE | F143: Avaliador 2 | G143: 20 | H143: 15 | I143: 15 | J143: 10 | K143: 10 | L143: 10 | M143: 10 | N143: 0 | O143: 0 | P143: 0 | Q143: 0 | R143: 0 | S143: 0 | T143: 0 | U143: 90 | W143: =W142 -> 84
A144: PESSOA FÍSICA | B144: =HYPERLINK("https://mapas.cultura.gov.br/inscricao/382466079","on-382466079") -> on-382466079 | C144: CEILÂNDIA DF | D144: DF | E144: CENTRO OESTE | F144: Avaliador 1 | G144: 15 | H144: 12 | I144: 15 | J144: 5 | K144: 5 | L144: 10 | M144: 10 | N144: 5 | O144: 0 | P144: 0 | Q144: 3 | R144: 3 | S144: 0 | T144: 0 | U144: 83 | W144: =AVERAGE(U144,U145) -> 83.5 | X144: CLASSIFICADO
A145: PESSOA FÍSICA | B145: on-382466079 | C145: Ceilândia | D145: DF | E145: CENTRO OESTE | F145: Avaliador 2 | G145: 20 | H145: 15 | I145: 15 | J145: 0 | K145: 8 | L145: 10 | M145: 10 | N145: 0 | O145: 0 | P145: 0 | Q145: 3 | R145: 3 | S145: 0 | T145: 0 | U145: 84 | W145: =W144 -> 83.5
A146: PESSOA FÍSICA | B146: =HYPERLINK("https://mapas.cultura.gov.br/inscricao/1669195030","on-1669195030") -> on-1669195030 | C146: Campo Grande | D146: MS | E146: CENTRO OESTE | F146: Avaliador 1 | G146: 20 | H146: 15 | I146: 12 | J146: 5 | K146: 5 | L146: 10 | M146: 5 | N146: 8 | O146: 0 | P146: 0 | Q146: 3 | R146: 0 | S146: 0 | T146: 0 | U146: 83 | W146: =AVERAGE(U146,U147) -> 83 | X146: CLASSIFICADO
A147: PESSOA FÍSICA | B147: =HYPERLINK("https://mapas.cultura.gov.br/inscricao/1669195030","on-1669195030") -> on-1669195030 | C147: Campo Grande | D147: MS | E147: CENTRO OESTE | F147: Avaliador 2 | G147: 20 | H147: 15 | I147: 12 | J147: 5 | K147: 5 | L147: 10 | M147: 5 | N147: 8 | O147: 0 | P147: 0 | Q147: 3 | R147: 0 | S147: 0 | T147: 0 | U147: 83 | W147: =W146 -> 83
A148: PESSOA FÍSICA | B148: =HYPERLINK("https://mapas.cultura.gov.br/inscricao/987871762","on-987871762") -> on-987871762 | C148: Campo Grande | D148: MS | E148: CENTRO OESTE | F148: Avaliador 1 | G148: 20 | H148: 8 | I148: 15 | J148: 5 | K148: 10 | L148: 10 | M148: 10 | N148: 5 | O148: 0 | P148: 0 | Q148: 0 | R148: 0 | S148: 0 | T148: 0 | U148: 83 | W148: =AVERAGE(U148,U149) -> 83 | X148: CLASSIFICADO
A149: PESSOA FÍSICA | B149: =HYPERLINK("https://mapas.cultura.gov.br/inscricao/987871762","on-987871762") -> on-987871762 | C149: Campo Grande | D149: MS | E149: CENTRO OESTE | F149: Avaliador 2 | G149: 20 | H149: 8 | I149: 15 | J149: 5 | K149: 10 | L149: 10 | M149: 10 | N149: 5 | O149: 0 | P149: 0 | Q149: 0 | R149: 0 | S149: 0 | T149: 0 | U149: 83 | W149: =W148 -> 83
A150: PESSOA FÍSICA | B150: =HYPERLINK("https://mapas.cultura.gov.br/inscricao/1339141787","on-1339141787") -> on-1339141787 | C150: Cuiabá | D150: MT | E150: CENTRO OESTE | F150: Avaliador 1 | G150: 10 | H150: 8 | I150: 8 | J150: 10 | K150: 8 | L150: 5 | M150: 10 | N150: 5 | O150: 0 | P150: 3 | Q150: 3 | R150: 0 | S150: 0 | T150: 0 | U150: 70 | W150: =AVERAGE(U150,U151) -> 82.5 | X150: CLASSIFICADO
A151: PESSOA FÍSICA | B151: =HYPERLINK("https://mapas.cultura.gov.br/inscricao/1339141787","on-1339141787") -> on-1339141787 | C151: Cuiabá | D151: MT | E151: CENTRO OESTE | F151: Avaliador 2 | G151: 20 | H151: 15 | I151: 12 | J151: 8 | K151: 8 | L151: 8 | M151: 10 | N151: 8 | O151: 0 | P151: 3 | Q151: 3 | R151: 0 | S151: 0 | T151: 0 | U151: 95 | W151: =W150 -> 82.5
A152: PESSOA FÍSICA | B152: =HYPERLINK("https://mapas.cultura.gov.br/inscricao/642573836","on-642573836") -> on-642573836 | C152: Aguas Lindas de Goiás | D152: GO | E152: CENTRO OESTE | F152: Avaliador 1 | G152: 20 | H152: 15 | I152: 15 | J152: 3 | K152: 8 | L152: 10 | M152: 10 | N152: 5 | O152: 0 | P152: 0 | Q152: 0 | R152: 0 | S152: 0 | T152: 0 | U152: 86 | W152: =AVERAGE(U152,U153) -> 82 | X152: CLASSIFICADO
A153: PESSOA FÍSICA | B153: =HYPERLINK("https://mapas.cultura.gov.br/inscricao/642573836","on-642573836") -> on-642573836 | C153: Aguas Lindas de Goiás | D153: GO | E153: CENTRO OESTE | F153: Avaliador 2 | G153: 20 | H153: 15 | I153: 12 | J153: 8 | K153: 8 | L153: 5 | M153: 5 | N153: 5 | O153: 0 | P153: 0 | Q153: 0 | R153: 0 | S153: 0 | T153: 0 | U153: 78 | W153: =W152 -> 82
A154: PESSOA FÍSICA | B154: =HYPERLINK("https://mapas.cultura.gov.br/inscricao/463531183","on-463531183") -> on-463531183 | C154: Valparaíso | D154: GO | E154: CENTRO OESTE | F154: Avaliador 1 | G154: 15 | H154: 12 | I154: 12 | J154: 5 | K154: 8 | L154: 8 | M154: 8 | N154: 5 | O154: 0 | P154: 0 | Q154: 0 | R154: 0 | S154: 0 | T154: 0 | U154: 73 | W154: =AVERAGE(U154,U155) -> 82 | X154: CLASSIFICADO
A155: PESSOA FÍSICA | B155: =HYPERLINK("https://mapas.cultura.gov.br/inscricao/463531183","on-463531183") -> on-463531183 | C155: Valparaíso | D155: GO | E155: CENTRO OESTE | F155: Avaliador 2 | G155: 20 | H155: 12 | I155: 15 | J155: 8 | K155: 10 | L155: 8 | M155: 10 | N155: 8 | O155: 0 | P155: 0 | Q155: 0 | R155: 0 | S155: 0 | T155: 0 | U155: 91 | W155: =W154 -> 82
A156: PESSOA FÍSICA | B156: =HYPERLINK("https://mapas.cultura.gov.br/inscricao/242782936","on-242782936") -> on-242782936 | C156: Alto Paraíso de Goiás | D156: GO | E156: CENTRO OESTE | F156: Avaliador 1 | G156: 15 | H156: 8 | I156: 8 | J156: 8 | K156: 5 | L156: 5 | M156: 5 | N156: 5 | O156: 0 | P156: 3 | Q156: 3 | R156: 3 | S156: 3 | T156: 0 | U156: 71 | W156: =AVERAGE(U156,U157) -> 82 | X156: CLASSIFICADO
A157: PESSOA FÍSICA | B157: =HYPERLINK("https://mapas.cultura.gov.br/inscricao/242782936","on-242782936") -> on-242782936 | C157: Alto Paraíso de Goiás | D157: GO | E157: CENTRO OESTE | F157: Avaliador 2 | G157: 15 | H157: 15 | I157: 12 | J157: 10 | K157: 8 | L157: 8 | M157: 8 | N157: 5 | O157: 0 | P157: 3 | Q157: 3 | R157: 3 | S157: 3 | T157: 0 | U157: 93 | W157: =W156 -> 82
A158: PESSOA FÍSICA | B158: =HYPERLINK("https://mapas.cultura.gov.br/inscricao/764266380","on-764266380") -> on-764266380 | C158: Alto Paraíso de Goiás | D158: GO | E158: CENTRO OESTE | F158: Avaliador 1 | G158: 15 | H158: 12 | I158: 12 | J158: 5 | K158: 8 | L158: 8 | M158: 8 | N158: 3 | O158: 0 | P158: 0 | Q158: 0 | R158: 0 | S158: 0 | T158: 0 | U158: 71 | W158: =AVERAGE(U158,U159) -> 82 | X158: CLASSIFICADO
A159: PESSOA FÍSICA | B159: =HYPERLINK("https://mapas.cultura.gov.br/inscricao/764266380","on-764266380") -> on-764266380 | C159: Alto Paraíso de Goiás | D159: GO | E159: CENTRO OESTE | F159: Avaliador 2 | G159: 20 | H159: 15 | I159: 15 | J159: 10 | K159: 10 | L159: 5 | M159: 10 | N159: 8 | O159: 0 | P159: 0 | Q159: 0 | R159: 0 | S159: 0 | T159: 0 | U159: 93 | W159: =W158 -> 82
A160: PESSOA FÍSICA | B160: =HYPERLINK("https://mapas.cultura.gov.br/inscricao/1603440350","on-1603440350") -> on-1603440350 | C160: Planaltina | D160: GO | E160: CENTRO OESTE | F160: Avaliador 1 | G160: 20 | H160: 12 | I160: 12 | J160: 5 | K160: 8 | L160: 10 | M160: 8 | N160: 5 | O160: 0 | P160: 0 | Q160: 0 | R160: 0 | S160: 0 | T160: 0 | U160: 80 | W160: =AVERAGE(U160,U161) -> 82 | X160: CLASSIFICADO
A161: PESSOA FÍSICA | B161: =HYPERLINK("https://mapas.cultura.gov.br/inscricao/1603440350","on-1603440350") -> on-1603440350 | C161: Planaltina | D161: GO | E161: CENTRO OESTE | F161: Avaliador 2 | G161: 20 | H161: 12 | I161: 12 | J161: 8 | K161: 8 | L161: 8 | M161: 8 | N161: 8 | O161: 0 | P161: 0 | Q161: 0 | R161: 0 | S161: 0 | T161: 0 | U161: 84 | W161: =W160 -> 82
A162: PESSOA FÍSICA | B162: =HYPERLINK("https://mapas.cultura.gov.br/inscricao/1285286595","on-1285286595") -> on-1285286595 | C162: Campo Grande | D162: MS | E162: CENTRO OESTE | F162: Avaliador 1 | G162: 15 | H162: 12 | I162: 12 | J162: 8 | K162: 8 | L162: 8 | M162: 8 | N162: 8 | O162: 0 | P162: 0 | Q162: 3 | R162: 0 | S162: 0 | T162: 0 | U162: 82 | W162: =AVERAGE(U162,U163) -> 82 | X162: CLASSIFICADO
A163: PESSOA FÍSICA | B163: =HYPERLINK("https://mapas.cultura.gov.br/inscricao/1285286595","on-1285286595") -> on-1285286595 | C163: Campo Grande | D163: MS | E163: CENTRO OESTE | F163: Avaliador 2 | G163: 15 | H163: 12 | I163: 12 | J163: 8 | K163: 8 | L163: 8 | M163: 8 | N163: 8 | O163: 0 | P163: 0 | Q163: 3 | R163: 0 | S163: 0 | T163: 0 | U163: 82 | W163: =W162 -> 82
A164: PESSOA FÍSICA | B164: =HYPERLINK("https://mapas.cultura.gov.br/inscricao/1312214457","on-1312214457") -> on-1312214457 | C164: Brasília | D164: DF | E164: CENTRO OESTE | F164: Avaliador 1 | G164: 20 | H164: 15 | I164: 12 | J164: 8 | K164: 8 | L164: 10 | M164: 8 | N164: 0 | O164: 0 | P164: 3 | Q164: 3 | R164: 0 | S164: 0 | T164: 0 | U164: 87 | W164: =AVERAGE(U164,U165) -> 81.5 | X164: CLASSIFICADO
A165: PESSOA FÍSICA | B165: on-1312214457 | C165: Brasília | D165: DF | E165: CENTRO OESTE | F165: Avaliador 2 | G165: 15 | H165: 15 | I165: 12 | J165: 10 | K165: 5 | L165: 8 | M165: 5 | N165: 0 | O165: 0 | P165: 3 | Q165: 3 | R165: 0 | S165: 0 | T165: 0 | U165: 76 | W165: =W164 -> 81.5
A166: PESSOA FÍSICA | B166: =HYPERLINK("https://mapas.cultura.gov.br/inscricao/219654814","on-219654814") -> on-219654814 | C166: Valparaíso | D166: GO | E166: CENTRO OESTE | F166: Avaliador 1 | G166: 15 | H166: 12 | I166: 12 | J166: 5 | K166: 8 | L166: 8 | M166: 8 | N166: 8 | O166: 0 | P166: 0 | Q166: 0 | R166: 3 | S166: 0 | T166: 0 | U166: 79 | W166: =AVERAGE(U166,U167) -> 81.5 | X166: CLASSIFICADO
A167: PESSOA FÍSICA | B167: =HYPERLINK("https://mapas.cultura.gov.br/inscricao/219654814","on-219654814") -> on-219654814 | C167: Valparaíso | D167: GO | E167: CENTRO OESTE | F167: Avaliador 2 | G167: 20 | H167: 12 | I167: 15 | J167: 8 | K167: 5 | L167: 8 | M167: 8 | N167: 5 | O167: 0 | P167: 0 | Q167: 0 | R167: 3 | S167: 0 | T167: 0 | U167: 84 | W167: =W166 -> 81.5
A168: PESSOA FÍSICA | B168: =HYPERLINK("https://mapas.cultura.gov.br/inscricao/1895624885","on-1895624885") -> on-1895624885 | C168: Brasília | D168: DF | E168: CENTRO OESTE | F168: Avaliador 1 | G168: 10 | H168: 12 | I168: 12 | J168: 10 | K168: 5 | L168: 8 | M168: 8 | N168: 3 | O168: 0 | P168: 3 | Q168: 0 | R168: 0 | S168: 3 | T168: 0 | U168: 74 | W168: =AVERAGE(U168,U169) -> 81.5 | X168: CLASSIFICADO
A169: PESSOA FÍSICA | B169: on-1895624885 | C169: Brasília | D169: DF | E169: CENTRO OESTE | F169: Avaliador 2 | G169: 20 | H169: 15 | I169: 12 | J169: 10 | K169: 8 | L169: 10 | M169: 8 | N169: 0 | O169: 0 | P169: 3 | Q169: 0 | R169: 0 | S169: 3 | T169: 0 | U169: 89 | W169: =W168 -> 81.5
A170: PESSOA FÍSICA | B170: =HYPERLINK("https://mapas.cultura.gov.br/inscricao/1424220671","on-1424220671") -> on-1424220671 | C170: Riacho fundo 1 - Brasilia | D170: DF | E170: CENTRO OESTE | F170: Avaliador 1 | G170: 20 | H170: 12 | I170: 12 | J170: 8 | K170: 10 | L170: 8 | M170: 8 | N170: 5 | O170: 0 | P170: 0 | Q170: 3 | R170: 0 | S170: 3 | T170: 0 | U170: 89 | W170: =AVERAGE(U170,U171) -> 81 | X170: CLASSIFICADO
A171: PESSOA FÍSICA | B171: on-1424220671 | C171: Riacho Fundo 1 | D171: DF | E171: CENTRO OESTE | F171: Avaliador 2 | G171: 15 | H171: 12 | I171: 12 | J171: 10 | K171: 3 | L171: 10 | M171: 5 | N171: 0 | O171: 0 | P171: 0 | Q171: 3 | R171: 0 | S171: 3 | T171: 0 | U171: 73 | W171: =W170 -> 81
A172: PESSOA FÍSICA | B172: =HYPERLINK("https://mapas.cultura.gov.br/inscricao/449227662","on-449227662") -> on-449227662 | C172: Goiânia | D172: GO | E172: CENTRO OESTE | F172: Avaliador 1 | G172: 20 | H172: 12 | I172: 12 | J172: 5 | K172: 3 | L172: 10 | M172: 10 | N172: 0 | O172: 0 | P172: 0 | Q172: 0 | R172: 0 | S172: 0 | T172: 0 | U172: 72 | W172: =AVERAGE(U172,U173) -> 81 | X172: CLASSIFICADO
A173: PESSOA FÍSICA | B173: =HYPERLINK("https://mapas.cultura.gov.br/inscricao/449227662","on-449227662") -> on-449227662 | C173: Goiânia | D173: GO | E173: CENTRO OESTE | F173: Avaliador 2 | G173: 20 | H173: 15 | I173: 15 | J173: 8 | K173: 8 | L173: 8 | M173: 8 | N173: 8 | O173: 0 | P173: 0 | Q173: 0 | R173: 0 | S173: 0 | T173: 0 | U173: 90 | W173: =W172 -> 81
A174: PESSOA FÍSICA | B174: =HYPERLINK("https://mapas.cultura.gov.br/inscricao/1116647220","on-1116647220") -> on-1116647220 | C174: Primavera do Leste | D174: MT | E174: CENTRO OESTE | F174: Avaliador 1 | G174: 15 | H174: 12 | I174: 8 | J174: 5 | K174: 5 | L174: 8 | M174: 8 | N174: 8 | O174: 0 | P174: 0 | Q174: 3 | R174: 0 | S174: 0 | T174: 0 | U174: 72 | W174: =AVERAGE(U174,U175) -> 81 | X174: CLASSIFICADO
A175: PESSOA FÍSICA | B175: =HYPERLINK("https://mapas.cultura.gov.br/inscricao/1116647220","on-1116647220") -> on-1116647220 | C175: Primavera do Leste | D175: MT | E175: CENTRO OESTE | F175: Avaliador 2 | G175: 20 | H175: 15 | I175: 12 | J175: 8 | K175: 8 | L175: 8 | M175: 8 | N175: 8 | O175: 0 | P175: 0 | Q175: 3 | R175: 0 | S175: 0 | T175: 0 | U175: 90 | W175: =W174 -> 81
A176: PESSOA FÍSICA | B176: =HYPERLINK("https://mapas.cultura.gov.br/inscricao/6326537","on-6326537") -> on-6326537 | C176: Samambaia norte | D176: DF | E176: CENTRO OESTE | F176: Avaliador 1 | G176: 15 | H176: 12 | I176: 12 | J176: 10 | K176: 8 | L176: 8 | M176: 8 | N176: 5 | O176: 0 | P176: 3 | Q176: 3 | R176: 3 | S176: 3 | T176: 0 | U176: 90 | W176: =AVERAGE(U176,U177) -> 81 | X176: CLASSIFICADO
A177: PESSOA FÍSICA | B177: on-6326537 | C177: Samambaia Norte | D177: DF | E177: CENTRO OESTE | F177: Avaliador 2 | G177: 15 | H177: 12 | I177: 8 | J177: 10 | K177: 5 | L177: 5 | M177: 5 | N177: 3 | O177: 0 | P177: 3 | Q177: 3 | R177: 0 | S177: 3 | T177: 0 | U177: 72 | W177: =W176 -> 81
A178: PESSOA FÍSICA | B178: =HYPERLINK("https://mapas.cultura.gov.br/inscricao/1091102451","on-1091102451") -> on-1091102451 | C178: Brasília | D178: DF | E178: CENTRO OESTE | F178: Avaliador 1 | G178: 15 | H178: 12 | I178: 12 | J178: 10 | K178: 10 | L178: 8 | M178: 8 | N178: 5 | O178: 3 | P178: 0 | Q178: 3 | R178: 0 | S178: 3 | T178: 0 | U178: 89 | W178: =AVERAGE(U178,U179) -> 80.5 | X178: CLASSIFICADO
A179: PESSOA FÍSICA | B179: on-1091102451 | C179: Brasília | D179: DF | E179: CENTRO OESTE | F179: Avaliador 2 | G179: 15 | H179: 8 | I179: 12 | J179: 10 | K179: 5 | L179: 8 | M179: 5 | N179: 0 | O179: 3 | P179: 0 | Q179: 3 | R179: 0 | S179: 3 | T179: 0 | U179: 72 | W179: =W178 -> 80.5
A180: PESSOA FÍSICA | B180: =HYPERLINK("https://mapas.cultura.gov.br/inscricao/383690924","on-383690924") -> on-383690924 | C180: SOBRADINHO II | D180: DF | E180: CENTRO OESTE | F180: Avaliador 1 | G180: 10 | H180: 15 | I180: 12 | J180: 3 | K180: 8 | L180: 10 | M180: 10 | N180: 5 | O180: 0 | P180: 0 | Q180: 3 | R180: 0 | S180: 0 | T180: 0 | U180: 76 | W180: =AVERAGE(U180,U181) -> 80 | X180: CLASSIFICADO
A181: PESSOA FÍSICA | B181: on-383690924 | C181: Sobradinho II | D181: DF | E181: CENTRO OESTE | F181: Avaliador 2 | G181: 20 | H181: 15 | I181: 15 | J181: 3 | K181: 8 | L181: 10 | M181: 10 | N181: 0 | O181: 0 | P181: 0 | Q181: 3 | R181: 0 | S181: 0 | T181: 0 | U181: 84 | W181: =W180 -> 80
A182: PESSOA FÍSICA | B182: =HYPERLINK("https://mapas.cultura.gov.br/inscricao/193583739","on-193583739") -> on-193583739 | C182: BRAZLÂNDIA | D182: DF | E182: CENTRO OESTE | F182: Avaliador 1 | G182: 20 | H182: 12 | I182: 15 | J182: 3 | K182: 10 | L182: 8 | M182: 8 | N182: 5 | O182: 0 | P182: 0 | Q182: 3 | R182: 0 | S182: 0 | T182: 0 | U182: 84 | W182: =AVERAGE(U182,U183) -> 80 | X182: CLASSIFICADO
A183: PESSOA FÍSICA | B183: on-193583739 | C183: Brazlândia | D183: DF | E183: CENTRO OESTE | F183: Avaliador 2 | G183: 20 | H183: 15 | I183: 12 | J183: 0 | K183: 8 | L183: 10 | M183: 8 | N183: 0 | O183: 0 | P183: 0 | Q183: 3 | R183: 0 | S183: 0 | T183: 0 | U183: 76 | W183: =W182 -> 80
A184: PESSOA FÍSICA | B184: =HYPERLINK("https://mapas.cultura.gov.br/inscricao/2042097270","on-2042097270") -> on-2042097270 | C184: Mineiros | D184: GO | E184: CENTRO OESTE | F184: Avaliador 1 | G184: 20 | H184: 15 | I184: 15 | J184: 3 | K184: 5 | L184: 10 | M184: 10 | N184: 3 | O184: 0 | P184: 0 | Q184: 3 | R184: 0 | S184: 0 | T184: 0 | U184: 84 | W184: =AVERAGE(U184,U185) -> 80 | X184: CLASSIFICADO
A185: PESSOA FÍSICA | B185: =HYPERLINK("https://mapas.cultura.gov.br/inscricao/2042097270","on-2042097270") -> on-2042097270 | C185: Mineiros | D185: GO | E185: CENTRO OESTE | F185: Avaliador 2 | G185: 20 | H185: 12 | I185: 15 | J185: 5 | K185: 5 | L185: 5 | M185: 8 | N185: 3 | O185: 0 | P185: 0 | Q185: 3 | R185: 0 | S185: 0 | T185: 0 | U185: 76 | W185: =W184 -> 80
A186: PESSOA FÍSICA | B186: =HYPERLINK("https://mapas.cultura.gov.br/inscricao/913281358","on-913281358") -> on-913281358 | C186: Goiânia | D186: GO | E186: CENTRO OESTE | F186: Avaliador 1 | G186: 15 | H186: 12 | I186: 15 | J186: 3 | K186: 10 | L186: 10 | M186: 10 | N186: 3 | O186: 0 | P186: 0 | Q186: 0 | R186: 0 | S186: 0 | T186: 0 | U186: 78 | W186: =AVERAGE(U186,U187) -> 80 | X186: CLASSIFICADO
A187: PESSOA FÍSICA | B187: =HYPERLINK("https://mapas.cultura.gov.br/inscricao/913281358","on-913281358") -> on-913281358 | C187: Goiânia | D187: GO | E187: CENTRO OESTE | F187: Avaliador 2 | G187: 15 | H187: 12 | I187: 12 | J187: 5 | K187: 10 | L187: 8 | M187: 10 | N187: 10 | O187: 0 | P187: 0 | Q187: 0 | R187: 0 | S187: 0 | T187: 0 | U187: 82 | W187: =W186 -> 80
A188: PESSOA FÍSICA | B188: =HYPERLINK("https://mapas.cultura.gov.br/inscricao/576507520","on-576507520") -> on-576507520 | C188: Sobradnho 2 | D188: DF | E188: CENTRO OESTE | F188: Avaliador 1 | G188: 10 | H188: 12 | I188: 12 | J188: 5 | K188: 8 | L188: 8 | M188: 8 | N188: 8 | O188: 0 | P188: 0 | Q188: 0 | R188: 0 | S188: 3 | T188: 0 | U188: 74 | W188: =AVERAGE(U188,U189) -> 80 | X188: CLASSIFICADO
A189: PESSOA FÍSICA | B189: on-576507520 | C189: Sobradnho 2 | D189: DF | E189: CENTRO OESTE | F189: Avaliador 2 | G189: 15 | H189: 15 | I189: 15 | J189: 10 | K189: 8 | L189: 10 | M189: 10 | N189: 0 | O189: 0 | P189: 0 | Q189: 0 | R189: 0 | S189: 3 | T189: 0 | U189: 86 | W189: =W188 -> 80
A190: PESSOA FÍSICA | B190: =HYPERLINK("https://mapas.cultura.gov.br/inscricao/860981173","on-860981173") -> on-860981173 | C190: BRASILIA | D190: DF | E190: CENTRO OESTE | F190: Avaliador 1 | G190: 10 | H190: 15 | I190: 12 | J190: 3 | K190: 10 | L190: 8 | M190: 10 | N190: 5 | O190: 0 | P190: 0 | Q190: 3 | R190: 0 | S190: 0 | T190: 0 | U190: 76 | W190: =AVERAGE(U190,U191) -> 79.5 | X190: CLASSIFICADO
A191: PESSOA FÍSICA | B191: on-860981173 | C191: Brasília | D191: DF | E191: CENTRO OESTE | F191: Avaliador 2 | G191: 20 | H191: 15 | I191: 15 | J191: 0 | K191: 10 | L191: 10 | M191: 10 | N191: 0 | O191: 0 | P191: 0 | Q191: 3 | R191: 0 | S191: 0 | T191: 0 | U191: 83 | W191: =W190 -> 79.5
A192: PESSOA FÍSICA | B192: =HYPERLINK("https://mapas.cultura.gov.br/inscricao/2106906728","on-2106906728") -> on-2106906728 | C192: Itapoã | D192: DF | E192: CENTRO OESTE | F192: Avaliador 1 | G192: 15 | H192: 15 | I192: 12 | J192: 5 | K192: 5 | L192: 10 | M192: 8 | N192: 8 | O192: 0 | P192: 0 | Q192: 0 | R192: 0 | S192: 0 | T192: 0 | U192: 78 | W192: =AVERAGE(U192,U193) -> 79 | X192: CLASSIFICADO
A193: PESSOA FÍSICA | B193: on-2106906728 | C193: Itapoã | D193: DF | E193: CENTRO OESTE | F193: Avaliador 2 | G193: 20 | H193: 15 | I193: 15 | J193: 0 | K193: 10 | L193: 10 | M193: 10 | N193: 0 | O193: 0 | P193: 0 | Q193: 0 | R193: 0 | S193: 0 | T193: 0 | U193: 80 | W193: =W192 -> 79
A194: PESSOA FÍSICA | B194: =HYPERLINK("https://mapas.cultura.gov.br/inscricao/637314150","on-637314150") -> on-637314150 | C194: Recanto Das Emas | D194: DF | E194: CENTRO OESTE | F194: Avaliador 1 | G194: 20 | H194: 15 | I194: 8 | J194: 3 | K194: 8 | L194: 8 | M194: 8 | N194: 8 | O194: 0 | P194: 0 | Q194: 0 | R194: 0 | S194: 0 | T194: 0 | U194: =SUM(G194:T194) -> 78 | W194: =AVERAGE(U194,U195) -> 79 | X194: CLASSIFICADO
A195: PESSOA FÍSICA | B195: on-637314150 | C195: Recanto das Emas | D195: DF | E195: CENTRO OESTE | F195: Avaliador 2 | G195: 20 | H195: 15 | I195: 15 | J195: 0 | K195: 10 | L195: 10 | M195: 10 | N195: 0 | O195: 0 | P195: 0 | Q195: 0 | R195: 0 | S195: 0 | T195: 0 | U195: 80 | W195: =W194 -> 79
A196: PESSOA FÍSICA | B196: =HYPERLINK("https://mapas.cultura.gov.br/inscricao/1527965024","on-1527965024") -> on-1527965024 | C196: Goiânia | D196: GO | E196: CENTRO OESTE | F196: Avaliador 1 | G196: 20 | H196: 12 | I196: 15 | J196: 3 | K196: 10 | L196: 10 | M196: 10 | N196: 5 | O196: 0 | P196: 0 | Q196: 3 | R196: 0 | S196: 0 | T196: 0 | U196: 88 | W196: =AVERAGE(U196,U197) -> 79 | X196: CLASSIFICADO
A197: PESSOA FÍSICA | B197: =HYPERLINK("https://mapas.cultura.gov.br/inscricao/1527965024","on-1527965024") -> on-1527965024 | C197: Goiânia | D197: GO | E197: CENTRO OESTE | F197: Avaliador 2 | G197: 15 | H197: 12 | I197: 12 | J197: 5 | K197: 8 | L197: 5 | M197: 5 | N197: 5 | O197: 0 | P197: 0 | Q197: 3 | R197: 0 | S197: 0 | T197: 0 | U197: 70 | W197: =W196 -> 79
A198: PESSOA FÍSICA | B198: =HYPERLINK("https://mapas.cultura.gov.br/inscricao/414359392","on-414359392") -> on-414359392 | C198: Cuiabá | D198: MT | E198: CENTRO OESTE | F198: Avaliador 1 | G198: 20 | H198: 15 | I198: 12 | J198: 5 | K198: 5 | L198: 5 | M198: 5 | N198: 5 | O198: 3 | P198: 0 | Q198: 0 | R198: 0 | S198: 0 | T198: 0 | U198: 75 | W198: =AVERAGE(U198,U199) -> 79 | X198: CLASSIFICADO
A199: PESSOA FÍSICA | B199: =HYPERLINK("https://mapas.cultura.gov.br/inscricao/414359392","on-414359392") -> on-414359392 | C199: Cuiabá | D199: MT | E199: CENTRO OESTE | F199: Avaliador 2 | G199: 15 | H199: 12 | I199: 12 | J199: 5 | K199: 10 | L199: 8 | M199: 10 | N199: 8 | O199: 3 | P199: 0 | Q199: 0 | R199: 0 | S199: 0 | T199: 0 | U199: 83 | W199: =W198 -> 79
A200: PESSOA FÍSICA | B200: =HYPERLINK("https://mapas.cultura.gov.br/inscricao/784452880","on-784452880") -> on-784452880 | C200: Brazlândia | D200: DF | E200: CENTRO OESTE | F200: Avaliador 1 | G200: 10 | H200: 8 | I200: 12 | J200: 8 | K200: 5 | L200: 8 | M200: 8 | N200: 0 | O200: 0 | P200: 3 | Q200: 3 | R200: 0 | S200: 0 | T200: 0 | U200: 65 | W200: =AVERAGE(U200,U201) -> 78.5 | X200: CLASSIFICADO
... 363 more rows

Sheet GRUPOS, COLETIVOS, CREW (2)
A1: CATEGORIA | B1: INSCRIÇÃO | C1: CIDADE | D1: UF | E1: REGIÃO | F1: AVALIADOR | G1: CRITÉRIOS DE AVALIAÇÃO E SELEÇÃO 1 | H1: CRITÉRIOS DE AVALIAÇÃO E SELEÇÃO 2 | I1: CRITÉRIOS DE AVALIAÇÃO E SELEÇÃO 3 | J1: CRITÉRIOS DE AVALIAÇÃO E SELEÇÃO 4 | K1: CRITÉRIOS DE AVALIAÇÃO E SELEÇÃO 5 | L1: CRITÉRIOS DE AVALIAÇÃO E SELEÇÃO 6 | M1: CRITÉRIOS DE AVALIAÇÃO E SELEÇÃO 7 | N1: CRITÉRIOS DE AVALIAÇÃO E SELEÇÃO 8 | O1: PONTUAÇÃO EXTRA - Pessoa com deficiência | P1: PONTUAÇÃO EXTRA - Mulher | Q1: PONTUAÇÃO EXTRA - Pessoa negra | R1: PONTUAÇÃO EXTRA -Indígena, matriz africana, de terreiro ou de povos ou de comunidades tradicionais | S1: PONTUAÇÃO EXTRA LGBTQIA+ | T1: PONTUAÇÃO EXTRA Idosa com 60 anos ou mais? | U1: NOTA POR AVALIADOR | V1: OBSERVAÇÃO | W1: NOTA PRELIMINAR | X1: STATUS
A2: GRUPOS, COLETIVOS, CREW | B2: =HYPERLINK("https://mapas.cultura.gov.br/inscricao/1712559231","on-1712559231") -> on-1712559231 | C2: Dourados | D2: MS | E2: CENTRO OESTE | F2: Avaliador 1 | G2: 20 | H2: 15 | I2: 15 | J2: 10 | K2: 10 | L2: 10 | M2: 10 | N2: 10 | O2: 0 | P2: 3 | Q2: 0 | R2: 0 | S2: 3 | T2: 0 | U2: =SUM(G2:T2) -> 106 | W2: =AVERAGE(U2,U3) -> 106 | X2: PRÉ-SELECIONADO
A3: GRUPOS, COLETIVOS, CREW | B3: =HYPERLINK("https://mapas.cultura.gov.br/inscricao/1712559231","on-1712559231") -> on-1712559231 | C3: Dourados | D3: MS | E3: CENTRO OESTE | F3: Avaliador 2 | G3: 20 | H3: 15 | I3: 15 | J3: 10 | K3: 10 | L3: 10 | M3: 10 | N3: 10 | O3: 0 | P3: 3 | Q3: 0 | R3: 0 | S3: 3 | T3: 0 | U3: 106 | W3: =W2 -> 106
A4: GRUPOS, COLETIVOS, CREW | B4: =HYPERLINK("https://F2","on-1718255849") -> on-1718255849 | C4: Cuiabá | D4: MT | E4: CENTRO OESTE | F4: Avaliador 1 | G4: 20 | H4: 15 | I4: 15 | J4: 10 | K4: 10 | L4: 10 | M4: 10 | N4: 10 | O4: 0 | P4: 3 | Q4: 0 | R4: 0 | S4: 0 | T4: 0 | U4: 103 | W4: =AVERAGE(U4,U5) -> 103 | X4: PRÉ-SELECIONADO
A5: GRUPOS, COLETIVOS, CREW | B5: =HYPERLINK("https://F2","on-1718255849") -> on-1718255849 | C5: Cuiabá | D5: MT | E5: CENTRO OESTE | F5: Avaliador 2 | G5: 20 | H5: 15 | I5: 15 | J5: 10 | K5: 10 | L5: 10 | M5: 10 | N5: 10 | O5: 0 | P5: 3 | Q5: 0 | R5: 0 | S5: 0 | T5: 0 | U5: 103 | W5: =W4 -> 103
A6: GRUPOS, COLETIVOS, CREW | B6: =HYPERLINK("https://mapas.cultura.gov.br/inscricao/1339401871","on-1339401871") -> on-1339401871 | C6: Campo Grande | D6: MS | E6: CENTRO OESTE | F6: Avaliador 1 | G6: 20 | H6: 15 | I6: 15 | J6: 10 | K6: 10 | L6: 10 | M6: 10 | N6: 10 | O6: 0 | P6: 0 | Q6: 3 | R6: 0 | S6: 0 | T6: 0 | U6: 103 | W6: =AVERAGE(U6,U7) -> 103 | X6: PRÉ-SELECIONADO
A7: GRUPOS, COLETIVOS, CREW | B7: =HYPERLINK("https://mapas.cultura.gov.br/inscricao/E141339401871","on-1339401871") -> on-1339401871 | C7: Campo Grande | D7: MS | E7: CENTRO OESTE | F7: Avaliador 2 | G7: 20 | H7: 15 | I7: 15 | J7: 10 | K7: 10 | L7: 10 | M7: 10 | N7: 10 | O7: 0 | P7: 0 | Q7: 3 | R7: 0 | S7: 0 | T7: 0 | U7: 103 | W7: =W6 -> 103
A8: GRUPOS, COLETIVOS, CREW | B8: =HYPERLINK("https://mapas.cultura.gov.br/inscricao/987990263","on-987990263") -> on-987990263 | C8: Dourados | D8: MS | E8: CENTRO OESTE | F8: Avaliador 1 | G8: 20 | H8: 15 | I8: 15 | J8: 10 | K8: 10 | L8: 10 | M8: 10 | N8: 10 | O8: 0 | P8: 0 | Q8: 0 | R8: 3 | S8: 0 | T8: 0 | U8: 103 | W8: =AVERAGE(U8,U9) -> 103 | X8: PRÉ-SELECIONADO
A9: GRUPOS, COLETIVOS, CREW | B9: =HYPERLINK("https://mapas.cultura.gov.br/inscricao/987990263","on-987990263") -> on-987990263 | C9: Dourados | D9: MS | E9: CENTRO OESTE | F9: Avaliador 2 | G9: 20 | H9: 15 | I9: 15 | J9: 10 | K9: 10 | L9: 10 | M9: 10 | N9: 10 | O9: 0 | P9: 0 | Q9: 0 | R9: 3 | S9: 0 | T9: 0 | U9: 103 | W9: =W8 -> 103
A10: GRUPOS, COLETIVOS, CREW | B10: =HYPERLINK("https://mapas.cultura.gov.br/inscricao/82699798","on-82699798") -> on-82699798 | C10: Alto Paraíso de Goiás | D10: GO | E10: CENTRO OESTE | F10: Avaliador 1 | G10: 15 | H10: 15 | I10: 12 | J10: 10 | K10: 8 | L10: 10 | M10: 8 | N10: 10 | O10: 0 | P10: 3 | Q10: 3 | R10: 3 | S10: 3 | T10: 0 | U10: 100 | W10: =AVERAGE(U10,U11) -> 103 | X10: PRÉ-SELECIONADO
A11: GRUPOS, COLETIVOS, CREW | B11: =HYPERLINK("https://mapas.cultura.gov.br/inscricao/82699798","on-82699798") -> on-82699798 | C11: Alto Paraíso de Goiás | D11: GO | E11: CENTRO OESTE | F11: Avaliador 2 | G11: 20 | H11: 15 | I11: 15 | J11: 8 | K11: 10 | L11: 8 | M11: 8 | N11: 10 | O11: 0 | P11: 3 | Q11: 3 | R11: 3 | S11: 3 | T11: 0 | U11: 106 | W11: =W10 -> 103
A12: GRUPOS, COLETIVOS, CREW | B12: =HYPERLINK("https://mapas.cultura.gov.br/inscricao/1528616984","on-1528616984") -> on-1528616984 | C12: Cuiabá | D12: MT | E12: CENTRO OESTE | F12: Avaliador 1 | G12: 20 | H12: 15 | I12: 15 | J12: 10 | K12: 10 | L12: 10 | M12: 10 | N12: 10 | O12: 0 | P12: 0 | Q12: 3 | R12: 0 | S12: 0 | T12: 0 | U12: 103 | W12: =AVERAGE(U12,U13) -> 98.5 | X12: PRÉ-SELECIONADO
A13: GRUPOS, COLETIVOS, CREW | B13: =HYPERLINK("https://mapas.cultura.gov.br/inscricao/1528616984","on-1528616984") -> on-1528616984 | C13: Cuiabá | D13: MT | E13: CENTRO OESTE | F13: Avaliador 2 | G13: 20 | H13: 15 | I13: 15 | J13: 8 | K13: 10 | L13: 10 | M13: 10 | N13: 3 | O13: 0 | P13: 0 | Q13: 3 | R13: 0 | S13: 0 | T13: 0 | U13: 94 | W13: =W12 -> 98.5
A14: GRUPOS, COLETIVOS, CREW | B14: =HYPERLINK("https://mapas.cultura.gov.br/inscricao/755628365","on-755628365") -> on-755628365 | C14: Águas Lindas de Goiás | D14: GO | E14: CENTRO OESTE | F14: Avaliador 1 | G14: 20 | H14: 15 | I14: 15 | J14: 10 | K14: 10 | L14: 10 | M14: 10 | N14: 5 | O14: 0 | P14: 3 | Q14: 3 | R14: 0 | S14: 0 | T14: 0 | U14: 101 | W14: =AVERAGE(U14,U15) -> 96.5 | X14: PRÉ-SELECIONADO
A15: GRUPOS, COLETIVOS, CREW | B15: =HYPERLINK("https://mapas.cultura.gov.br/inscricao/755628365","on-755628365") -> on-755628365 | C15: Águas Lindas de Goiás | D15: GO | E15: CENTRO OESTE | F15: Avaliador 2 | G15: 20 | H15: 15 | I15: 8 | J15: 8 | K15: 10 | L15: 5 | M15: 10 | N15: 10 | O15: 0 | P15: 3 | Q15: 3 | R15: 0 | S15: 0 | T15: 0 | U15: 92 | W15: =W14 -> 96.5
A16: GRUPOS, COLETIVOS, CREW | B16: =HYPERLINK("https://mapas.cultura.gov.br/inscricao/157149343","on-157149343") -> on-157149343 | C16: Campo Grande | D16: MS | E16: CENTRO OESTE | F16: Avaliador 1 | G16: 20 | H16: 12 | I16: 15 | J16: 5 | K16: 5 | L16: 10 | M16: 10 | N16: 10 | O16: 0 | P16: 0 | Q16: 3 | R16: 0 | S16: 0 | T16: 0 | U16: 90 | W16: =AVERAGE(U16,U17) -> 90 | X16: PRÉ-SELECIONADO
A17: GRUPOS, COLETIVOS, CREW | B17: =HYPERLINK("https://mapas.cultura.gov.br/inscricao/157149343","on-157149343") -> on-157149343 | C17: Campo Grande | D17: MS | E17: CENTRO OESTE | F17: Avaliador 2 | G17: 20 | H17: 12 | I17: 15 | J17: 5 | K17: 5 | L17: 10 | M17: 10 | N17: 10 | O17: 0 | P17: 0 | Q17: 3 | R17: 0 | S17: 0 | T17: 0 | U17: 90 | W17: =W16 -> 90
A18: GRUPOS, COLETIVOS, CREW | B18: =HYPERLINK("https://mapas.cultura.gov.br/inscricao/881841479","on-881841479") -> on-881841479 | C18: Goiânia | D18: GO | E18: CENTRO OESTE | F18: Avaliador 1 | G18: 15 | H18: 15 | I18: 12 | J18: 10 | K18: 10 | L18: 10 | M18: 8 | N18: 10 | O18: 0 | P18: 3 | Q18: 0 | R18: 0 | S18: 3 | T18: 0 | U18: 96 | W18: =AVERAGE(U18,U19) -> 91 | X18: CLASSIFICADO
A19: GRUPOS, COLETIVOS, CREW | B19: =HYPERLINK("https://mapas.cultura.gov.br/inscricao/881841479","on-881841479") -> on-881841479 | C19: Goiânia | D19: GO | E19: CENTRO OESTE | F19: Avaliador 2 | G19: 15 | H19: 12 | I19: 12 | J19: 10 | K19: 5 | L19: 8 | M19: 8 | N19: 10 | O19: 0 | P19: 3 | Q19: 0 | R19: 0 | S19: 3 | T19: 0 | U19: 86 | W19: =W18 -> 91
A20: GRUPOS, COLETIVOS, CREW | B20: =HYPERLINK("https://mapas.cultura.gov.br/inscricao/1295702865","on-1295702865") -> on-1295702865 | C20: Goiânia | D20: GO | E20: CENTRO OESTE | F20: Avaliador 1 | G20: 10 | H20: 15 | I20: 12 | J20: 10 | K20: 8 | L20: 10 | M20: 10 | N20: 5 | O20: 0 | P20: 3 | Q20: 3 | R20: 0 | S20: 0 | T20: 0 | U20: 86 | W20: =AVERAGE(U20,U21) -> 86.5 | X20: CLASSIFICADO
A21: GRUPOS, COLETIVOS, CREW | B21: =HYPERLINK("https://mapas.cultura.gov.br/inscricao/1295702865","on-1295702865") -> on-1295702865 | C21: Goiânia | D21: GO | E21: CENTRO OESTE | F21: Avaliador 2 | G21: 15 | H21: 15 | I21: 12 | J21: 10 | K21: 8 | L21: 8 | M21: 8 | N21: 5 | O21: 0 | P21: 3 | Q21: 3 | R21: 0 | S21: 0 | T21: 0 | U21: 87 | W21: =W20 -> 86.5
A22: GRUPOS, COLETIVOS, CREW | B22: =HYPERLINK("https://mapas.cultura.gov.br/inscricao/715494308","on-715494308") -> on-715494308 | C22: Senador Canedo | D22: GO | E22: CENTRO OESTE | F22: Avaliador 1 | G22: 15 | H22: 8 | I22: 12 | J22: 8 | K22: 8 | L22: 8 | M22: 8 | N22: 8 | O22: 0 | P22: 0 | Q22: 3 | R22: 0 | S22: 0 | T22: 0 | U22: 78 | W22: =AVERAGE(U22,U23) -> 86 | X22: CLASSIFICADO
A23: GRUPOS, COLETIVOS, CREW | B23: =HYPERLINK("https://mapas.cultura.gov.br/inscricao/715494308","on-715494308") -> on-715494308 | C23: Senador Canedo | D23: GO | E23: CENTRO OESTE | F23: Avaliador 2 | G23: 20 | H23: 8 | I23: 15 | J23: 8 | K23: 10 | L23: 10 | M23: 10 | N23: 10 | O23: 0 | P23: 0 | Q23: 3 | R23: 0 | S23: 0 | T23: 0 | U23: 94 | W23: =W22 -> 86
A24: GRUPOS, COLETIVOS, CREW | B24: =HYPERLINK("https://mapas.cultura.gov.br/inscricao/831176459","on-831176459") -> on-831176459 | C24: Cuiabá | D24: MT | E24: CENTRO OESTE | F24: Avaliador 1 | G24: 15 | H24: 12 | I24: 12 | J24: 8 | K24: 8 | L24: 8 | M24: 8 | N24: 8 | O24: 0 | P24: 3 | Q24: 0 | R24: 0 | S24: 0 | T24: 0 | U24: 82 | W24: =AVERAGE(U24,U25) -> 86 | X24: CLASSIFICADO
A25: GRUPOS, COLETIVOS, CREW | B25: =HYPERLINK("https://mapas.cultura.gov.br/inscricao/831176459","on-831176459") -> on-831176459 | C25: Cuiabá | D25: MT | E25: CENTRO OESTE | F25: Avaliador 2 | G25: 20 | H25: 15 | I25: 15 | J25: 8 | K25: 10 | L25: 8 | M25: 8 | N25: 3 | O25: 0 | P25: 3 | Q25: 0 | R25: 0 | S25: 0 | T25: 0 | U25: 90 | W25: =W24 -> 86
A26: GRUPOS, COLETIVOS, CREW | B26: =HYPERLINK("https://mapas.cultura.gov.br/inscricao/300389376","on-300389376") -> on-300389376 | C26: Aguas Lindas de Goiais | D26: GO | E26: CENTRO OESTE | F26: Avaliador 1 | G26: 20 | H26: 15 | I26: 15 | J26: 8 | K26: 8 | L26: 10 | M26: 8 | N26: 5 | O26: 0 | P26: 3 | Q26: 3 | R26: 0 | S26: 0 | T26: 0 | U26: 95 | W26: =AVERAGE(U26,U27) -> 85.5 | X26: CLASSIFICADO
A27: GRUPOS, COLETIVOS, CREW | B27: =HYPERLINK("https://mapas.cultura.gov.br/inscricao/300389376","on-300389376") -> on-300389376 | C27: Aguas Lindas de Goiais | D27: GO | E27: CENTRO OESTE | F27: Avaliador 2 | G27: 15 | H27: 12 | I27: 12 | J27: 8 | K27: 5 | L27: 8 | M27: 5 | N27: 5 | O27: 0 | P27: 3 | Q27: 3 | R27: 0 | S27: 0 | T27: 0 | U27: 76 | W27: =W26 -> 85.5
A28: GRUPOS, COLETIVOS, CREW | B28: =HYPERLINK("https://mapas.cultura.gov.br/inscricao/1630897994","on-1630897994") -> on-1630897994 | C28: São Sebastião | D28: DF | E28: CENTRO OESTE | F28: Avaliador 1 | G28: 15 | H28: 12 | I28: 12 | J28: 10 | K28: 5 | L28: 8 | M28: 8 | N28: 5 | O28: 0 | P28: 3 | Q28: 3 | R28: 0 | S28: 0 | T28: 0 | U28: 81 | W28: =AVERAGE(U28,U29) -> 84 | X28: CLASSIFICADO
A29: GRUPOS, COLETIVOS, CREW | B29: on-1630897994 | C29: São Sebastião | D29: DF | E29: CENTRO OESTE | F29: Avaliador 2 | G29: 20 | H29: 12 | I29: 15 | J29: 10 | K29: 8 | L29: 8 | M29: 8 | N29: 0 | O29: 0 | P29: 3 | Q29: 3 | R29: 0 | S29: 0 | T29: 0 | U29: 87 | W29: =W28 -> 84
A30: GRUPOS, COLETIVOS, CREW | B30: =HYPERLINK("https://mapas.cultura.gov.br/inscricao/2144976671","on-2144976671") -> on-2144976671 | C30: Campo Grande | D30: MS | E30: CENTRO OESTE | F30: Avaliador 1 | G30: 15 | H30: 15 | I30: 15 | J30: 5 | K30: 8 | L30: 10 | M30: 10 | N30: 8 | O30: 0 | P30: 0 | Q30: 3 | R30: 0 | S30: 0 | T30: 0 | U30: 89 | W30: =AVERAGE(U30,U31) -> 83 | X30: CLASSIFICADO
A31: GRUPOS, COLETIVOS, CREW | B31: =HYPERLINK("https://mapas.cultura.gov.br/inscricao/2144976671","on-2144976671") -> on-2144976671 | C31: Campo Grande | D31: MS | E31: CENTRO OESTE | F31: Avaliador 2 | G31: 10 | H31: 15 | I31: 12 | J31: 5 | K31: 8 | L31: 8 | M31: 8 | N31: 8 | O31: 0 | P31: 0 | Q31: 3 | R31: 0 | S31: 0 | T31: 0 | U31: 77 | W31: =W30 -> 83
A32: GRUPOS, COLETIVOS, CREW | B32: =HYPERLINK("https://mapas.cultura.gov.br/inscricao/528128982","on-528128982") -> on-528128982 | C32: Senador Canedo | D32: GO | E32: CENTRO OESTE | F32: Avaliador 1 | G32: 15 | H32: 12 | I32: 8 | J32: 10 | K32: 5 | L32: 8 | M32: 8 | N32: 10 | O32: 3 | P32: 0 | Q32: 0 | R32: 3 | S32: 3 | T32: 0 | U32: 85 | W32: =AVERAGE(U32,U33) -> 82.5 | X32: CLASSIFICADO
A33: GRUPOS, COLETIVOS, CREW | B33: =HYPERLINK("https://mapas.cultura.gov.br/inscricao/528128982","on-528128982") -> on-528128982 | C33: Senador Canedo | D33: GO | E33: CENTRO OESTE | F33: Avaliador 2 | G33: 15 | H33: 12 | I33: 8 | J33: 10 | K33: 8 | L33: 8 | M33: 5 | N33: 5 | O33: 3 | P33: 0 | Q33: 0 | R33: 3 | S33: 3 | T33: 0 | U33: 80 | W33: =W32 -> 82.5
A34: GRUPOS, COLETIVOS, CREW | B34: =HYPERLINK("https://mapas.cultura.gov.br/inscricao/1950999859","on-1950999859") -> on-1950999859 | C34: Paranoá | D34: DF | E34: CENTRO OESTE | F34: Avaliador 1 | G34: 15 | H34: 12 | I34: 12 | J34: 3 | K34: 5 | L34: 8 | M34: 8 | N34: 5 | O34: 0 | P34: 3 | Q34: 0 | R34: 0 | S34: 0 | T34: 0 | U34: =SUM(G34:T34) -> 71 | W34: =AVERAGE(U34,U35) -> 80 | X34: CLASSIFICADO
A35: GRUPOS, COLETIVOS, CREW | B35: on-1950999859 | C35: Paranoá | D35: DF | E35: CENTRO OESTE | F35: Avaliador 2 | G35: 20 | H35: 15 | I35: 15 | J35: 8 | K35: 10 | L35: 10 | M35: 8 | N35: 0 | O35: 0 | P35: 3 | Q35: 0 | R35: 0 | S35: 0 | T35: 0 | U35: 89 | W35: =W34 -> 80
A36: GRUPOS, COLETIVOS, CREW | B36: =HYPERLINK("https://mapas.cultura.gov.br/inscricao/1599602372","on-1599602372") -> on-1599602372 | C36: Alto Paraíso de Goiás | D36: GO | E36: CENTRO OESTE | F36: Avaliador 1 | G36: 15 | H36: 12 | I36: 15 | J36: 8 | K36: 8 | L36: 10 | M36: 10 | N36: 5 | O36: 0 | P36: 0 | Q36: 3 | R36: 3 | S36: 0 | T36: 0 | U36: 89 | W36: =AVERAGE(U36,U37) -> 79.5 | X36: CLASSIFICADO
A37: GRUPOS, COLETIVOS, CREW | B37: =HYPERLINK("https://mapas.cultura.gov.br/inscricao/1599602372","on-1599602372") -> on-1599602372 | C37: Alto Paraíso de Goiás | D37: GO | E37: CENTRO OESTE | F37: Avaliador 2 | G37: 15 | H37: 12 | I37: 12 | J37: 5 | K37: 5 | L37: 5 | M37: 5 | N37: 5 | O37: 0 | P37: 0 | Q37: 3 | R37: 3 | S37: 0 | T37: 0 | U37: 70 | W37: =W36 -> 79.5
A38: GRUPOS, COLETIVOS, CREW | B38: =HYPERLINK("https://mapas.cultura.gov.br/inscricao/1975758809","on-1975758809") -> on-1975758809 | C38: Campo Grande | D38: MS | E38: CENTRO OESTE | F38: Avaliador 1 | G38: 15 | H38: 12 | I38: 12 | J38: 5 | K38: 8 | L38: 8 | M38: 8 | N38: 8 | O38: 0 | P38: 0 | Q38: 3 | R38: 0 | S38: 0 | T38: 0 | U38: 79 | W38: =AVERAGE(U38,U39) -> 79 | X38: CLASSIFICADO
A39: GRUPOS, COLETIVOS, CREW | B39: =HYPERLINK("https://mapas.cultura.gov.br/inscricao/1975758809","on-1975758809") -> on-1975758809 | C39: Campo Grande | D39: MS | E39: CENTRO OESTE | F39: Avaliador 2 | G39: 15 | H39: 12 | I39: 12 | J39: 5 | K39: 8 | L39: 8 | M39: 8 | N39: 8 | O39: 0 | P39: 0 | Q39: 3 | R39: 0 | S39: 0 | T39: 0 | U39: 79 | W39: =W38 -> 79
A40: GRUPOS, COLETIVOS, CREW | B40: =HYPERLINK("https://mapas.cultura.gov.br/inscricao/1567066502","on-1567066502") -> on-1567066502 | C40: Sobradinho II | D40: DF | E40: CENTRO OESTE | F40: Avaliador 1 | G40: 15 | H40: 12 | I40: 12 | J40: 3 | K40: 8 | L40: 8 | M40: 8 | N40: 5 | O40: 0 | P40: 3 | Q40: 3 | R40: 0 | S40: 0 | T40: 0 | U40: 77 | W40: =AVERAGE(U40,U41) -> 78.5 | X40: CLASSIFICADO
A41: GRUPOS, COLETIVOS, CREW | B41: on-1567066502 | C41: Sobradinho II | D41: DF | E41: CENTRO OESTE | F41: Avaliador 2 | G41: 20 | H41: 15 | I41: 15 | J41: 5 | K41: 3 | L41: 8 | M41: 8 | N41: 0 | O41: 0 | P41: 3 | Q41: 3 | R41: 0 | S41: 0 | T41: 0 | U41: 80 | W41: =W40 -> 78.5
A42: GRUPOS, COLETIVOS, CREW | B42: =HYPERLINK("https://mapas.cultura.gov.br/inscricao/197706041","on-197706041") -> on-197706041 | C42: Goiânia | D42: GO | E42: CENTRO OESTE | F42: Avaliador 1 | G42: 15 | H42: 15 | I42: 15 | J42: 8 | K42: 8 | L42: 10 | M42: 8 | N42: 3 | O42: 0 | P42: 0 | Q42: 3 | R42: 0 | S42: 0 | T42: 0 | U42: 85 | W42: =AVERAGE(U42,U43) -> 78 | X42: CLASSIFICADO
A43: GRUPOS, COLETIVOS, CREW | B43: =HYPERLINK("https://mapas.cultura.gov.br/inscricao/197706041","on-197706041") -> on-197706041 | C43: Goiânia | D43: GO | E43: CENTRO OESTE | F43: Avaliador 2 | G43: 15 | H43: 12 | I43: 12 | J43: 8 | K43: 5 | L43: 8 | M43: 5 | N43: 3 | O43: 0 | P43: 0 | Q43: 3 | R43: 0 | S43: 0 | T43: 0 | U43: 71 | W43: =W42 -> 78
A44: GRUPOS, COLETIVOS, CREW | B44: =HYPERLINK("https://mapas.cultura.gov.br/inscricao/990378770","on-990378770") -> on-990378770 | C44: Goiânia | D44: GO | E44: CENTRO OESTE | F44: Avaliador 1 | G44: 20 | H44: 12 | I44: 15 | J44: 5 | K44: 8 | L44: 10 | M44: 8 | N44: 0 | O44: 0 | P44: 0 | Q44: 3 | R44: 0 | S44: 0 | T44: 0 | U44: 81 | W44: =AVERAGE(U44,U45) -> 77 | X44: CLASSIFICADO
A45: GRUPOS, COLETIVOS, CREW | B45: =HYPERLINK("https://mapas.cultura.gov.br/inscricao/990378770","on-990378770") -> on-990378770 | C45: Goiânia | D45: GO | E45: CENTRO OESTE | F45: Avaliador 2 | G45: 15 | H45: 12 | I45: 12 | J45: 8 | K45: 5 | L45: 5 | M45: 8 | N45: 5 | O45: 0 | P45: 0 | Q45: 3 | R45: 0 | S45: 0 | T45: 0 | U45: 73 | W45: =W44 -> 77
A46: GRUPOS, COLETIVOS, CREW | B46: =HYPERLINK("https://mapas.cultura.gov.br/inscricao/877321334","on-877321334") -> on-877321334 | C46: Caldas Novas | D46: GO | E46: CENTRO OESTE | F46: Avaliador 1 | G46: 20 | H46: 8 | I46: 15 | J46: 5 | K46: 8 | L46: 10 | M46: 8 | N46: 5 | O46: 0 | P46: 0 | Q46: 3 | R46: 0 | S46: 0 | T46: 0 | U46: 82 | W46: =AVERAGE(U46,U47) -> 76 | X46: CLASSIFICADO
A47: GRUPOS, COLETIVOS, CREW | B47: =HYPERLINK("https://mapas.cultura.gov.br/inscricao/877321334","on-877321334") -> on-877321334 | C47: Caldas Novas | D47: GO | E47: CENTRO OESTE | F47: Avaliador 2 | G47: 15 | H47: 12 | I47: 12 | J47: 5 | K47: 8 | L47: 5 | M47: 5 | N47: 5 | O47: 0 | P47: 0 | Q47: 3 | R47: 0 | S47: 0 | T47: 0 | U47: 70 | W47: =W46 -> 76
A48: GRUPOS, COLETIVOS, CREW | B48: =HYPERLINK("https://mapas.cultura.gov.br/inscricao/694261729","on-694261729") -> on-694261729 | C48: Campo Grande | D48: MS | E48: CENTRO OESTE | F48: Avaliador 1 | G48: 20 | H48: 8 | I48: 12 | J48: 5 | K48: 5 | L48: 10 | M48: 8 | N48: 8 | O48: 0 | P48: 0 | Q48: 0 | R48: 0 | S48: 0 | T48: 0 | U48: 76 | W48: =AVERAGE(U48,U49) -> 76 | X48: CLASSIFICADO
A49: GRUPOS, COLETIVOS, CREW | B49: =HYPERLINK("https://mapas.cultura.gov.br/inscricao/694261729","on-694261729") -> on-694261729 | C49: Campo Grande | D49: MS | E49: CENTRO OESTE | F49: Avaliador 2 | G49: 20 | H49: 8 | I49: 12 | J49: 5 | K49: 5 | L49: 10 | M49: 8 | N49: 8 | O49: 0 | P49: 0 | Q49: 0 | R49: 0 | S49: 0 | T49: 0 | U49: 76 | W49: =W48 -> 76
A50: GRUPOS, COLETIVOS, CREW | B50: =HYPERLINK("https://mapas.cultura.gov.br/inscricao/97298516","on-97298516") -> on-97298516 | C50: Brasília | D50: DF | E50: CENTRO OESTE | F50: Avaliador 1 | G50: 10 | H50: 12 | I50: 8 | J50: 3 | K50: 5 | L50: 8 | M50: 8 | N50: 3 | O50: 0 | P50: 3 | Q50: 3 | R50: 0 | S50: 0 | T50: 0 | U50: 63 | W50: =AVERAGE(U50,U51) -> 75.5 | X50: CLASSIFICADO
A51: GRUPOS, COLETIVOS, CREW | B51: on-97298516 | C51: Brasília | D51: DF | E51: CENTRO OESTE | F51: Avaliador 2 | G51: 20 | H51: 15 | I51: 12 | J51: 5 | K51: 10 | L51: 10 | M51: 10 | N51: 0 | O51: 0 | P51: 3 | Q51: 3 | R51: 0 | S51: 0 | T51: 0 | U51: 88 | W51: =W50 -> 75.5
A52: GRUPOS, COLETIVOS, CREW | B52: =HYPERLINK("https://mapas.cultura.gov.br/inscricao/1039120037","on-1039120037") -> on-1039120037 | C52: Aparecida de Goiânia | D52: GO | E52: CENTRO OESTE | F52: Avaliador 1 | G52: 15 | H52: 8 | I52: 15 | J52: 0 | K52: 10 | L52: 10 | M52: 10 | N52: 5 | O52: 0 | P52: 0 | Q52: 3 | R52: 3 | S52: 0 | T52: 0 | U52: 79 | W52: =AVERAGE(U52,U53) -> 72.5 | X52: CLASSIFICADO
A53: GRUPOS, COLETIVOS, CREW | B53: =HYPERLINK("https://mapas.cultura.gov.br/inscricao/1039120037","on-1039120037") -> on-1039120037 | C53: Aparecida de Goiânia | D53: GO | E53: CENTRO OESTE | F53: Avaliador 2 | G53: 10 | H53: 12 | I53: 12 | J53: 0 | K53: 8 | L53: 8 | M53: 5 | N53: 5 | O53: 0 | P53: 0 | Q53: 3 | R53: 3 | S53: 0 | T53: 0 | U53: 66 | W53: =W52 -> 72.5
A54: GRUPOS, COLETIVOS, CREW | B54: =HYPERLINK("https://mapas.cultura.gov.br/inscricao/1868484227","on-1868484227") -> on-1868484227 | C54: Planaltina | D54: GO | E54: CENTRO OESTE | F54: Avaliador 1 | G54: 15 | H54: 15 | I54: 15 | J54: 5 | K54: 8 | L54: 8 | M54: 8 | N54: 3 | O54: 0 | P54: 0 | Q54: 0 | R54: 0 | S54: 0 | T54: 0 | U54: 77 | W54: =AVERAGE(U54,U55) -> 71.5 | X54: CLASSIFICADO
A55: GRUPOS, COLETIVOS, CREW | B55: =HYPERLINK("https://mapas.cultura.gov.br/inscricao/1868484227","on-1868484227") -> on-1868484227 | C55: Planaltina | D55: GO | E55: CENTRO OESTE | F55: Avaliador 2 | G55: 15 | H55: 12 | I55: 8 | J55: 5 | K55: 8 | L55: 5 | M55: 8 | N55: 5 | O55: 0 | P55: 0 | Q55: 0 | R55: 0 | S55: 0 | T55: 0 | U55: 66 | W55: =W54 -> 71.5
A56: GRUPOS, COLETIVOS, CREW | B56: =HYPERLINK("https://mapas.cultura.gov.br/inscricao/1672387480","on-1672387480") -> on-1672387480 | C56: Brasília | D56: DF | E56: CENTRO OESTE | F56: Avaliador 1 | G56: 10 | H56: 12 | I56: 12 | J56: 5 | K56: 3 | L56: 8 | M56: 8 | N56: 3 | O56: 0 | P56: 3 | Q56: 0 | R56: 0 | S56: 0 | T56: 0 | U56: 64 | W56: =AVERAGE(U56,U57) -> 70 | X56: CLASSIFICADO
A57: GRUPOS, COLETIVOS, CREW | B57: on-1672387480 | C57: Brasília | D57: DF | E57: CENTRO OESTE | F57: Avaliador 2 | G57: 15 | H57: 15 | I57: 15 | J57: 3 | K57: 5 | L57: 10 | M57: 10 | N57: 0 | O57: 0 | P57: 3 | Q57: 0 | R57: 0 | S57: 0 | T57: 0 | U57: 76 | W57: =W56 -> 70
A58: GRUPOS, COLETIVOS, CREW | B58: =HYPERLINK("https://mapas.cultura.gov.br/inscricao/1465837558","on-1465837558") -> on-1465837558 | C58: Aparecida de Goiânia | D58: GO | E58: CENTRO OESTE | F58: Avaliador 1 | G58: 15 | H58: 12 | I58: 15 | J58: 3 | K58: 8 | L58: 10 | M58: 10 | N58: 3 | O58: 0 | P58: 0 | Q58: 3 | R58: 0 | S58: 0 | T58: 0 | U58: 79 | W58: =AVERAGE(U58,U59) -> 69 | X58: CLASSIFICADO
A59: GRUPOS, COLETIVOS, CREW | B59: =HYPERLINK("https://mapas.cultura.gov.br/inscricao/1465837558","on-1465837558") -> on-1465837558 | C59: Aparecida de Goiânia | D59: GO | E59: CENTRO OESTE | F59: Avaliador 2 | G59: 15 | H59: 12 | I59: 8 | J59: 5 | K59: 5 | L59: 5 | M59: 3 | N59: 3 | O59: 0 | P59: 0 | Q59: 3 | R59: 0 | S59: 0 | T59: 0 | U59: 59 | W59: =W58 -> 69
A60: GRUPOS, COLETIVOS, CREW | B60: =HYPERLINK("https://mapas.cultura.gov.br/inscricao/1434301584","on-1434301584") -> on-1434301584 | C60: Samambaia | D60: DF | E60: CENTRO OESTE | F60: Avaliador 1 | G60: 10 | H60: 12 | I60: 12 | J60: 0 | K60: 5 | L60: 8 | M60: 5 | N60: 0 | O60: 0 | P60: 0 | Q60: 3 | R60: 0 | S60: 0 | T60: 0 | U60: 55 | W60: =AVERAGE(U60,U61) -> 65 | X60: CLASSIFICADO
A61: GRUPOS, COLETIVOS, CREW | B61: on-1434301584 | C61: Samambaia | D61: DF | E61: CENTRO OESTE | F61: Avaliador 2 | G61: 15 | H61: 12 | I61: 15 | J61: 5 | K61: 10 | L61: 10 | M61: 5 | N61: 0 | O61: 0 | P61: 0 | Q61: 3 | R61: 0 | S61: 0 | T61: 0 | U61: 75 | W61: =W60 -> 65
A62: GRUPOS, COLETIVOS, CREW | B62: =HYPERLINK("https://mapas.cultura.gov.br/inscricao/1964296123","on-1964296123") -> on-1964296123 | C62: Anápolis | D62: GO | E62: CENTRO OESTE | F62: Avaliador 1 | G62: 15 | H62: 12 | I62: 12 | J62: 8 | K62: 8 | L62: 8 | M62: 5 | N62: 5 | O62: 0 | P62: 3 | Q62: 0 | R62: 0 | S62: 0 | T62: 0 | U62: 76 | W62: =AVERAGE(U62,U63) -> 66.5 | X62: CLASSIFICADO
A63: GRUPOS, COLETIVOS, CREW | B63: =HYPERLINK("https://mapas.cultura.gov.br/inscricao/1964296123","on-1964296123") -> on-1964296123 | C63: Anápolis | D63: GO | E63: CENTRO OESTE | F63: Avaliador 2 | G63: 10 | H63: 8 | I63: 8 | J63: 5 | K63: 5 | L63: 5 | M63: 5 | N63: 8 | O63: 0 | P63: 3 | Q63: 0 | R63: 0 | S63: 0 | T63: 0 | U63: 57 | W63: =W62 -> 66.5
A64: GRUPOS, COLETIVOS, CREW | B64: =HYPERLINK("https://mapas.cultura.gov.br/inscricao/1326365704","on-1326365704") -> on-1326365704 | C64: Campo Grande | D64: MS | E64: CENTRO OESTE | F64: Avaliador 1 | G64: 10 | H64: 12 | I64: 12 | J64: 5 | K64: 5 | L64: 10 | M64: 8 | N64: 5 | O64: 0 | P64: 3 | Q64: 0 | R64: 0 | S64: 0 | T64: 0 | U64: 70 | W64: =AVERAGE(U64,U65) -> 62 | X64: CLASSIFICADO
A65: GRUPOS, COLETIVOS, CREW | B65: =HYPERLINK("https://mapas.cultura.gov.br/inscricao/1326365704","on-1326365704") -> on-1326365704 | C65: Campo Grande | D65: MS | E65: CENTRO OESTE | F65: Avaliador 2 | G65: 10 | H65: 8 | I65: 8 | J65: 5 | K65: 5 | L65: 5 | M65: 5 | N65: 5 | O65: 0 | P65: 3 | Q65: 0 | R65: 0 | S65: 0 | T65: 0 | U65: 54 | W65: =W64 -> 62
A66: GRUPOS, COLETIVOS, CREW | B66: =HYPERLINK("https://mapas.cultura.gov.br/inscricao/1189989730","on-1189989730") -> on-1189989730 | C66: Estrutural | D66: DF | E66: CENTRO OESTE | F66: Avaliador 1 | G66: 15 | H66: 12 | I66: 8 | J66: 3 | K66: 3 | L66: 8 | M66: 5 | N66: 3 | O66: 0 | P66: 0 | Q66: 3 | R66: 0 | S66: 0 | T66: 0 | U66: =SUM(G66:T66) -> 60 | W66: =AVERAGE(U66,U67) -> 61 | X66: CLASSIFICADO
A67: GRUPOS, COLETIVOS, CREW | B67: on-1189989730 | C67: Estrutural | D67: DF | E67: CENTRO OESTE | F67: Avaliador 2 | G67: 20 | H67: 8 | I67: 8 | J67: 5 | K67: 5 | L67: 5 | M67: 8 | N67: 0 | O67: 0 | P67: 0 | Q67: 3 | R67: 0 | S67: 0 | T67: 0 | U67: 62 | W67: =W66 -> 61
A68: GRUPOS, COLETIVOS, CREW | B68: =HYPERLINK("https://mapas.cultura.gov.br/inscricao/1526455704","on-1526455704") -> on-1526455704 | C68: Sobradinho | D68: DF | E68: CENTRO OESTE | F68: Avaliador 1 | G68: 20 | H68: 12 | I68: 12 | J68: 10 | K68: 5 | L68: 8 | M68: 8 | N68: 5 | O68: 0 | P68: 3 | Q68: 3 | R68: 0 | S68: 3 | T68: 0 | U68: 89 | V68: DESCLASSIFICADA COM BASE NO ITEM 7.10 | W68: =AVERAGE(U68,U69) -> 92.5 | X68: DESCLASSIFICADO
A69: GRUPOS, COLETIVOS, CREW | B69: on-1526455704 | C69: Sobradinho | D69: DF | E69: CENTRO OESTE | F69: Avaliador 2 | G69: 20 | H69: 15 | I69: 12 | J69: 10 | K69: 5 | L69: 10 | M69: 10 | N69: 5 | O69: 0 | P69: 3 | Q69: 3 | R69: 0 | S69: 3 | T69: 0 | U69: 96 | W69: =W68 -> 92.5
A70: GRUPOS, COLETIVOS, CREW | B70: =HYPERLINK("https://mapas.cultura.gov.br/inscricao/790166306","on-790166306") -> on-790166306 | C70: São Sebastião | D70: DF | E70: CENTRO OESTE | F70: Avaliador 1 | G70: 15 | H70: 12 | I70: 12 | J70: 8 | K70: 5 | L70: 8 | M70: 8 | N70: 3 | O70: 0 | P70: 3 | Q70: 3 | R70: 0 | S70: 0 | T70: 0 | U70: 77 | V70: DESCLASSIFICADA COM BASE NO ITEM 7.10 | W70: =AVERAGE(U70,U71) -> 86.5 | X70: DESCLASSIFICADO
A71: GRUPOS, COLETIVOS, CREW | B71: on-790166306 | C71: São Sebastião | D71: DF | E71: CENTRO OESTE | F71: Avaliador 2 | G71: 20 | H71: 15 | I71: 15 | J71: 10 | K71: 10 | L71: 10 | M71: 10 | N71: 0 | O71: 0 | P71: 3 | Q71: 3 | R71: 0 | S71: 0 | T71: 0 | U71: 96 | W71: =W70 -> 86.5
A72: GRUPOS, COLETIVOS, CREW | B72: =HYPERLINK("https://mapas.cultura.gov.br/inscricao/1871641562","on-1871641562") -> on-1871641562 | C72: Brasília | D72: DF | E72: CENTRO OESTE | F72: Avaliador 1 | G72: 15 | H72: 15 | I72: 8 | J72: 5 | K72: 5 | L72: 8 | M72: 8 | N72: 3 | O72: 3 | P72: 3 | Q72: 3 | R72: 0 | S72: 0 | T72: 0 | U72: 76 | V72: DESCLASSIFICADA COM BASE NO ITEM 7.10 | W72: =AVERAGE(U72,U73) -> 74 | X72: DESCLASSIFICADO
A73: GRUPOS, COLETIVOS, CREW | B73: on-1871641562 | C73: Brasília | D73: DF | E73: CENTRO OESTE | F73: Avaliador 2 | G73: 10 | H73: 8 | I73: 12 | J73: 5 | K73: 5 | L73: 10 | M73: 10 | N73: 0 | O73: 3 | P73: 3 | Q73: 3 | R73: 3 | S73: 0 | T73: 0 | U73: 72 | W73: =W72 -> 74
A74: GRUPOS, COLETIVOS, CREW | B74: =HYPERLINK("https://mapas.cultura.gov.br/inscricao/245612027","on-245612027") -> on-245612027 | C74: Ceilândia Norte | D74: DF | E74: CENTRO OESTE | F74: Avaliador 1 | G74: 15 | H74: 12 | I74: 15 | J74: 5 | K74: 8 | L74: 10 | M74: 8 | N74: 3 | O74: 0 | P74: 0 | Q74: 3 | R74: 0 | S74: 0 | T74: 0 | U74: 79 | V74: DESCLASSIFICADA COM BASE NO ITEM 7.10 | W74: =AVERAGE(U74,U75) -> 72 | X74: DESCLASSIFICADO
A75: GRUPOS, COLETIVOS, CREW | B75: on-245612027 | C75: Ceilândia Norte | D75: DF | E75: CENTRO OESTE | F75: Avaliador 2 | G75: 15 | H75: 12 | I75: 12 | J75: 0 | K75: 5 | L75: 8 | M75: 10 | N75: 0 | O75: 0 | P75: 0 | Q75: 3 | R75: 0 | S75: 0 | T75: 0 | U75: 65 | W75: =W74 -> 72
A76: GRUPOS, COLETIVOS, CREW | B76: =HYPERLINK("https://mapas.cultura.gov.br/inscricao/1372628839","on-1372628839") -> on-1372628839 | C76: Sol Nascente | D76: DF | E76: CENTRO OESTE | F76: Avaliador 1 | G76: 10 | H76: 12 | I76: 12 | J76: 3 | K76: 5 | L76: 5 | M76: 5 | N76: 0 | O76: 0 | P76: 3 | Q76: 3 | R76: 0 | S76: 0 | T76: 0 | U76: 58 | V76: DESCLASSIFICADA COM BASE NO ITEM 7.10 | W76: =AVERAGE(U76,U77) -> 71 | X76: DESCLASSIFICADO
A77: GRUPOS, COLETIVOS, CREW | B77: on-1372628839 | C77: Sol Nascente | D77: DF | E77: CENTRO OESTE | F77: Avaliador 2 | G77: 15 | H77: 15 | I77: 15 | J77: 8 | K77: 5 | L77: 10 | M77: 10 | N77: 0 | O77: 0 | P77: 3 | Q77: 3 | R77: 0 | S77: 0 | T77: 0 | U77: 84 | W77: =W76 -> 71
A78: GRUPOS, COLETIVOS, CREW | B78: =HYPERLINK("https://mapas.cultura.gov.br/inscricao/81899739","on-81899739") -> on-81899739 | C78: Brazlândia | D78: DF | E78: CENTRO OESTE | F78: Avaliador 1 | G78: 10 | H78: 12 | I78: 12 | J78: 5 | K78: 5 | L78: 8 | M78: 8 | N78: 3 | O78: 0 | P78: 0 | Q78: 0 | R78: 0 | S78: 0 | T78: 0 | U78: 63 | V78: DESCLASSIFICADA COM BASE NO ITEM 7.10 | W78: =AVERAGE(U78,U79) -> 65 | X78: DESCLASSIFICADO
A79: GRUPOS, COLETIVOS, CREW | B79: on-81899739 | C79: Brazlândia | D79: DF | E79: CENTRO OESTE | F79: Avaliador 2 | G79: 20 | H79: 12 | I79: 12 | J79: 0 | K79: 10 | L79: 8 | M79: 5 | N79: 0 | O79: 0 | P79: 0 | Q79: 0 | R79: 0 | S79: 0 | T79: 0 | U79: 67 | W79: =W78 -> 65
A80: GRUPOS, COLETIVOS, CREW | B80: =HYPERLINK("https://mapas.cultura.gov.br/inscricao/17673856","on-17673856") -> on-17673856 | C80: Bataguassu | D80: MS | E80: CENTRO OESTE | F80: Avaliador 1 | G80: 10 | H80: 15 | I80: 8 | J80: 5 | K80: 5 | L80: 10 | M80: 8 | N80: 5 | O80: 0 | P80: 0 | Q80: 0 | R80: 0 | S80: 0 | T80: 0 | U80: 66 | V80: DESCLASSIFICADA COM BASE NO ITEM 7.7 | W80: =AVERAGE(U80,U81) -> 58.5 | X80: DESCLASSIFICADO
A81: GRUPOS, COLETIVOS, CREW | B81: =HYPERLINK("https://mapas.cultura.gov.br/inscricao/17673856","on-17673856") -> on-17673856 | C81: Bataguassu | D81: MS | E81: CENTRO OESTE | F81: Avaliador 2 | G81: 10 | H81: 8 | I81: 8 | J81: 5 | K81: 5 | L81: 5 | M81: 5 | N81: 5 | O81: 0 | P81: 0 | Q81: 0 | R81: 0 | S81: 0 | T81: 0 | U81: 51 | W81: =W80 -> 58.5
A82: GRUPOS, COLETIVOS, CREW | B82: =HYPERLINK("https://mapas.cultura.gov.br/inscricao/416911603","on-416911603") -> on-416911603 | C82: Samambaia | D82: DF | E82: CENTRO OESTE | F82: Avaliador 1 | G82: 10 | H82: 4 | I82: 12 | J82: 3 | K82: 5 | L82: 10 | M82: 5 | N82: 3 | O82: 0 | P82: 0 | Q82: 3 | R82: 0 | S82: 0 | T82: 3 | U82: 58 | V82: DESCLASSIFICADO COM BASE NO ITEM 9.15 | W82: =AVERAGE(U82,U83) -> 58.5 | X82: DESCLASSIFICADO
A83: GRUPOS, COLETIVOS, CREW | B83: on-416911603 | C83: Samambaia | D83: DF | E83: CENTRO OESTE | F83: Avaliador 2 | G83: 10 | H83: 0 | I83: 15 | J83: 0 | K83: 10 | L83: 10 | M83: 8 | N83: 0 | O83: 0 | P83: 0 | Q83: 3 | R83: 0 | S83: 0 | T83: 3 | U83: 59 | W83: =W82 -> 58.5
A84: GRUPOS, COLETIVOS, CREW | B84: =HYPERLINK("https://mapas.cultura.gov.br/inscricao/2101138460","on-2101138460") -> on-2101138460 | C84: Brasília | D84: DF | E84: CENTRO OESTE | F84: Avaliador 1 | G84: 10 | H84: 4 | I84: 8 | J84: 5 | K84: 3 | L84: 5 | M84: 5 | N84: 8 | O84: 0 | P84: 3 | Q84: 3 | R84: 0 | S84: 3 | T84: 0 | U84: 57 | V84: DESCLASSIFICADA COM BASE NO ITEM 7.7 | W84: =AVERAGE(U84,U85) -> 58.5 | X84: DESCLASSIFICADO
A85: GRUPOS, COLETIVOS, CREW | B85: on-2101138460 | C85: Brasília | D85: DF | E85: CENTRO OESTE | F85: Avaliador 2 | G85: 5 | H85: 4 | I85: 12 | J85: 10 | K85: 10 | L85: 5 | M85: 5 | N85: 0 | O85: 0 | P85: 3 | Q85: 3 | R85: 0 | S85: 3 | T85: 0 | U85: 60 | W85: =W84 -> 58.5
A86: GRUPOS, COLETIVOS, CREW | B86: =HYPERLINK("https://mapas.cultura.gov.br/inscricao/980806244","on-980806244") -> on-980806244 | C86: Cuiabá | D86: MT | E86: CENTRO OESTE | F86: Avaliador 1 | G86: 10 | H86: 8 | I86: 12 | J86: 8 | K86: 8 | L86: 5 | M86: 3 | N86: 5 | O86: 0 | P86: 3 | Q86: 0 | R86: 0 | S86: 0 | T86: 0 | U86: 62 | V86: DESCLASSIFICADA COM BASE NO ITEM 7.10 | W86: =AVERAGE(U86,U87) -> 55.5 | X86: DESCLASSIFICADO
A87: GRUPOS, COLETIVOS, CREW | B87: =HYPERLINK("https://mapas.cultura.gov.br/inscricao/980806244","on-980806244") -> on-980806244 | C87: Cuiabá | D87: MT | E87: CENTRO OESTE | F87: Avaliador 2 | G87: 10 | H87: 8 | I87: 8 | J87: 5 | K87: 5 | L87: 5 | M87: 5 | N87: 0 | O87: 0 | P87: 3 | Q87: 0 | R87: 0 | S87: 0 | T87: 0 | U87: 49 | W87: =W86 -> 55.5
A88: GRUPOS, COLETIVOS, CREW | B88: =HYPERLINK("https://mapas.cultura.gov.br/inscricao/1765984301","on-1765984301") -> on-1765984301 | C88: novo gama | D88: GO | E88: CENTRO OESTE | F88: Avaliador 1 | G88: 15 | H88: 8 | I88: 12 | J88: 3 | K88: 3 | L88: 5 | M88: 3 | N88: 3 | O88: 0 | P88: 0 | Q88: 3 | R88: 0 | S88: 0 | T88: 0 | U88: 55 | V88: DESCLASSIFICADA COM BASE NO ITEM 7.7 | W88: =AVERAGE(U88,U89) -> 54.5 | X88: DESCLASSIFICADO
A89: GRUPOS, COLETIVOS, CREW | B89: =HYPERLINK("https://mapas.cultura.gov.br/inscricao/1765984301","on-1765984301") -> on-1765984301 | C89: novo gama | D89: GO | E89: CENTRO OESTE | F89: Avaliador 2 | G89: 10 | H89: 8 | I89: 8 | J89: 5 | K89: 5 | L89: 5 | M89: 5 | N89: 5 | O89: 0 | P89: 0 | Q89: 3 | R89: 0 | S89: 0 | T89: 0 | U89: 54 | W89: =W88 -> 54.5
A90: GRUPOS, COLETIVOS, CREW | B90: =HYPERLINK("https://mapas.cultura.gov.br/inscricao/1244233755","on-1244233755") -> on-1244233755 | C90: Brasilia | D90: DF | E90: CENTRO OESTE | F90: Avaliador 1 | G90: 10 | H90: 12 | I90: 8 | J90: 3 | K90: 5 | L90: 8 | M90: 5 | N90: 3 | O90: 3 | P90: 0 | Q90: 3 | R90: 0 | S90: 0 | T90: 0 | U90: 60 | V90: DESCLASSIFICADA COM BASE NO ITEM 7.10 | W90: =AVERAGE(U90,U91) -> 52.5 | X90: DESCLASSIFICADO
A91: GRUPOS, COLETIVOS, CREW | B91: on-1244233755 | C91: Brasilia | D91: DF | E91: CENTRO OESTE | F91: Avaliador 2 | G91: 10 | H91: 4 | I91: 15 | J91: 0 | K91: 0 | L91: 5 | M91: 5 | N91: 0 | O91: 3 | P91: 0 | Q91: 3 | R91: 0 | S91: 0 | T91: 0 | U91: 45 | W91: =W90 -> 52.5
A92: GRUPOS, COLETIVOS, CREW | B92: =HYPERLINK("https://mapas.cultura.gov.br/inscricao/411620243","on-411620243") -> on-411620243 | C92: Guará | D92: DF | E92: CENTRO OESTE | F92: Avaliador 1 | G92: 10 | H92: 8 | I92: 8 | J92: 3 | K92: 3 | L92: 0 | M92: 0 | N92: 0 | P92: 3 | Q92: 3 | R92: 0 | S92: 3 | T92: 0 | U92: 41 | V92: DESCLASSIFICADA COM BASE NO ITEM 7.10 | W92: =AVERAGE(U92,U93) -> 52.5 | X92: DESCLASSIFICADO
A93: GRUPOS, COLETIVOS, CREW | B93: on-411620243 | C93: Guará | D93: DF | E93: CENTRO OESTE | F93: Avaliador 2 | G93: 10 | H93: 4 | I93: 8 | J93: 5 | K93: 8 | L93: 10 | M93: 10 | N93: 0 | O93: 0 | P93: 3 | Q93: 3 | R93: 0 | S93: 3 | T93: 0 | U93: 64 | W93: =W92 -> 52.5
A94: GRUPOS, COLETIVOS, CREW | B94: =HYPERLINK("https://mapas.cultura.gov.br/inscricao/141163963","on-141163963") -> on-141163963 | C94: Ceilândia | D94: DF | E94: CENTRO OESTE | F94: Avaliador 1 | G94: 0 | H94: 0 | I94: 12 | J94: 0 | K94: 8 | L94: 10 | M94: 8 | N94: 0 | P94: 0 | Q94: 0 | R94: 0 | S94: 0 | T94: 0 | U94: 38 | V94: DESCLASSIFICADA COM BASE NO ITEM 7.7 | W94: =AVERAGE(U94,U95) -> 48 | X94: DESCLASSIFICADO
A95: GRUPOS, COLETIVOS, CREW | B95: on-141163963 | C95: Ceilândia | D95: DF | E95: CENTRO OESTE | F95: Avaliador 2 | G95: 10 | H95: 4 | I95: 15 | J95: 3 | K95: 8 | L95: 10 | M95: 8 | N95: 0 | O95: 0 | P95: 0 | Q95: 0 | R95: 0 | S95: 0 | T95: 0 | U95: 58 | W95: =W94 -> 48
A96: GRUPOS, COLETIVOS, CREW | B96: =HYPERLINK("https://mapas.cultura.gov.br/inscricao/433315715","on-433315715") -> on-433315715 | C96: Hidrolina | D96: GO | E96: CENTRO OESTE | F96: Avaliador 1 | G96: 10 | H96: 4 | I96: 4 | J96: 0 | K96: 3 | L96: 5 | M96: 3 | N96: 0 | O96: 0 | P96: 0 | Q96: 3 | R96: 3 | S96: 3 | T96: 0 | U96: 38 | V96: DESCLASSIFICADA COM BASE NO ITEM 7.7 | W96: =AVERAGE(U96,U97) -> 48 | X96: DESCLASSIFICADO
A97: GRUPOS, COLETIVOS, CREW | B97: =HYPERLINK("https://mapas.cultura.gov.br/inscricao/433315715","on-433315715") -> on-433315715 | C97: Hidrolina | D97: GO | E97: CENTRO OESTE | F97: Avaliador 2 | G97: 10 | H97: 8 | I97: 8 | J97: 5 | K97: 5 | L97: 5 | M97: 3 | N97: 5 | O97: 0 | P97: 0 | Q97: 3 | R97: 3 | S97: 3 | T97: 0 | U97: 58 | W97: =W96 -> 48
A98: GRUPOS, COLETIVOS, CREW | B98: =HYPERLINK("https://mapas.cultura.gov.br/inscricao/1083301729","on-1083301729") -> on-1083301729 | C98: Recanto das Emas | D98: DF | E98: CENTRO OESTE | F98: Avaliador 1 | G98: 15 | H98: 12 | I98: 8 | J98: 0 | K98: 3 | L98: 8 | M98: 5 | N98: 3 | O98: 0 | P98: 0 | Q98: 3 | R98: 0 | S98: 0 | T98: 0 | U98: =SUM(G98:T98) -> 57 | V98: DESCLASSIFICADA COM BASE NO ITEM 7.7 | W98: =AVERAGE(U98,U99) -> 45.5 | X98: DESCLASSIFICADO
A99: GRUPOS, COLETIVOS, CREW | B99: on-1083301729 | C99: Recanto das Emas | D99: DF | E99: CENTRO OESTE | F99: Avaliador 2 | G99: 10 | H99: 4 | I99: 4 | J99: 5 | K99: 0 | L99: 5 | M99: 3 | N99: 0 | O99: 0 | P99: 0 | Q99: 3 | R99: 0 | S99: 0 | T99: 0 | U99: 34 | W99: =W98 -> 45.5
A100: GRUPOS, COLETIVOS, CREW | B100: =HYPERLINK("https://mapas.cultura.gov.br/inscricao/1039384297","on-1039384297") -> on-1039384297 | C100: Gama | D100: DF | E100: CENTRO OESTE | F100: Avaliador 1 | G100: 10 | H100: 4 | I100: 4 | J100: 0 | K100: 3 | L100: 3 | M100: 5 | N100: 3 | O100: 0 | P100: 0 | Q100: 3 | R100: 0 | S100: 0 | T100: 0 | U100: 35 | V100: DESCLASSIFICADA COM BASE NO ITEM 7.10 | W100: =AVERAGE(U100,U101) -> 44.5 | X100: DESCLASSIFICADO
A101: GRUPOS, COLETIVOS, CREW | B101: on-1039384297 | C101: Gama | D101: DF | E101: CENTRO OESTE | F101: Avaliador 2 | G101: 10 | H101: 8 | I101: 12 | J101: 0 | K101: 5 | L101: 8 | M101: 8 | N101: 0 | O101: 0 | P101: 0 | Q101: 3 | R101: 0 | S101: 0 | T101: 0 | U101: 54 | W101: =W100 -> 44.5
A102: GRUPOS, COLETIVOS, CREW | B102: =HYPERLINK("https://mapas.cultura.gov.br/inscricao/526833720","on-526833720") -> on-526833720 | C102: Cuiabá | D102: MT | E102: CENTRO OESTE | F102: Avaliador 1 | G102: 5 | H102: 4 | I102: 4 | J102: 3 | K102: 3 | L102: 3 | M102: 3 | N102: 3 | O102: 0 | P102: 0 | Q102: 0 | R102: 0 | S102: 0 | T102: 0 | U102: 28 | V102: DESCLASSIFICADA COM BASE NO ITEM 7.10 e 7.13 | W102: =AVERAGE(U102,U103) -> 28 | X102: DESCLASSIFICADO
A103: GRUPOS, COLETIVOS, CREW | B103: =HYPERLINK("https://mapas.cultura.gov.br/inscricao/526833720","on-526833720") -> on-526833720 | C103: Cuiabá | D103: MT | E103: CENTRO OESTE | F103: Avaliador 2 | G103: 5 | H103: 4 | I103: 4 | J103: 3 | K103: 3 | L103: 3 | M103: 3 | N103: 3 | O103: 0 | P103: 0 | Q103: 0 | R103: 0 | S103: 0 | T103: 0 | U103: 28 | W103: =W102 -> 28
A104: GRUPOS, COLETIVOS, CREW | B104: =HYPERLINK("https://mapas.cultura.gov.br/inscricao/930413174","on-930413174") -> on-930413174 | C104: Alto Paraiso | D104: GO | E104: CENTRO OESTE | F104: Avaliador 1 | G104: 0 | H104: 8 | I104: 8 | J104: 0 | K104: 0 | L104: 5 | M104: 0 | N104: 0 | O104: 0 | P104: 0 | Q104: 3 | R104: 0 | S104: 0 | T104: 0 | U104: 24 | V104: DESCLASSIFICADA COM BASE NO ITEM 7.7 | W104: =AVERAGE(U104,U105) -> 26 | X104: DESCLASSIFICADO
A105: GRUPOS, COLETIVOS, CREW | B105: =HYPERLINK("https://mapas.cultura.gov.br/inscricao/930413174","on-930413174") -> on-930413174 | C105: Alto Paraiso | D105: GO | E105: CENTRO OESTE | F105: Avaliador 2 | G105: 0 | H105: 12 | I105: 8 | J105: 0 | K105: 0 | L105: 5 | M105: 0 | N105: 0 | O105: 0 | P105: 0 | Q105: 3 | R105: 0 | S105: 0 | T105: 0 | U105: 28 | W105: =W104 -> 26
A106: GRUPOS, COLETIVOS, CREW | B106: =HYPERLINK("https://mapas.cultura.gov.br/inscricao/1954465330","on-1954465330") -> on-1954465330 | C106: Sobradinho II | D106: DF | E106: CENTRO OESTE | F106: Avaliador 1 | U106: 0 | V106: DESCLASSIFICADO COM BASE NO ITEM 7.4 | W106: =AVERAGE(U106,U107) -> 0 | X106: DESCLASSIFICADO
A107: GRUPOS, COLETIVOS, CREW | B107: on-1954465330 | C107: Sobradinho II | D107: DF | E107: CENTRO OESTE | F107: Avaliador 2 | U107: 0 | W107: =W106 -> 0
A108: GRUPOS, COLETIVOS, CREW | B108: =HYPERLINK("https://mapas.cultura.gov.br/inscricao/1950729658","on-1950729658") -> on-1950729658 | C108: Paranoá Parque | D108: DF | E108: CENTRO OESTE | F108: Avaliador 1 | U108: 0 | V108: DESCLASSIFICADO COM BASE NO ITEM 7.4 | W108: =AVERAGE(U108,U109) -> 0 | X108: DESCLASSIFICADO
A109: GRUPOS, COLETIVOS, CREW | B109: on-1950729658 | C109: Paranoá Parque | D109: DF | E109: CENTRO OESTE | F109: Avaliador 2 | U109: 0 | W109: =W108 -> 0
A110: GRUPOS, COLETIVOS, CREW | B110: =HYPERLINK("https://mapas.cultura.gov.br/inscricao/381067577","on-381067577") -> on-381067577 | C110: Cuiabá | D110: MT | E110: CENTRO OESTE | F110: Avaliador 1 | H110: 0 | I110: 0 | J110: 0 | K110: 0 | L110: 0 | M110: 0 | N110: 0 | S110: 0 | U110: 0 | V110: DESCLASSIFICADO COM BASE NO ITEM 7.5 | W110: =AVERAGE(U110,U111) -> 0 | X110: DESCLASSIFICADO
A111: GRUPOS, COLETIVOS, CREW | B111: =HYPERLINK("https://mapas.cultura.gov.br/inscricao/381067577","on-381067577") -> on-381067577 | C111: Cuiabá | D111: MT | E111: CENTRO OESTE | F111: Avaliador 2 | G111: 0 | H111: 0 | I111: 0 | J111: 0 | K111: 0 | L111: 0 | M111: 0 | N111: 0 | O111: 0 | P111: 0 | Q111: 0 | R111: 0 | S111: 0 | T111: 0 | U111: 0 | W111: =W110 -> 0
G229: 0 | H229: 0 | J229: 0 | O229: 0
G230: 5 | H230: 4 | J230: 3 | O230: 3
G231: 10 | H231: 8 | J231: 5
G232: 15 | H232: 12 | J232: 8
G233: 20 | H233: 15 | J233: 10

Sheet INSTITUIÇÕES SEM FINS LUCRATIVO
A1: CATEGORIA | B1: INSCRIÇÃO | C1: CIDADE | D1: UF | E1: REGIÃO | F1: AVALIADOR | G1: CRITÉRIOS DE AVALIAÇÃO E SELEÇÃO 1 | H1: CRITÉRIOS DE AVALIAÇÃO E SELEÇÃO 2 | I1: CRITÉRIOS DE AVALIAÇÃO E SELEÇÃO 3 | J1: CRITÉRIOS DE AVALIAÇÃO E SELEÇÃO 4 | K1: CRITÉRIOS DE AVALIAÇÃO E SELEÇÃO 5 | L1: CRITÉRIOS DE AVALIAÇÃO E SELEÇÃO 6 | M1: CRITÉRIOS DE AVALIAÇÃO E SELEÇÃO 7 | N1: CRITÉRIOS DE AVALIAÇÃO E SELEÇÃO 8 | O1: PONTUAÇÃO EXTRA - Pessoa com deficiência | P1: PONTUAÇÃO EXTRA - Mulher | Q1: PONTUAÇÃO EXTRA - Pessoa negra | R1: PONTUAÇÃO EXTRA -Indígena, matriz africana, de terreiro ou de povos ou de comunidades tradicionais | S1: PONTUAÇÃO EXTRA LGBTQIA+ | T1: PONTUAÇÃO EXTRA Idosa com 60 anos ou mais? | U1: NOTA POR AVALIADOR | V1: OBSERVAÇÃO | W1: NOTA PRELIMINAR | X1: STATUS
A2: INSTITUIÇÕES SEM FINS LUCRATIVO | B2: =HYPERLINK("https://mapas.cultura.gov.br/inscricao/1432668987","on-1432668987") -> on-1432668987 | C2: Brazlândia | D2: DF | E2: CENTRO OESTE | F2: Avaliador 1 | G2: 20 | H2: 15 | I2: 15 | J2: 10 | K2: 10 | L2: 10 | M2: 10 | N2: 10 | O2: 0 | P2: 3 | Q2: 3 | R2: 0 | S2: 3 | T2: 0 | U2: =SUM(G2:T2) -> 109 | W2: =AVERAGE(U2,U3) -> 101.5 | X2: PRÉ-SELECIONADO
A3: INSTITUIÇÕES SEM FINS LUCRATIVO | B3: =HYPERLINK("https://mapas.cultura.gov.br/inscricao/1432668987","on-1432668987") -> on-1432668987 | C3: Brazlândia | D3: DF | E3: CENTRO OESTE | F3: Avaliador 2 | G3: 20 | H3: 12 | I3: 12 | J3: 5 | K3: 8 | L3: 10 | M3: 8 | N3: 10 | O3: 0 | P3: 3 | Q3: 3 | R3: 0 | S3: 3 | T3: 0 | U3: 94 | W3: =W2 -> 101.5
A4: INSTITUIÇÕES SEM FINS LUCRATIVO | B4: =HYPERLINK("https://mapas.cultura.gov.br/inscricao/1336449424","on-1336449424") -> on-1336449424 | C4: Brasília | D4: DF | E4: CENTRO OESTE | F4: Avaliador 1 | G4: 20 | H4: 15 | I4: 15 | J4: 10 | K4: 10 | L4: 10 | M4: 10 | N4: 8 | O4: 0 | P4: 0 | Q4: 0 | R4: 0 | S4: 0 | T4: 0 | U4: 98 | W4: =AVERAGE(U4,U5) -> 99 | X4: PRÉ-SELECIONADO
A5: INSTITUIÇÕES SEM FINS LUCRATIVO | B5: =HYPERLINK("https://mapas.cultura.gov.br/inscricao/1336449424","on-1336449424") -> on-1336449424 | C5: Brasília | D5: DF | E5: CENTRO OESTE | F5: Avaliador 2 | G5: 20 | H5: 15 | I5: 15 | J5: 10 | K5: 10 | L5: 10 | M5: 10 | N5: 10 | O5: 0 | P5: 0 | Q5: 0 | R5: 0 | S5: 0 | T5: 0 | U5: 100 | W5: =W4 -> 99
A6: INSTITUIÇÕES SEM FINS LUCRATIVO | B6: =HYPERLINK("https://mapas.cultura.gov.br/inscricao/949604251","on-949604251") -> on-949604251 | C6: Rio Verde | D6: GO | E6: CENTRO OESTE | F6: Avaliador 1 | G6: 20 | H6: 15 | I6: 15 | J6: 8 | K6: 10 | L6: 10 | M6: 10 | N6: 8 | O6: 0 | P6: 0 | Q6: 0 | R6: 0 | S6: 0 | T6: 0 | U6: 96 | W6: =AVERAGE(U6,U7) -> 98 | X6: PRÉ-SELECIONADO
A7: INSTITUIÇÕES SEM FINS LUCRATIVO | B7: =HYPERLINK("https://mapas.cultura.gov.br/inscricao/949604251","on-949604251") -> on-949604251 | C7: Rio Verde | D7: GO | E7: CENTRO OESTE | F7: Avaliador 2 | G7: 20 | H7: 15 | I7: 15 | J7: 10 | K7: 10 | L7: 10 | M7: 10 | N7: 10 | O7: 0 | P7: 0 | Q7: 0 | R7: 0 | S7: 0 | T7: 0 | U7: 100 | W7: =W6 -> 98
A8: INSTITUIÇÕES SEM FINS LUCRATIVO | B8: =HYPERLINK("https://mapas.cultura.gov.br/inscricao/964210215","on-964210215") -> on-964210215 | C8: Brasília | D8: DF | E8: CENTRO OESTE | F8: Avaliador 1 | G8: 20 | H8: 15 | I8: 15 | J8: 8 | K8: 10 | L8: 10 | M8: 10 | N8: 10 | O8: 0 | P8: 0 | Q8: 0 | R8: 0 | S8: 0 | T8: 0 | U8: 98 | W8: =AVERAGE(U8,U9) -> 97 | X8: PRÉ-SELECIONADO
A9: INSTITUIÇÕES SEM FINS LUCRATIVO | B9: =HYPERLINK("https://mapas.cultura.gov.br/inscricao/964210215","on-964210215") -> on-964210215 | C9: Brasília | D9: DF | E9: CENTRO OESTE | F9: Avaliador 2 | G9: 20 | H9: 15 | I9: 15 | J9: 8 | K9: 10 | L9: 10 | M9: 10 | N9: 8 | O9: 0 | P9: 0 | Q9: 0 | R9: 0 | S9: 0 | T9: 0 | U9: 96 | W9: =W8 -> 97
A10: INSTITUIÇÕES SEM FINS LUCRATIVO | B10: =HYPERLINK("https://mapas.cultura.gov.br/inscricao/1327795597","on-1327795597") -> on-1327795597 | C10: Cuiabá | D10: MT | E10: CENTRO OESTE | F10: Avaliador 1 | G10: 20 | H10: 12 | I10: 15 | J10: 8 | K10: 8 | L10: 8 | M10: 8 | N10: 10 | O10: 0 | P10: 3 | Q10: 3 | R10: 0 | S10: 0 | T10: 0 | U10: 95 | W10: =AVERAGE(U10,U11) -> 97 | X10: PRÉ-SELECIONADO
A11: INSTITUIÇÕES SEM FINS LUCRATIVO | B11: =HYPERLINK("https://mapas.cultura.gov.br/inscricao/1327795597","on-1327795597") -> on-1327795597 | C11: Cuiabá | D11: MT | E11: CENTRO OESTE | F11: Avaliador 2 | G11: 20 | H11: 12 | I11: 15 | J11: 8 | K11: 10 | L11: 10 | M11: 10 | N11: 8 | O11: 0 | P11: 3 | Q11: 3 | R11: 0 | S11: 0 | T11: 0 | U11: 99 | W11: =W10 -> 97
A12: INSTITUIÇÕES SEM FINS LUCRATIVO | B12: =HYPERLINK("https://mapas.cultura.gov.br/inscricao/409436424","on-409436424") -> on-409436424 | C12: Goiânia | D12: GO | E12: CENTRO OESTE | F12: Avaliador 1 | G12: 20 | H12: 15 | I12: 15 | J12: 10 | K12: 10 | L12: 10 | M12: 10 | N12: 10 | O12: 0 | P12: 0 | Q12: 0 | R12: 0 | S12: 0 | T12: 0 | U12: 100 | W12: =AVERAGE(U12,U13) -> 96.5 | X12: PRÉ-SELECIONADO
A13: INSTITUIÇÕES SEM FINS LUCRATIVO | B13: =HYPERLINK("https://mapas.cultura.gov.br/inscricao/409436424","on-409436424") -> on-409436424 | C13: Goiânia | D13: GO | E13: CENTRO OESTE | F13: Avaliador 2 | G13: 15 | H13: 15 | I13: 15 | J13: 8 | K13: 10 | L13: 10 | M13: 10 | N13: 10 | O13: 0 | P13: 0 | Q13: 0 | R13: 0 | S13: 0 | T13: 0 | U13: 93 | W13: =W12 -> 96.5
A14: INSTITUIÇÕES SEM FINS LUCRATIVO | B14: =HYPERLINK("https://mapas.cultura.gov.br/inscricao/2031478980","on-2031478980") -> on-2031478980 | C14: Santa Maria | D14: DF | E14: CENTRO OESTE | F14: Avaliador 1 | G14: 20 | H14: 15 | I14: 15 | J14: 8 | K14: 10 | L14: 10 | M14: 10 | N14: 10 | O14: 0 | P14: 0 | Q14: 3 | R14: 0 | S14: 0 | T14: 0 | U14: 101 | W14: =AVERAGE(U14,U15) -> 96 | X14: PRÉ-SELECIONADO
A15: INSTITUIÇÕES SEM FINS LUCRATIVO | B15: =HYPERLINK("https://mapas.cultura.gov.br/inscricao/2031478980","on-2031478980") -> on-2031478980 | C15: Santa Maria | D15: DF | E15: CENTRO OESTE | F15: Avaliador 2 | G15: 20 | H15: 12 | I15: 15 | J15: 3 | K15: 10 | L15: 10 | M15: 10 | N15: 8 | O15: 0 | P15: 0 | Q15: 3 | R15: 0 | S15: 0 | T15: 0 | U15: 91 | W15: =W14 -> 96
A16: INSTITUIÇÕES SEM FINS LUCRATIVO | B16: =HYPERLINK("https://mapas.cultura.gov.br/inscricao/329558512","on-329558512") -> on-329558512 | C16: Goiânia | D16: GO | E16: CENTRO OESTE | F16: Avaliador 1 | G16: 20 | H16: 15 | I16: 15 | J16: 5 | K16: 10 | L16: 10 | M16: 10 | N16: 5 | O16: 0 | P16: 0 | Q16: 3 | R16: 0 | S16: 0 | T16: 0 | U16: 93 | W16: =AVERAGE(U16,U17) -> 95.5 | X16: PRÉ-SELECIONADO
A17: INSTITUIÇÕES SEM FINS LUCRATIVO | B17: =HYPERLINK("https://mapas.cultura.gov.br/inscricao/329558512","on-329558512") -> on-329558512 | C17: Goiânia | D17: GO | E17: CENTRO OESTE | F17: Avaliador 2 | G17: 20 | H17: 12 | I17: 15 | J17: 8 | K17: 10 | L17: 10 | M17: 10 | N17: 10 | O17: 0 | P17: 0 | Q17: 3 | R17: 0 | S17: 0 | T17: 0 | U17: 98 | W17: =W16 -> 95.5
A18: INSTITUIÇÕES SEM FINS LUCRATIVO | B18: =HYPERLINK("https://mapas.cultura.gov.br/inscricao/495578720","on-495578720") -> on-495578720 | C18: Anápolis | D18: GO | E18: CENTRO OESTE | F18: Avaliador 1 | G18: 15 | H18: 15 | I18: 12 | J18: 8 | K18: 5 | L18: 8 | M18: 10 | N18: 8 | O18: 0 | P18: 0 | Q18: 0 | R18: 0 | S18: 0 | T18: 0 | U18: 81 | W18: =AVERAGE(U18,U19) -> 87 | X18: CLASSIFICADO
A19: INSTITUIÇÕES SEM FINS LUCRATIVO | B19: =HYPERLINK("https://mapas.cultura.gov.br/inscricao/495578720","on-495578720") -> on-495578720 | C19: Anápolis | D19: GO | E19: CENTRO OESTE | F19: Avaliador 2 | G19: 20 | H19: 15 | I19: 15 | J19: 5 | K19: 8 | L19: 10 | M19: 10 | N19: 10 | O19: 0 | P19: 0 | Q19: 0 | R19: 0 | S19: 0 | T19: 0 | U19: 93 | W19: =W18 -> 87
A20: INSTITUIÇÕES SEM FINS LUCRATIVO | B20: =HYPERLINK("https://mapas.cultura.gov.br/inscricao/569825003","on-569825003") -> on-569825003 | C20: Rondonópolis | D20: MT | E20: CENTRO OESTE | F20: Avaliador 1 | G20: 20 | H20: 15 | I20: 15 | J20: 5 | K20: 10 | L20: 10 | M20: 10 | N20: 5 | O20: 0 | P20: 0 | Q20: 0 | R20: 0 | S20: 0 | T20: 0 | U20: 90 | W20: =AVERAGE(U20,U21) -> 86.5 | X20: CLASSIFICADO
A21: INSTITUIÇÕES SEM FINS LUCRATIVO | B21: =HYPERLINK("https://mapas.cultura.gov.br/inscricao/569825003","on-569825003") -> on-569825003 | C21: Rondonópolis | D21: MT | E21: CENTRO OESTE | F21: Avaliador 2 | G21: 20 | H21: 8 | I21: 15 | J21: 5 | K21: 10 | L21: 10 | M21: 10 | N21: 5 | O21: 0 | P21: 0 | Q21: 0 | R21: 0 | S21: 0 | T21: 0 | U21: 83 | W21: =W20 -> 86.5
A22: INSTITUIÇÕES SEM FINS LUCRATIVO | B22: =HYPERLINK("https://mapas.cultura.gov.br/inscricao/1624032320","on-1624032320") -> on-1624032320 | C22: Ceilândia | D22: DF | E22: CENTRO OESTE | F22: Avaliador 1 | G22: 15 | H22: 12 | I22: 15 | J22: 5 | K22: 5 | L22: 8 | M22: 8 | N22: 5 | O22: 0 | P22: 0 | Q22: 3 | R22: 0 | S22: 0 | T22: 0 | U22: 76 | W22: =AVERAGE(U22,U23) -> 83.5 | X22: CLASSIFICADO
A23: INSTITUIÇÕES SEM FINS LUCRATIVO | B23: =HYPERLINK("https://mapas.cultura.gov.br/inscricao/1624032320","on-1624032320") -> on-1624032320 | C23: Ceilândia | D23: DF | E23: CENTRO OESTE | F23: Avaliador 2 | G23: 20 | H23: 12 | I23: 15 | J23: 5 | K23: 10 | L23: 10 | M23: 8 | N23: 8 | O23: 0 | P23: 0 | Q23: 3 | R23: 0 | S23: 0 | T23: 0 | U23: 91 | W23: =W22 -> 83.5
A24: INSTITUIÇÕES SEM FINS LUCRATIVO | B24: =HYPERLINK("https://mapas.cultura.gov.br/inscricao/270251886","on-270251886") -> on-270251886 | C24: Campo Verde | D24: MT | E24: CENTRO OESTE | F24: Avaliador 1 | G24: 20 | H24: 8 | I24: 8 | J24: 5 | K24: 5 | L24: 5 | M24: 5 | N24: 3 | O24: 0 | P24: 0 | Q24: 3 | R24: 0 | S24: 0 | T24: 0 | U24: 62 | W24: =AVERAGE(U24,U25) -> 71.5 | X24: CLASSIFICADO
A25: INSTITUIÇÕES SEM FINS LUCRATIVO | B25: =HYPERLINK("https://mapas.cultura.gov.br/inscricao/270251886","on-270251886") -> on-270251886 | C25: Campo Verde | D25: MT | E25: CENTRO OESTE | F25: Avaliador 2 | G25: 20 | H25: 15 | I25: 15 | J25: 8 | K25: 5 | L25: 5 | M25: 5 | N25: 5 | O25: 0 | P25: 0 | Q25: 3 | R25: 0 | S25: 0 | T25: 0 | U25: 81 | W25: =W24 -> 71.5
A26: INSTITUIÇÕES SEM FINS LUCRATIVO | B26: =HYPERLINK("https://mapas.cultura.gov.br/inscricao/1105519843","on-1105519843") -> on-1105519843 | C26: Samambaia | D26: DF | E26: CENTRO OESTE | F26: Avaliador 1 | G26: 10 | H26: 8 | I26: 8 | J26: 5 | K26: 8 | L26: 8 | M26: 8 | N26: 10 | O26: 0 | P26: 0 | Q26: 0 | R26: 0 | S26: 0 | T26: 0 | U26: 65 | W26: =AVERAGE(U26,U27) -> 64 | X26: CLASSIFICADO
A27: INSTITUIÇÕES SEM FINS LUCRATIVO | B27: =HYPERLINK("https://mapas.cultura.gov.br/inscricao/1105519843","on-1105519843") -> on-1105519843 | C27: Samambaia | D27: DF | E27: CENTRO OESTE | F27: Avaliador 2 | G27: 10 | H27: 8 | I27: 8 | J27: 5 | K27: 8 | L27: 8 | M27: 8 | N27: 8 | O27: 0 | P27: 0 | Q27: 0 | R27: 0 | S27: 0 | T27: 0 | U27: 63 | W27: =W26 -> 64
A28: INSTITUIÇÕES SEM FINS LUCRATIVO | B28: =HYPERLINK("https://mapas.cultura.gov.br/inscricao/589879398","on-589879398") -> on-589879398 | C28: Várzea Grande | D28: MT | E28: CENTRO OESTE | F28: Avaliador 1 | G28: 20 | H28: 12 | I28: 8 | J28: 5 | K28: 3 | L28: 10 | M28: 8 | N28: 3 | O28: 0 | P28: 0 | Q28: 0 | R28: 0 | S28: 0 | T28: 0 | U28: 69 | W28: =AVERAGE(U28,U29) -> 62 | X28: CLASSIFICADO
A29: INSTITUIÇÕES SEM FINS LUCRATIVO | B29: =HYPERLINK("https://mapas.cultura.gov.br/inscricao/589879398","on-589879398") -> on-589879398 | C29: Várzea Grande | D29: MT | E29: CENTRO OESTE | F29: Avaliador 2 | G29: 10 | H29: 12 | I29: 8 | J29: 5 | K29: 5 | L29: 5 | M29: 5 | N29: 5 | O29: 0 | P29: 0 | Q29: 0 | R29: 0 | S29: 0 | T29: 0 | U29: 55 | W29: =W28 -> 62
A30: INSTITUIÇÕES SEM FINS LUCRATIVO | B30: =HYPERLINK("https://mapas.cultura.gov.br/inscricao/791602377","on-791602377") -> on-791602377 | C30: Luiziânia | D30: GO | E30: CENTRO OESTE | F30: Avaliador 1 | G30: 20 | H30: 4 | I30: 4 | J30: 5 | K30: 3 | L30: 3 | M30: 3 | N30: 0 | O30: 0 | P30: 3 | Q30: 0 | R30: 0 | S30: 0 | T30: 0 | U30: 45 | V30: DESCLASSIFICADA COM BASE NO ITEM 7.5 | W30: =AVERAGE(U30,U31) -> 38 | X30: DESCLASSIFICADO
A31: INSTITUIÇÕES SEM FINS LUCRATIVO | B31: =HYPERLINK("https://mapas.cultura.gov.br/inscricao/791602377","on-791602377") -> on-791602377 | C31: Luiziânia | D31: GO | E31: CENTRO OESTE | F31: Avaliador 2 | G31: 0 | H31: 12 | I31: 4 | J31: 3 | K31: 0 | L31: 3 | M31: 3 | N31: 3 | O31: 0 | P31: 3 | Q31: 0 | R31: 0 | S31: 0 | T31: 0 | U31: 31 | W31: =W30 -> 38
A32: INSTITUIÇÕES SEM FINS LUCRATIVO | B32: =HYPERLINK("https://mapas.cultura.gov.br/inscricao/124113505","on-124113505") -> on-124113505 | C32: Senador Canedo | D32: GO | E32: CENTRO OESTE | F32: Avaliador 1 | G32: 0 | H32: 0 | I32: 0 | J32: 0 | K32: 0 | L32: 0 | M32: 0 | N32: 0 | O32: 0 | P32: 0 | Q32: 0 | R32: 0 | S32: 0 | T32: 0 | U32: 0 | V32: DESCLASSIFICADA COM BASE NO ITEM 8.1, alínea "a" | W32: =AVERAGE(U32,U33) -> 0 | X32: DESCLASSIFICADO
A33: INSTITUIÇÕES SEM FINS LUCRATIVO | B33: =HYPERLINK("https://mapas.cultura.gov.br/inscricao/124113505","on-124113505") -> on-124113505 | C33: Senador Canedo | D33: GO | E33: CENTRO OESTE | F33: Avaliador 2 | G33: 0 | H33: 0 | I33: 0 | J33: 0 | K33: 0 | L33: 0 | M33: 0 | N33: 0 | O33: 0 | P33: 0 | Q33: 0 | R33: 0 | S33: 0 | T33: 0 | U33: 0 | W33: =W32 -> 0
A34: INSTITUIÇÕES SEM FINS LUCRATIVO | B34: =HYPERLINK("https://mapas.cultura.gov.br/inscricao/1183442572","on-1183442572") -> on-1183442572 | C34: Goiânia | D34: GO | E34: CENTRO OESTE | F34: Avaliador 1 | G34: 0 | H34: 0 | I34: 0 | J34: 0 | K34: 0 | L34: 0 | M34: 0 | N34: 0 | O34: 0 | P34: 0 | Q34: 0 | R34: 0 | S34: 0 | T34: 0 | U34: 0 | V34: DESCLASSIFICADA COM BASE NO ITEM 6.1.3 | W34: =AVERAGE(U34,U35) -> 0 | X34: DESCLASSIFICADO
A35: INSTITUIÇÕES SEM FINS LUCRATIVO | B35: =HYPERLINK("https://mapas.cultura.gov.br/inscricao/1183442572","on-1183442572") -> on-1183442572 | C35: Goiânia | D35: GO | E35: CENTRO OESTE | F35: Avaliador 2 | G35: 0 | H35: 0 | I35: 0 | J35: 0 | K35: 0 | L35: 0 | M35: 0 | N35: 0 | O35: 0 | P35: 0 | Q35: 0 | R35: 0 | S35: 0 | T35: 0 | U35: 0 | W35: =W34 -> 0
A36: INSTITUIÇÕES SEM FINS LUCRATIVO | B36: =HYPERLINK("https://mapas.cultura.gov.br/inscricao/2102693351","on-2102693351") -> on-2102693351 | C36: Luiziânia | D36: GO | E36: CENTRO OESTE | F36: Avaliador 1 | O36: =SUM(A36:N36) -> 0 | P36: =SUM(B36:O36) -> 0 | Q36: =SUM(C36:P36) -> 0 | R36: =SUM(D36:Q36) -> 0 | S36: =SUM(E36:R36) -> 0 | T36: =SUM(F36:S36) -> 0 | U36: 0 | V36: DESCLASSIFICADA COM BASE NO ITEM 7.5 | W36: =AVERAGE(U36,U37) -> 0 | X36: DESCLASSIFICADO
A37: INSTITUIÇÕES SEM FINS LUCRATIVO | B37: =HYPERLINK("https://mapas.cultura.gov.br/inscricao/2102693351","on-2102693351") -> on-2102693351 | C37: Luiziânia | D37: GO | E37: CENTRO OESTE | F37: Avaliador 2 | O37: 0 | U37: 0 | W37: =W36 -> 0
G155: 0 | H155: 0 | J155: 0 | O155: 0
G156: 5 | H156: 4 | J156: 3 | O156: 3
G157: 10 | H157: 8 | J157: 5
G158: 15 | H158: 12 | J158: 8
G159: 20 | H159: 15 | J159: 10
